Workbook

Sheet QA Log (hidden)
B1: QA log of changes and queries
I2: Actions - Status:
I3: Actioned
I4: Ongoing - to discuss changes?
I5: Suggestion rejected
B7: QA log # | C7: Date of QA | D7: Analyst QA | E7: Version | F7: Tab | G7: Cell | H7: Comment | I7: Changed (Y/N) | J7: What changed? | K7: Additional Comments
B8: 1 | C8: 2021-03-31 | D8: AM | E8: v1.0 | F8: Part 3 - Annexes | H8: Part 2 button is still in burgundy colouring but it should be Part 3 button
B9: 2 | C9: 2021-03-31 | D9: AM | E9: v1.0 | F9: Part 1 - Social cost-benefit | G9: F12 | H9: No Link to Benefit Tool tab
B10: 3 | C10: 2021-03-31 | D10: AM | E10: v1.0 | F10: Part 1 - Social cost-benefit | G10: F13 | H10: No Link to Worked Examples Tab
B11: 4 | C11: 2021-03-31 | D11: AM | E11: v1.0 | F11: Disorders | G11: L27:M30 | H11: Unit cost not checked as hard-coded / no calculation. | K11: Taken directly from source
B12: 5 | C12: 2021-03-31 | D12: AM | E12: v1.0 | F12: Benefit tool | G12: Rows | H12: The multipliers are hard-coded. Could they be added in the DA & crime tab along with an explanation of the crime multiplier by type of crime for transparency?
B13: 6 | C13: 2021-03-31 | D13: AM | E13: v1.0 | F13: All | H13: Could the notes over the cells be checked to display the full text as currently the full text is cut-off or isn't shown - have expanded where spotted but may need another check | K13: This will need to be done while tool with pub standards
B14: 7 | C14: 2021-03-31 | D14: AM | E14: v1.0 | F14: All | H14: Some of the notes have your name on them - have deleted where spotted but may need another check | K14: This will need to be done while tool with pub standards
B15: 8 | C15: 2021-03-31 | D15: AM | E15: v1.0 | F15: Benefit tool | G15: Crime | H15: Just to check, vehicle theft should be excluded? | K15: TBD
B16: 9 | C16: 2021-03-31 | D16: AM | E16: v1.0 | F16: Benefit tool | G16: G53:H53; G54:H54; G56:H56 | H16: Total benefits included direcr treatment costs. If 'No' selected to say not mutually exclusive, this results in the Gross social benefit, Net social benefit, and social BCR figures being inconclusive. Need to adjust the formulas for these figures so if select 'No', still returns a figure.
B17: 10 | C17: 2021-03-31 | D17: AM | E17: v1.0 | F17: Benefit tool | G17: G53:H53 | H17: Formula needs to adjust for the range of total benefits if 'No' selected
B18: 11 | C18: 2021-03-31 | D18: AM | E18: v1.0 | F18: Benefit tool | H18: Perhaps add an extra row for the final figures table for the 'Gross wider social benefit' like have for the 'Gross social benefit (LA)'
B19: 12 | C19: 2021-03-31 | D19: AM | E19: v1.0 | F19: Worked examples | G19: G:H95 | H19: Sum includes J78:Q79 which have no figures. Should this be moved up to the total benefits row?
B20: 13 | C20: 2021-03-31 | D20: AM | E20: v1.0 | F20: Worked examples | G20: G:H96 | H20: Sum includes J78:Q79 which have no figures. Should this be moved up to the total benefits row?
B21: 14 | C21: 2021-03-31 | D21: AM | E21: v1.0 | F21: Worked examples | H21: Can case study 1 also have key areas of costs in Bold, to be consistent with the case studies below?
B22: 15 | C22: 2021-03-31 | D22: AM | E22: v1.0 | F22: Worked examples | G22: G:H182 | H22: Sum includes J165:Q166 which have no figures. Should this be moved up to the total benefits row?
B23: 16 | C23: 2021-03-31 | D23: AM | E23: v1.0 | F23: Worked examples | G23: G:H183 | H23: Sum includes J165:Q166 which have no figures. Should this be moved up to the total benefits row?
B24: 17 | C24: 2021-03-31 | D24: AM | E24: v1.0 | F24: Worked examples | G24: G:H263 | H24: Sum includes J246:Q247 which have no figures. Should this be moved up to the total benefits row?
B25: 18 | C25: 2021-03-31 | D25: AM | E25: v1.0 | F25: Worked examples | G25: G:H264 | H25: Sum includes J246:Q247 which have no figures. Should this be moved up to the total benefits row?
B26: 19 | C26: 2021-03-31 | D26: AM | E26: v1.0 | F26: Worked examples | G26: G:H344 | H26: Sum includes J327:Q328 which have no figures. Should this be moved up to the total benefits row?
B27: 20 | C27: 2021-03-31 | D27: AM | E27: v1.0 | F27: Worked examples | G27: G:H345 | H27: Sum includes J327:Q328 which have no figures. Should this be moved up to the total benefits row?
B28: 21 | C28: 2021-03-31 | D28: AM | E28: v1.0 | F28: Part 2 - UC database | G28: F19 | H28: Link to NHS and LA Treatment not valid
B29: 22 | C29: 2021-03-31 | D29: AM | E29: v1.0 | F29: Part 2 - UC database | G29: F20 | H29: Link to NHS and LA Treatment not valid
B30: 23 | C30: 2021-03-31 | D30: AM | E30: v1.0 | F30: A1 GDP deflator | H30: The latest GDP deflator for 2019-20 prices has been published if would want to update instead of estimate the infaltion rate for 2019-20.
B31: 24 | C31: 2021-03-31 | D31: AM | E31: v1.0 | F31: Education | H31: Main unit cost figure hard-coded so not QA'd with source of unit cost
B32: 25 | C32: 2021-03-31 | D32: AM | E32: v1.0 | F32: Disorders | G32: N8:P8 | H32: N8:P8 hard-coded. Add as a separate model paraemter and explian why divide lifetime costs by 10?
B33: 26 | C33: 2021-03-31 | D33: AM | E33: v1.0 | F33: Disorders | G33: Rows 11:15 | H33: Lifetime costs hard-coded so not QA'd for source
B34: 27 | C34: 2021-03-31 | D34: AM | E34: v1.0 | F34: Disorders | G34: N16:P16 | H34: N16:P16 hard-coded. Add as a separate model paraemter and explian why divide lifetime costs by 10? | K34: Comment states that lifetime costs have been modelled over 10 years
B35: 28 | C35: 2021-03-31 | D35: AM | E35: v1.0 | F35: Disorders | G35: Rows 18:21 | H35: Lifetime costs hard-coded so not QA'd for source
B36: 29 | C36: 2021-03-31 | D36: AM | E36: v1.0 | F36: Disorders | G36: H23 | H36: Add 60% as model parameter and explain why 60% of total costs? | K36: Comment explains
B37: 30 | C37: 2021-03-31 | D37: AM | E37: v1.0 | F37: Disorders | G37: H24 | H37: Add 28% as model parameter and explain why 28% of total costs? | K37: Comment explains
B38: 31 | C38: 2021-03-31 | D38: AM | E38: v1.0 | F38: Disorders | G38: H25 | H38: Add 12% as model parameter and explain why 12% of total costs? | K38: Comment explains
B39: 32 | C39: 2021-03-31 | D39: AM | E39: v1.0 | F39: Disorders | G39: I27;I28;I30;J29 | H39: Unit costs in $ hard-coded and not QA'd for source or how converted to £s | K39: TBD
B40: 33 | C40: 2021-03-31 | D40: AM | E40: v1.0 | F40: Homelessness | G40: H8 | H40: Unit costs hard-coded so not QA'd for source
B41: 34 | C41: 2021-03-31 | D41: AM | E41: v1.0 | F41: Homelessness | G41: H10:H12 | H41: Unit costs hard-coded so not QA'd for source
B42: 35 | C42: 2021-03-31 | D42: AM | E42: v1.0 | F42: Homelessness | G42: H13:K13 | H42: Unit cost of crime excluded from Overall cost
B43: 36 | C43: 2021-03-31 | D43: AM | E43: v1.0 | F43: Homelessness | G43: H14:H18 | H43: Unit costs hard-coded so not QA'd for source

Sheet Front sheet
C7: Parents with problem alcohol and drug use:
C8: investing in families workbook, 2020 to 2021
C10: Supporting children and families experiencing parental alcohol and drug misuse
C12: Introduction
C13: This workbook supports local areas, organisations and providers that have collected, or intend to collect, case studies to estimate how much social and economic cost they can avoid by supporting families experiencing alcohol and drug problems. It is designed to be used alongside the 'Using case studies to estimate the cost-benefit of interventions' guidance.
C14: It is split into 3 sections.
C16: Part 1: Social cost-benefit tool
C17: Part 2: Unit cost database
C18: Part 3: Annexes
C20: To open a section, please click on the relevant link at the side, or use the tabs below.

Sheet Part 1 - Social cost-benefit
D2: Part 1: Social cost-benefit tool
D4: This document supports anyone collecting case studies to estimate how much social and economic cost can be avoided by supporting families experiencing problem parental alcohol and drug use.
D5: It is important to remember when using case studies of families, that the estimated costs represent potential benefits specific to that family, and not the average benefits of the intervention. To do the latter, areas would need to collect data on every family receiving the intervention.
D7: When exploring the effects of an intervention, it is important to understand family dynamics and experiences before, during and after the intervention. This helps you to understand how things have changed for the family. There are many ways to collate this type of data in a case study and it is possible that you will have your own preferred way to do so. You can download a case study template in the accompanying guidance document as an example for reference.
D9: Contents
D11: Social cost-benefit tool component | E11: Corresponding tab
D12: Template for calculations | E12: Benefit tool
D13: Examples of case studies | E13: Worked examples

Sheet Benefit tool
D2: Social cost-benefit tool
D3: The table below is a template that can be used for calculations. Note: rows can be added, deleted or hidden as necessary.
D4: Yellow cells require user input. Themes that are not relevant can be left as '0'. Once you have added the number of children and adults affcted by each theme, and selected which agency costs are mutually exclusive and which are not, you can read the summary of results table. You can read more details in the corresponding guidance.
D5: To see how the tool can be used in practice, please see the next tab: 'Worked examples'
C8: Cost theme checklist | E8: No. of children | F8: No. of adults | G8: Corresponding tab | H8: Costs avoided in first year after intervention | P8: Notes
H9: Direct costs | N9: Indirect | O9: Intangible
H10: LA | L10: NHS | M10: CJS
H11: Social care | I11: Education | J11: Housing | K11: Treatment
C12: SOCIAL BENEFITS | D12: Social care and early help support | G12: Social, YP & kinship care
D13: Looked after - not in high cost placement | E13: 0 | F13: n/a | G13: Social, YP & kinship care | H13: =$E13*'Social, YP & kinship care'!$L$7 -> 0
D14: Child protection plan | E14: 0 | F14: n/a | G14: Social, YP & kinship care | H14: =$E14*'Social, YP & kinship care'!$L$9 -> 0
D15: Child in need | E15: 0 | F15: n/a | G15: Social, YP & kinship care | H15: =$E15*'Social, YP & kinship care'!$L$10 -> 0
D16: Early help | E16: 0 | F16: n/a | G16: Social, YP & kinship care | H16: =$E16*'Social, YP & kinship care'!$L$11 -> 0
D17: Troubled Families programme | E17: 0 | F17: n/a | G17: Social, YP & kinship care | H17: =$E17*'Social, YP & kinship care'!$L$12 -> 0
D18: Young person adopting carer role | E18: 0 | F18: n/a | G18: Social, YP & kinship care | N18: =E18*'Social, YP & kinship care'!$K$20 -> 0
D19: Kinship care | E19: n/a | F19: 0 | G19: Social, YP & kinship care | N19: =F19*'Social, YP & kinship care'!$K$21 -> 0
D20: Exclusion from school | E20: 0 | F20: n/a | G20: Education | H20: =$E20*(Education!$L$10) -> 0 | I20: =$E20*(Education!$L$7) -> 0 | L20: =E20*Education!$L$11 -> 0
D21: Truancy | E21: 0 | F21: n/a | G21: Education | H21: =E21*(Education!$L$16) -> 0 | I21: =E21*(Education!$L$13) -> 0 | L21: =E21*(Education!$L$17) -> 0
D22: Perinatal depression | E22: 0 | F22: n/a | G22: Disorders | L22: =E22*(Disorders!$L$8+Disorders!$L$10+Disorders!$L$11) -> 0 | O22: =E22*(Disorders!$N$8+Disorders!$N$9) -> 0
D23: Perinatal anxiety | E23: 0 | F23: n/a | G23: Disorders | L23: =E23*(Disorders!$L$16+Disorders!$L$17+Disorders!$L$18+Disorders!$L$19) -> 0 | N23: =E23*(Disorders!$M$19) -> 0 | O23: =E23*Disorders!$N$16 -> 0
D24: Conduct disorder | E24: 0 | F24: n/a | G24: Disorders | H24: =$E24*(Disorders!$L$23) -> 0 | I24: =$E24*(Disorders!$L$21) -> 0 | L24: =$E24*Disorders!$L$22 -> 0
D25: Foetal alcohol spectrum disorder | E25: 0 | F25: n/a | G25: Disorders | H25: =$E25*Disorders!$L$26 -> 0 | I25: =$E25*Disorders!$L$28 -> 0 | L25: =$E25*Disorders!$L$25 -> 0
D26: Homelessness | E26: 0 | F26: 0 | G26: Homelessness | J26: =IF(E26>0,1*Homelessness!$L$6,0) -> 0 | L26: =E26*(Homelessness!$L$13+Homelessness!$L$14)+F26*Homelessness!$L$8 -> 0 | M26: =F26*Homelessness!L9 -> 0 | O26: =E26*Homelessness!$N$15+F26*Homelessness!$N$10 -> 0
D27: NHS treatment | G27: NHS and LA Treatment
D28: ='NHS & LA treatment'!D18 -> Cognitive behavioural therapy (CBT) for adolescents | E28: 0 | F28: n/a | G28: NHS and LA Treatment | L28: =E28*'NHS & LA treatment'!$L$18 -> 0
D29: ='NHS & LA treatment'!D19 -> Counselling for children with mental or emotional difficulties | E29: 0 | F29: n/a | G29: NHS and LA Treatment | L29: =E29*'NHS & LA treatment'!$L$19 -> 0
D30: Domestic abuse | E30: n/a | F30: 0 | G30: DA & crime | L30: =F30*'DA & crime'!$L$7 -> 0 | M30: =F30*'DA & crime'!$L$10 -> 0 | N30: =F30*('DA & crime'!$M$11+'DA & crime'!$M$8) -> 0 | O30: =F30*'DA & crime'!$N$9 -> 0
D31: Crime | G31: DA & crime
D32: Violence | E32: n/a | F32: 0 | G32: DA & crime | L32: =F32*AVERAGE('DA & crime'!$L$13,'DA & crime'!$L$19)*6 -> 0 | M32: =F32*AVERAGE('DA & crime'!$L$16,'DA & crime'!$L$22)*6 -> 0 | N32: =F32*AVERAGE('DA & crime'!$M$14,'DA & crime'!$M$17,'DA & crime'!$M$20,'DA & crime'!$M$23)*6 -> 0 | O32: =F32*AVERAGE('DA & crime'!$N$15,'DA & crime'!$N$21)*6 -> 0
D33: Shoplifting | E33: n/a | F33: 0 | G33: DA & crime | M33: =$F33*'DA & crime'!$L$24*100 -> 0
D34: Robbery | E34: n/a | F34: 0 | G34: DA & crime | L34: =F34*'DA & crime'!$L$26*15 -> 0 | M34: =F34*'DA & crime'!$L$29*15 -> 0 | N34: =F34*('DA & crime'!$M$27+'DA & crime'!$M$30)*15 -> 0 | O34: =F34*'DA & crime'!$N$28*15 -> 0
D35: House burglary | E35: n/a | F35: 0 | G35: DA & crime | L35: =F35*'DA & crime'!$L$32*25 -> 0 | M35: =F35*'DA & crime'!$L$35*25 -> 0 | N35: =F35*('DA & crime'!$M$33+'DA & crime'!$M$36)*25 -> 0 | O35: =F35*'DA & crime'!$N$34*25 -> 0
D36: Police call out | E36: n/a | F36: 0 | G36: DA & crime | M36: =$F36*'DA & crime'!$L$44*6 -> 0
D37: Are costs mutually exclusive? | H37: No | I37: No | J37: No | L37: No | M37: No | N37: No | O37: No
D38: Total benefits (where costs are not mutually exclusive, a range is presented) | H38: =IFERROR(IF(H37="No","(£"&(ROUND(SMALL(H13:H36,COUNTIF(H13:H36,0)+1),0))&" - £"&(ROUND(MAX(H13:H36),0))&")",SUM(H13:H36)),"") ->  | I38: =IFERROR(IF(I37="No","(£"&(ROUND(SMALL(I13:I36,COUNTIF(I13:I36,0)+1),0))&" - £"&(ROUND(MAX(I13:I36),0))&")",SUM(I13:I36)),"") ->  | J38: =IFERROR(IF(J37="No","(£"&(ROUND(SMALL(J13:J36,COUNTIF(J13:J36,0)+1),0))&" - £"&(ROUND(MAX(J13:J36),0))&")",SUM(J13:J36)),"") ->  | L38: =IFERROR(IF(L37="No","(£"&(ROUND(SMALL(L13:L36,COUNTIF(L13:L36,0)+1),0))&" - £"&(ROUND(MAX(L13:L36),0))&")",SUM(L13:L36)),"") ->  | M38: =IFERROR(IF(M37="No","(£"&(ROUND(SMALL(M13:M36,COUNTIF(M13:M36,0)+1),0))&" - £"&(ROUND(MAX(M13:M36),0))&")",SUM(M13:M36)),"") ->  | N38: =IFERROR(IF(N37="No","(£"&(ROUND(SMALL(N13:N36,COUNTIF(N13:N36,0)+1),0))&" - £"&(ROUND(MAX(N13:N36),0))&")",SUM(N13:N36)),"") ->  | O38: =IFERROR(IF(O37="No","(£"&(ROUND(SMALL(O13:O36,COUNTIF(O13:O36,0)+1),0))&" - £"&(ROUND(MAX(O13:O36),0))&")",SUM(O13:O36)),"") -> 
H39: =IF(H37="No",SMALL((H13:H36),COUNTIF(H13:H36,0)+1),SUM(H13:H36)) ->  | I39: =IF(I37="No",SMALL((I13:I36),COUNTIF(I13:I36,0)+1),SUM(I13:I36)) ->  | J39: =IF(J37="No",SMALL((J13:J36),COUNTIF(J13:J36,0)+1),SUM(J13:J36)) ->  | L39: =IF(L37="No",SMALL((L13:L36),COUNTIF(L13:L36,0)+1),SUM(L13:L36)) ->  | M39: =IF(M37="No",SMALL((M13:M36),COUNTIF(M13:M36,0)+1),SUM(M13:M36)) ->  | N39: =IF(N37="No",SMALL((N13:N36),COUNTIF(N13:N36,0)+1),SUM(N13:N36)) ->  | O39: =IF(O37="No",SMALL((O13:O36),COUNTIF(O13:O36,0)+1),SUM(O13:O36)) -> 
H40: =IF(H37="No",MAX(H13:H36),SUM(H13:H36)) -> 0 | I40: =IF(I37="No",MAX(I13:I36),SUM(I13:I36)) -> 0 | J40: =IF(J37="No",MAX(J13:J36),SUM(J13:J36)) -> 0 | L40: =IF(L37="No",MAX(L13:L36),SUM(L13:L36)) -> 0 | M40: =IF(M37="No",MAX(M13:M36),SUM(M13:M36)) -> 0 | N40: =IF(N37="No",MAX(N13:N36),SUM(N13:N36)) -> 0 | O40: =IF(O37="No",MAX(O13:O36),SUM(O13:O36)) -> 0
C41: COSTS | D41: Alcohol and drug treatment | E41: 0 | F41: 0 | G41: NHS and LA Treatment
D42: ='NHS & LA treatment'!D20 -> Treatment for opioid use | E42: n/a | F42: 0 | G42: NHS and LA Treatment | K42: =F42*'NHS & LA treatment'!$L$20 -> 0
D43: ='NHS & LA treatment'!D21 -> Treatment for non-opioid drug use | E43: n/a | F43: 0 | G43: NHS and LA Treatment | K43: =F43*'NHS & LA treatment'!$L$21 -> 0
D44: ='NHS & LA treatment'!D22 -> Treatment for alcohol use | E44: n/a | F44: 0 | G44: NHS and LA Treatment | K44: =F44*'NHS & LA treatment'!$L$22 -> 0
D45: ='NHS & LA treatment'!D23 -> Treatment for young people (alcohol and drugs) | E45: 0 | F45: n/a | G45: NHS and LA Treatment | K45: =E45*'NHS & LA treatment'!$L$23 -> 0
D46: ='NHS & LA treatment'!D24 -> Inpatient detoxfication | E46: n/a | F46: 0 | G46: NHS and LA Treatment | K46: =F46*'NHS & LA treatment'!$L$24 -> 0
D47: ='NHS & LA treatment'!D25 -> Residential rehabilitation | E47: n/a | F47: 0 | G47: NHS and LA Treatment | K47: =F47*'NHS & LA treatment'!$L$25 -> 0
D48: Other treatment cost should be added here | K48: =0 -> 0
D49: Any ongoing treatment or social support cost (for example, early help) | H49: 0 | K49: =0 -> 0
D50: Total costs | H50: =SUM(H42:H49) -> 0 | K50: =SUM(K42:K49) -> 0
E52: £
D53: Total costs | E53: =SUM(H50:O50) -> 0
D54: Gross social benefit (LA) | E54: =IFERROR(IF(SUM(H39:K39)=SUM(H40:K40),TEXT(ROUND(SUM(H39:K39),-1),"#,#"),TEXT(ROUND(SUM(H39:K39),-1)," #,# - ")&TEXT(ROUND(SUM(H40:K40),-1),"#,#")),"") -> 
D55: Net social benefit (LA) | E55: =IFERROR(IF(SUM(H39:K39)=SUM(H40:K40),TEXT(ROUND(SUM(H39:K39)-E53,-1),"#,#"),TEXT(ROUND(SUM(H39:K39)-E53,-1),"#,# - ")&TEXT(ROUND(SUM(H40:K40)-E53,-1),"#,#")),"") -> 
D56: Social benefit-cost ratio (LA costs) | E56: =IFERROR(IF(SUM(H39:K39)=SUM(H40:K40),TEXT(ROUND(SUM(H39:K39)/E53,2),"#.#0"),TEXT(ROUND(SUM(H39:K39)/E53,2),"#.#0 - ")&TEXT(ROUND(SUM(H40:K40)/E53,2),"#.#0")),0) -> 0
D57: Wider net social benefits (gross) | E57: =IFERROR(IF(SUM(H39:O39)=SUM(H40:O40),TEXT(ROUND(SUM(H39:O39),-1),"#,#"),TEXT(ROUND(SUM(H39:O39),-1)," #,# - ")&TEXT(ROUND(SUM(H40:O40),-1),"#,#")),"") -> 
D58: Wider net social benefits (net) | E58: =IFERROR(IF(SUM(H39:O39)=SUM(H40:O40),TEXT(ROUND(SUM(H39:O39)-E53,-1)," #,#"),TEXT(ROUND(SUM(H39:O39)-E53,-1),"#,# - ")&TEXT(ROUND(SUM(H40:O40)-E53,-1),"#,#")),"") -> 
D59: Wider social benefit-cost ratio | E59: =IFERROR(IF(SUM(H39:O39)=SUM(H40:O40),TEXT(ROUND(SUM(H39:O39)/E53,2),"#.#0"),TEXT(ROUND(SUM(H39:O39)/E53,2),"#.#0 - ")&TEXT(ROUND(SUM(H40:O40)/E53,2),"#.#0")),0) -> 0

Sheet Worked examples
C2: Worked through examples using case studies
C4: The examples below are taken from 'Problem parental alcohol and drug use: Evidence pack'
C6: Case study 1: Sarah
C31: In Sarah's case study there are 5 themes in the checklist that we can cost:
D32: 1. Child protection plan
D33: 2. Perinatal depression and anxiety
D34: 3. No risk of foetal alchohol spectrum disorder
D35: 4. Homelessness
D36: 5. Specialist treatment (community and residential)
C38: We found these themes in the table below, and placed a '1' where it relates to Sarah and or her baby. The table then automatically populated with the relevant costs, in 2019 to 2020 prices.
C39: Note: We have only presented the relevant cost themes below. You can view the full table by unhiding the rows on the left hand side.
C41: The cost theme list is split into social benefits and costs. Social benefits are the positive outcomes that are measured following an intervention (for example a child no longer being on a child protection plan).
C42: Costs refer to the cost of treatment and any ongoing support from early help or social care.
C44: Avoiding double counting is the most important step of the process. The local authority (LA) costs below will almost always be mutually exclusive. For other costs it can be difficult to tell which ones overlap and are double counted. For example in Sarah’s case study, for NHS benefits, it is not clear whether any of the NHS costs for perinatal anxiety and depression are also included in the NHS costs associated with FASD and homelessness. For intangible costs also, we are usually given more than one figure. To avoid the social cost-benefit being over-estimated by double counting, you can select "No" when asked whether the categories under each cost theme are mutually exclusive. The results will automatically update and present a range for these categories.
C47: Cost theme checklist | E47: No. of children | F47: No. of adults | G47: Corresponding tab | H47: Costs avoided in first year after intervention | P47: Notes
H48: Direct costs | N48: Indirect | O48: Intangible
H49: LA | L49: NHS | M49: CJS
H50: Social care | I50: Education | J50: Housing | K50: Treatment
C51: SOCIAL BENEFITS | D51: Social care and early help support | G51: Social, YP & kinship care
D52: Looked after - not in high cost placement | E52: 0 | F52: n/a | G52: Social, YP & kinship care | H52: =$E52*'Social, YP & kinship care'!$L$7 -> 0
D53: Child protection plan | E53: 1 | F53: n/a | G53: Social, YP & kinship care | H53: =$E53*'Social, YP & kinship care'!$L$9 -> 10400
D54: Child in need | E54: 0 | F54: n/a | G54: Social, YP & kinship care | H54: =$E54*'Social, YP & kinship care'!$L$10 -> 0
D55: Early help | E55: 0 | F55: n/a | G55: Social, YP & kinship care | H55: =$E55*'Social, YP & kinship care'!$L$11 -> 0
D56: Troubled Families programme | E56: 0 | F56: n/a | G56: Social, YP & kinship care | H56: =$E56*'Social, YP & kinship care'!$L$12 -> 0
D57: Young person adopting carer role | E57: 0 | F57: n/a | G57: Social, YP & kinship care | N57: =E57*'Social, YP & kinship care'!$K$20 -> 0
D58: Kinship care | E58: n/a | F58: 0 | G58: Social, YP & kinship care | N58: =F58*'Social, YP & kinship care'!$K$21 -> 0
D59: Exclusion from school | E59: 0 | F59: n/a | G59: Education | H59: =$E59*(Education!$L$10) -> 0 | I59: =$E59*(Education!$L$7) -> 0 | L59: =E59*Education!$L$11 -> 0
D60: Truancy | E60: 0 | F60: n/a | G60: Education | H60: =E60*(Education!$L$16) -> 0 | I60: =E60*(Education!$L$13) -> 0 | L60: =E60*(Education!$L$17) -> 0
D61: Perinatal depression | E61: 1 | F61: n/a | G61: Disorders | L61: =E61*(Disorders!$L$8+Disorders!$L$10+Disorders!$L$11) -> 60 | O61: =E61*(Disorders!$N$8+Disorders!$N$9) -> 5100
D62: Perinatal anxiety | E62: 1 | F62: n/a | G62: Disorders | L62: =E62*(Disorders!$L$16+Disorders!$L$17+Disorders!$L$18+Disorders!$L$19) -> 300 | N62: =E62*(Disorders!$M$19) -> 50 | O62: =E62*Disorders!$N$16 -> 200
D63: Conduct disorder | E63: 0 | F63: n/a | G63: Disorders | H63: =$E63*(Disorders!$L$23) -> 0 | I63: =$E63*(Disorders!$L$21) -> 0 | L63: =$E63*Disorders!$L$22 -> 0
D64: Foetal alcohol spectrum disorder | E64: 1 | F64: n/a | G64: Disorders | H64: =$E64*Disorders!$L$26 -> 11100 | I64: =$E64*Disorders!$L$28 -> 3700 | L64: =$E64*Disorders!$L$25 -> 2400
D65: Homelessness | E65: 1 | F65: 1 | G65: Homeslessness | J65: =IF(E65>0,1*Homelessness!$L$6,0) -> 16900 | L65: =E65*(Homelessness!$L$13+Homelessness!$L$14)+F65*Homelessness!$L$8 -> 1200 | M65: =F65*Homelessness!L9 -> 2700 | O65: =E65*Homelessness!$N$15+F65*Homelessness!$N$10 -> 18600
D66: NHS treatment | G66: NHS and LA Treatment
D67: Cognitive behavioural therapy (CBT) for adolescents | E67: 0 | F67: n/a | G67: NHS and LA Treatment | L67: =E67*'NHS & LA treatment'!$L$18 -> 0
D68: Counselling for children with mental or emotional difficulties | E68: 0 | F68: n/a | G68: NHS and LA Treatment | L68: =E68*'NHS & LA treatment'!$L$19 -> 0
D69: Domestic abuse | E69: n/a | F69: 0 | G69: DA & crime | L69: =F69*'DA & crime'!$L$7 -> 0 | M69: =F69*'DA & crime'!$L$10 -> 0 | N69: =F69*('DA & crime'!$M$11+'DA & crime'!$M$8) -> 0 | O69: =F69*'DA & crime'!$N$9 -> 0
D70: Crime | G70: DA & crime
D71: Violence | E71: n/a | F71: 0 | L71: =F71*AVERAGE('DA & crime'!$L$13,'DA & crime'!$L$19)*6 -> 0 | M71: =F71*AVERAGE('DA & crime'!$L$16,'DA & crime'!$L$22)*6 -> 0 | N71: =F71*AVERAGE('DA & crime'!$M$14,'DA & crime'!$M$17,'DA & crime'!$M$20,'DA & crime'!$M$23)*6 -> 0 | O71: =F71*AVERAGE('DA & crime'!$N$15,'DA & crime'!$N$21)*6 -> 0
D72: Shoplifting | E72: n/a | F72: 0 | G72: DA & crime | M72: =$F72*'DA & crime'!$L$24*100 -> 0
D73: Robbery | E73: n/a | F73: 0 | G73: DA & crime | L73: =F73*'DA & crime'!$L$26*15 -> 0 | M73: =F73*'DA & crime'!$L$29*15 -> 0 | N73: =F73*('DA & crime'!$M$27+'DA & crime'!$M$30)*15 -> 0 | O73: =F73*'DA & crime'!$N$28*15 -> 0
D74: House burglary | E74: n/a | F74: 0 | G74: DA & crime | L74: =F74*'DA & crime'!$L$32*25 -> 0 | M74: =F74*'DA & crime'!$L$35*25 -> 0 | N74: =F74*('DA & crime'!$M$33+'DA & crime'!$M$36)*25 -> 0 | O74: =F74*'DA & crime'!$N$34*25 -> 0
D75: Police call out | E75: n/a | F75: 0 | M75: =$F75*'DA & crime'!$L$44*6 -> 0
D76: Are costs mutually exclusive? | H76: No | I76: No | J76: No | L76: No | M76: No | N76: No | O76: No
D77: Total benefits (where costs are not mutually exclusive, a range is presented) | H77: =IF(H76="No","(£"&(ROUND(SMALL(H52:H75,COUNTIF(H52:H75,0)+1),0))&" - £"&(ROUND(MAX(H52:H75),0))&")",SUM(H52:H75)) -> (£10400 - £11100) | I77: =IF(I76="No","(£"&(ROUND(SMALL(I52:I75,COUNTIF(I52:I75,0)+1),0))&" - £"&(ROUND(MAX(I52:I75),0))&")",SUM(I52:I75)) -> (£3700 - £3700) | J77: =IF(J76="No","(£"&(ROUND(SMALL(J52:J75,COUNTIF(J52:J75,0)+1),0))&" - £"&(ROUND(MAX(J52:J75),0))&")",SUM(J52:J75)) -> (£16900 - £16900) | L77: =IF(L76="No","(£"&(ROUND(SMALL(L52:L75,COUNTIF(L52:L75,0)+1),0))&" - £"&(ROUND(MAX(L52:L75),0))&")",SUM(L52:L75)) -> (£60 - £2400) | M77: =IF(M76="No","(£"&(ROUND(SMALL(M52:M75,COUNTIF(M52:M75,0)+1),0))&" - £"&(ROUND(MAX(M52:M75),0))&")",SUM(M52:M75)) -> (£2700 - £2700) | N77: =IF(N76="No","(£"&(ROUND(SMALL(N52:N75,COUNTIF(N52:N75,0)+1),0))&" - £"&(ROUND(MAX(N52:N75),0))&")",SUM(N52:N75)) -> (£50 - £50) | O77: =IF(O76="No","(£"&(ROUND(SMALL(O52:O75,COUNTIF(O52:O75,0)+1),0))&" - £"&(ROUND(MAX(O52:O75),0))&")",SUM(O52:O75)) -> (£200 - £18600)
F78: Min | H78: =IF(H76="No",SMALL((H52:H75),COUNTIF(H52:H75,0)+1),SUM(H52:H75)) -> 10400 | I78: =IF(I76="No",SMALL((I52:I75),COUNTIF(I52:I75,0)+1),SUM(I52:I75)) -> 3700 | J78: 16900 | L78: 60 | M78: 2700 | N78: 50 | O78: 200
F79: Max | H79: =IF(H76="No",MAX(H52:H75),SUM(H52:H75)) -> 11100 | I79: =IF(I76="No",MAX(I52:I75),SUM(I52:I75)) -> 3700 | J79: 16900 | L79: 2400 | M79: 2700 | N79: 50 | O79: 18600
C80: COSTS | D80: Alcohol and drug treatment | E80: 0 | F80: 0 | G80: NHS and LA Treatment
D81: Treatment for opioid use | E81: n/a | F81: 0 | G81: NHS and LA Treatment | K81: =F81*'NHS & LA treatment'!$L$20 -> 0
D82: Treatment for non-opioid drug use | E82: n/a | F82: 0 | G82: NHS and LA Treatment | K82: =F82*'NHS & LA treatment'!$L$21 -> 0
D83: Treatment for alcohol use | E83: n/a | F83: 1 | G83: NHS and LA Treatment | K83: =F83*'NHS & LA treatment'!$L$22 -> 1300
D84: Treatment for young people (alcohol and drugs) | E84: 0 | F84: n/a | G84: NHS and LA Treatment | K84: =E84*'NHS & LA treatment'!$L$23 -> 0
D85: Inpatient detoxfication | E85: n/a | F85: 0 | G85: NHS and LA Treatment | K85: =F85*'NHS & LA treatment'!$L$24 -> 0
D86: Residential rehabilitation | E86: n/a | F86: 1 | G86: NHS and LA Treatment | K86: =F86*'NHS & LA treatment'!$L$25 -> 9800
D87: Other treatment cost should be added here | K87: =0 -> 0
D88: Any ongoing treatment or social support cost (for example, early help) | H88: 0 | K88: =0 -> 0
D89: Total costs | H89: =SUM(H81:H88) -> 0 | K89: =SUM(K81:K88) -> 11100
E91: £
D92: Total costs | E92: =SUM(H89:O89) -> 11100
D93: Gross social benefit (LA) | E93: =IF(SUM(H78:K78)=SUM(H79:K79),TEXT(ROUND(SUM(H78:K78),-1),"#,#"),TEXT(ROUND(SUM(H78:K78),-1)," #,# - ")&TEXT(ROUND(SUM(H79:K79),-1),"#,#")) -> 31,000 - 31,700
D94: Net social benefit (LA) | E94: =IF(SUM(H78:K78)=SUM(H79:K79),TEXT(ROUND(SUM(H78:K78)-E92,-1),"#,#"),TEXT(ROUND(SUM(H78:K78)-E92,-1),"#,# - ")&TEXT(ROUND(SUM(H79:K79)-E92,-1),"#,#")) -> 19,900 - 20,600
D95: Social benefit-cost ratio (LA costs) | E95: =IFERROR(IF(SUM(H78:K78)=SUM(H79:K79),TEXT(ROUND(SUM(H78:K78)/E92,2),"#.#0"),TEXT(ROUND(SUM(H78:K78)/E92,2),"#.#0 - ")&TEXT(ROUND(SUM(H79:K79)/E92,2),"#.#0")),0) -> 2.79 - 2.86
D96: Wider net social benefits (gross) | E96: =IF(SUM(H78:O78)=SUM(H79:O79),TEXT(ROUND(SUM(H78:O78),-1),"#,#"),TEXT(ROUND(SUM(H78:O78),-1)," #,# - ")&TEXT(ROUND(SUM(H79:O79),-1),"#,#")) -> 34,010 - 55,450
D97: Wider net social benefits (net) | E97: =IF(SUM(H78:O78)=SUM(H79:O79),TEXT(ROUND(SUM(H78:O78)-E92,-1)," #,#"),TEXT(ROUND(SUM(H78:O78)-E92,-1),"#,# - ")&TEXT(ROUND(SUM(H79:O79)-E92,-1),"#,#")) -> 22,910 - 44,350
D98: Wider social benefit-cost ratio | E98: =IFERROR(IF(SUM(H78:O78)=SUM(H79:O79),TEXT(ROUND(SUM(H78:O78)/E92,2),"#.#0"),TEXT(ROUND(SUM(H78:O78)/E92,2),"#.#0 - ")&TEXT(ROUND(SUM(H79:O79)/E92,2),"#.#0")),0) -> 3.06 - 5.0
C101: Case study 2: Jenny and Steve
C127: In Jenny and Steve's case study there are 6 themes in the checklist that we can cost:
D128: 1. Jenny's baby was subject to an interim care order and Jenny has had children removed from her care before, so we can assume that without intervention the baby would have become looked after by the local authority and removed from the family home
D129: 2. The child is now on home placement agreement, but if Jenny and Steve continue to recover, social care involvement will cease. To be conservative, we have assumed that a year post-intervention the ongoing social care cost will average out to an annual cost of being on a child in need plan
D130: 3. If Steve's violence was fuelled by his drug use, then remaining substance free is likely to stop his violent offending
D131: 4. Domestic abuse
D132: 5. Homelessness
D133: 6. Treatment in the community and in a residential centre
C136: SOCIAL BENEFITS | D136: Cost theme checklist | E136: No. of children | F136: No. of adults | G136: Corresponding tab | H136: Costs avoided in first year after intervention | P136: Notes
H137: Direct costs | N137: Indirect | O137: Intangible
H138: LA | L138: NHS | M138: CJS
H139: Social care | I139: Education | J139: Housing | K139: Treatment
D140: Social care and early help support | G140: Social, YP & kinship care
D141: Looked after - not in high cost placement | E141: 1 | F141: n/a | G141: Social, YP & kinship care | H141: =$E141*'Social, YP & kinship care'!$L$7 -> 60000 | P141: Baby was subject to an interim care order and Jenny has had children removed from her care before, so we can assume that without intervention the baby would have been removed from the home
D142: Child protection plan | E142: 0 | F142: n/a | G142: Social, YP & kinship care | H142: =$E142*'Social, YP & kinship care'!$L$9 -> 0
D143: Child in need | E143: 0 | F143: n/a | G143: Social, YP & kinship care | H143: =$E143*'Social, YP & kinship care'!$L$10 -> 0
D144: Early help | E144: 0 | F144: n/a | G144: Social, YP & kinship care | H144: =$E144*'Social, YP & kinship care'!$L$11 -> 0
D145: Troubled Families programme | E145: 0 | F145: n/a | G145: Social, YP & kinship care | H145: =$E145*'Social, YP & kinship care'!$L$12 -> 0
D146: Young person adopting carer role | E146: 0 | F146: n/a | G146: Social, YP & kinship care | N146: =E146*'Social, YP & kinship care'!$K$20 -> 0
D147: Kinship care | E147: n/a | F147: 0 | G147: Social, YP & kinship care | N147: =F147*'Social, YP & kinship care'!$K$21 -> 0
D148: Exclusion from school | E148: 0 | F148: n/a | G148: Education | H148: =$E148*(Education!$L$10) -> 0 | I148: =$E148*(Education!$L$7) -> 0 | L148: =E148*Education!$L$11 -> 0
D149: Truancy | E149: 0 | F149: n/a | G149: Education | H149: =E149*(Education!$L$16) -> 0 | I149: =E149*(Education!$L$13) -> 0 | L149: =E149*(Education!$L$17) -> 0
D150: Perinatal depression | E150: 0 | F150: n/a | G150: Disorders | L150: =E150*(Disorders!$L$8+Disorders!$L$10+Disorders!$L$11) -> 0 | O150: =E150*(Disorders!$N$8+Disorders!$N$9) -> 0
D151: Perinatal anxiety | E151: 0 | F151: n/a | G151: Disorders | L151: =E151*(Disorders!$L$16+Disorders!$L$17+Disorders!$L$18+Disorders!$L$19) -> 0 | N151: =E151*(Disorders!$M$19) -> 0 | O151: =E151*Disorders!$N$16 -> 0
D152: Conduct disorder | E152: 0 | F152: n/a | G152: Disorders | H152: =$E152*(Disorders!$L$23) -> 0 | I152: =$E152*(Disorders!$L$21) -> 0 | L152: =$E152*Disorders!$L$22 -> 0
D153: Foetal alcohol spectrum disorder | E153: 0 | F153: n/a | G153: Disorders | H153: =$E153*Disorders!$L$26 -> 0 | I153: =$E153*Disorders!$L$28 -> 0 | L153: =$E153*Disorders!$L$25 -> 0
D154: Homelessness | E154: 1 | F154: 1 | G154: Homeslessness | J154: =IF(E154>0,1*Homelessness!$L$6,0) -> 16900 | L154: =E154*(Homelessness!$L$13+Homelessness!$L$14)+F154*Homelessness!$L$8 -> 1200 | M154: =F154*Homelessness!L9 -> 2700 | O154: =E154*Homelessness!$N$15+F154*Homelessness!$N$10 -> 18600
D155: NHS treatment | G155: NHS and LA Treatment
D156: Cognitive behavioural therapy (CBT) for adolescents | E156: 0 | F156: n/a | G156: NHS and LA Treatment | L156: =E156*'NHS & LA treatment'!$L$18 -> 0
D157: Counselling for children with mental or emotional difficulties | E157: 0 | F157: n/a | G157: NHS and LA Treatment | L157: =E157*'NHS & LA treatment'!$L$19 -> 0
D158: Domestic abuse | E158: n/a | F158: 1 | G158: DA & crime | L158: =F158*'DA & crime'!$L$7 -> 1400 | M158: =F158*'DA & crime'!$L$10 -> 1000 | N158: =F158*('DA & crime'!$M$11+'DA & crime'!$M$8) -> 8700 | O158: =F158*'DA & crime'!$N$9 -> 21400
D159: Crime | G159: DA & crime
D160: Violence | E160: n/a | F160: 1 | L160: =F160*AVERAGE('DA & crime'!$L$13,'DA & crime'!$L$19)*6 -> 4200 | M160: =F160*AVERAGE('DA & crime'!$L$16,'DA & crime'!$L$22)*6 -> 15900 | N160: =F160*AVERAGE('DA & crime'!$M$14,'DA & crime'!$M$17,'DA & crime'!$M$20,'DA & crime'!$M$23)*6 -> 5550 | O160: =F160*AVERAGE('DA & crime'!$N$15,'DA & crime'!$N$21)*6 -> 29400 | P160: If Steve's violence was fuelled by his drug use, then remaining substance free is likely to stop his violent offending
D161: Shoplifting | E161: n/a | F161: 0 | G161: DA & crime | M161: =$F161*'DA & crime'!$L$24*100 -> 0
D162: Robbery | E162: n/a | F162: 0 | G162: DA & crime | L162: =F162*'DA & crime'!$L$26*15 -> 0 | M162: =F162*'DA & crime'!$L$29*15 -> 0 | N162: =F162*('DA & crime'!$M$27+'DA & crime'!$M$30)*15 -> 0 | O162: =F162*'DA & crime'!$N$28*15 -> 0
D163: House burglary | E163: n/a | F163: 0 | G163: DA & crime | L163: =F163*'DA & crime'!$L$32*25 -> 0 | M163: =F163*'DA & crime'!$L$35*25 -> 0 | N163: =F163*('DA & crime'!$M$33+'DA & crime'!$M$36)*25 -> 0 | O163: =F163*'DA & crime'!$N$34*25 -> 0
D164: Police call out | E164: n/a | F164: 0 | M164: =$F164*'DA & crime'!$L$44*6 -> 0
D165: Are costs mutually exclusive? | H165: Yes | I165: [Select] | J165: Yes | L165: No | M165: No | N165: Yes | O165: No
D166: Total benefits (where costs are not mutually exclusive, a range is presented) | H166: =IF(H165="No","(£"&(ROUND(SMALL(H141:H164,COUNTIF(H141:H164,0)+1),0))&" - £"&(ROUND(MAX(H141:H164),0))&")",SUM(H141:H164)) -> 60000 | I166: =IF(I165="No","(£"&(ROUND(SMALL(I141:I164,COUNTIF(I141:I164,0)+1),0))&" - £"&(ROUND(MAX(I141:I164),0))&")",SUM(I141:I164)) -> 0 | J166: 16900 | L166: =IF(L165="No","(£"&(ROUND(SMALL(L141:L164,COUNTIF(L141:L164,0)+1),0))&" - £"&(ROUND(MAX(L141:L164),0))&")",SUM(L141:L164)) -> (£1200 - £4200) | M166: (£1000 - £15900) | N166: 14250 | O166: (£18600 - £29400)
H167: =IF(H165="No",SMALL((H141:H164),COUNTIF(H141:H164,0)+1),SUM(H141:H164)) -> 60000 | I167: =IF(I165="No",SMALL((I141:I164),COUNTIF(I141:I164,0)+1),SUM(I141:I164)) -> 0 | J167: 16900 | L167: 1200 | M167: 1000 | N167: 14250 | O167: 18600
H168: =IF(H165="No",MAX(H141:H164),SUM(H141:H164)) -> 60000 | I168: =IF(I165="No",MAX(I141:I164),SUM(I141:I164)) -> 0 | J168: 16900 | L168: 4200 | M168: 15900 | N168: 14250 | O168: 29400
C169: COSTS | D169: Alcohol and drug treatment | E169: 0 | F169: 0 | G169: NHS and LA Treatment
D170: Treatment for opioid use | E170: n/a | F170: 2 | G170: NHS and LA Treatment | K170: =F170*'NHS & LA treatment'!$L$20 -> 5600 | P170: Assume the support programme Jenny and Steve received costs the same as standard treatment for heroin use
D171: Treatment for non-opioid drug use | E171: n/a | F171: 0 | G171: NHS and LA Treatment | K171: =F171*'NHS & LA treatment'!$L$21 -> 0
D172: Treatment for alcohol use | E172: n/a | F172: 0 | G172: NHS and LA Treatment | K172: =F172*'NHS & LA treatment'!$L$22 -> 0
D173: Treatment for young people (alcohol and drugs) | E173: 0 | F173: n/a | G173: NHS and LA Treatment | K173: =E173*'NHS & LA treatment'!$L$23 -> 0
D174: Inpatient detoxfication | E174: n/a | F174: 0 | G174: NHS and LA Treatment | K174: =F174*'NHS & LA treatment'!$L$24 -> 0
D175: Residential rehabilitation | E175: n/a | F175: 2 | G175: NHS and LA Treatment | K175: =F175*'NHS & LA treatment'!$L$25 -> 19600 | P175: Assume Steve received tx for 10% of the time
D176: Other treatment cost should be added here | K176: =0 -> 0
D177: Any ongoing treatment or social support cost (for example, early help) | H177: ='Social, YP & kinship care'!L10 -> 9300 | K177: =0 -> 0 | P177: The child is now on home placement agreement, but if Jenny and Steve continue to recover, social care involvement will cease. To be conservative, we have assumed that a year post-intervention the ongoing social care cost will average out to an annual cost of being on a child in need plan
D178: Total costs | H178: =SUM(H170:H177) -> 9300 | K178: =SUM(K170:K177) -> 25200
E180: £
D181: Total costs | E181: =SUM(H178:O178) -> 34500
D182: Gross social benefit (LA) | E182: =IF(SUM(H167:K167)=SUM(H168:K168),TEXT(ROUND(SUM(H167:K167),-1),"#,#"),TEXT(ROUND(SUM(H167:K167),-1)," #,# - ")&TEXT(ROUND(SUM(H168:K168),-1),"#,#")) -> 76,900
D183: Net social benefit (LA) | E183: =IF(SUM(H167:K167)=SUM(H168:K168),TEXT(ROUND(SUM(H167:K167)-E181,-1),"#,#"),TEXT(ROUND(SUM(H167:K167)-E181,-1),"#,# - ")&TEXT(ROUND(SUM(H168:K168)-E181,-1),"#,#")) -> 42,400
D184: Social benefit-cost ratio (LA costs) | E184: =IFERROR(IF(SUM(H167:K167)=SUM(H168:K168),TEXT(ROUND(SUM(H167:K167)/E181,2),"#.#0"),TEXT(ROUND(SUM(H167:K167)/E181,2),"#.#0 - ")&TEXT(ROUND(SUM(H168:K168)/E181,2),"#.#0")),0) -> 2.23
D185: Wider net social benefits (gross) | E185: =IF(SUM(H167:O167)=SUM(H168:O168),TEXT(ROUND(SUM(H167:O167),-1),"#,#"),TEXT(ROUND(SUM(H167:O167),-1)," #,# - ")&TEXT(ROUND(SUM(H168:O168),-1),"#,#")) -> 111,950 - 140,650
D186: Wider net social benefits (net) | E186: =IF(SUM(H167:O167)=SUM(H168:O168),TEXT(ROUND(SUM(H167:O167)-E181,-1)," #,#"),TEXT(ROUND(SUM(H167:O167)-E181,-1),"#,# - ")&TEXT(ROUND(SUM(H168:O168)-E181,-1),"#,#")) -> 77,450 - 106,150
D187: Wider social benefit-cost ratio | E187: =IFERROR(IF(SUM(H167:O167)=SUM(H168:O168),TEXT(ROUND(SUM(H167:O167)/E181,2),"#.#0"),TEXT(ROUND(SUM(H167:O167)/E181,2),"#.#0 - ")&TEXT(ROUND(SUM(H168:O168)/E181,2),"#.#0")),0) -> 3.24 - 4.08
C190: Case study 3: Hannah and Dave
C212: In Hannah and Dave's case study there are 4 themes in the checklist that we can cost:
D213: 1. All 5 children moved from child protection to child in need plans
D214: 2. The eldest daughter was a young carer
D215: 3. Two children were truanting from school, both were displaying physical and verbal aggression as well and one running away from home and so were likely to have become expelled
D216: 4. Family therapy for Hannah and her children
C219: SOCIAL BENEFITS | D219: Cost theme checklist | E219: No. of children | F219: No. of adults | G219: Corresponding tab | H219: Costs avoided in first year after intervention | P219: Notes
H220: Direct costs | N220: Indirect | O220: Intangible
H221: LA | L221: NHS | M221: CJS
H222: Social care | I222: Education | J222: Housing | K222: Treatment
D223: Social care and early help support | G223: Social, YP & kinship care
D224: Looked after - not in high cost placement | E224: 0 | F224: n/a | G224: Social, YP & kinship care | H224: =$E224*'Social, YP & kinship care'!$L$7 -> 0
D225: Child protection plan | E225: 5 | F225: n/a | G225: Social, YP & kinship care | H225: =$E225*'Social, YP & kinship care'!$L$9 -> 52000 | P225: This is a conservative estimate. Given the family circumstances, it is probable that the children would have been stepped up tp child looked after status.
D226: Child in need | E226: 0 | F226: n/a | G226: Social, YP & kinship care | H226: =$E226*'Social, YP & kinship care'!$L$10 -> 0
D227: Early help | E227: 0 | F227: n/a | G227: Social, YP & kinship care | H227: =$E227*'Social, YP & kinship care'!$L$11 -> 0
D228: Troubled Families programme | E228: 0 | F228: n/a | G228: Social, YP & kinship care | H228: =$E228*'Social, YP & kinship care'!$L$12 -> 0
D229: Young person adopting carer role | E229: 1 | F229: n/a | G229: Social, YP & kinship care | N229: =E229*'Social, YP & kinship care'!$K$20 -> 5900
D230: Kinship care | E230: n/a | F230: 0 | G230: Social, YP & kinship care | N230: =F230*'Social, YP & kinship care'!$K$21 -> 0
D231: Exclusion from school | E231: 2 | F231: n/a | G231: Education | H231: =$E231*(Education!$L$10) -> 4800 | I231: =$E231*(Education!$L$7) -> 20400 | L231: =E231*Education!$L$11 -> 200
D232: Truancy | E232: 0 | F232: n/a | G232: Education | H232: =E232*(Education!$L$16) -> 0 | I232: =E232*(Education!$L$13) -> 0 | L232: =E232*(Education!$L$17) -> 0
D233: Perinatal depression | E233: 0 | F233: n/a | G233: Disorders | L233: =E233*(Disorders!$L$8+Disorders!$L$10+Disorders!$L$11) -> 0 | O233: =E233*(Disorders!$N$8+Disorders!$N$9) -> 0
D234: Perinatal anxiety | E234: 0 | F234: n/a | G234: Disorders | L234: =E234*(Disorders!$L$16+Disorders!$L$17+Disorders!$L$18+Disorders!$L$19) -> 0 | N234: =E234*(Disorders!$M$19) -> 0 | O234: =E234*Disorders!$N$16 -> 0
D235: Conduct disorder | E235: 0 | F235: n/a | G235: Disorders | H235: =$E235*(Disorders!$L$23) -> 0 | I235: =$E235*(Disorders!$L$21) -> 0 | L235: =$E235*Disorders!$L$22 -> 0
D236: Foetal alcohol spectrum disorder | E236: 0 | F236: n/a | G236: Disorders | H236: =$E236*Disorders!$L$26 -> 0 | I236: =$E236*Disorders!$L$28 -> 0 | L236: =$E236*Disorders!$L$25 -> 0
D237: Homelessness | E237: 0 | F237: 0 | G237: Homeslessness | J237: =IF(E237>0,1*Homelessness!$L$6,0) -> 0 | L237: =E237*(Homelessness!$L$13+Homelessness!$L$14)+F237*Homelessness!$L$8 -> 0 | M237: =F237*Homelessness!#REF! ->  | O237: =E237*Homelessness!$N$15+F237*Homelessness!$N$10 -> 0
D238: NHS treatment | G238: NHS and LA Treatment
D239: Cognitive behavioural therapy (CBT) for adolescents | E239: 0 | F239: n/a | G239: NHS and LA Treatment | L239: =E239*'NHS & LA treatment'!$L$18 -> 0
D240: Counselling for children with mental or emotional difficulties | E240: 0 | F240: n/a | G240: NHS and LA Treatment | L240: =E240*'NHS & LA treatment'!$L$19 -> 0
D241: Domestic abuse | E241: n/a | F241: 0 | G241: DA & crime | L241: =F241*'DA & crime'!$L$7 -> 0 | M241: =F241*'DA & crime'!$L$10 -> 0 | N241: =F241*('DA & crime'!$M$11+'DA & crime'!$M$8) -> 0 | O241: =F241*'DA & crime'!$N$9 -> 0
D242: Crime | G242: DA & crime
D243: Violence | E243: n/a | F243: 0 | L243: =F243*AVERAGE('DA & crime'!$L$13,'DA & crime'!$L$19)*6 -> 0 | M243: =F243*AVERAGE('DA & crime'!$L$16,'DA & crime'!$L$22)*6 -> 0 | N243: =F243*AVERAGE('DA & crime'!$M$14,'DA & crime'!$M$17,'DA & crime'!$M$20,'DA & crime'!$M$23)*6 -> 0 | O243: =F243*AVERAGE('DA & crime'!$N$15,'DA & crime'!$N$21)*6 -> 0
D244: Shoplifting | E244: n/a | F244: 0 | G244: DA & crime | M244: =$F244*'DA & crime'!$L$24*100 -> 0
D245: Robbery | E245: n/a | F245: 0 | G245: DA & crime | L245: =F245*'DA & crime'!$L$26*15 -> 0 | M245: =F245*'DA & crime'!$L$29*15 -> 0 | N245: =F245*('DA & crime'!$M$27+'DA & crime'!$M$30)*15 -> 0 | O245: =F245*'DA & crime'!$N$28*15 -> 0
D246: House burglary | E246: n/a | F246: 0 | G246: DA & crime | L246: =F246*'DA & crime'!$L$32*25 -> 0 | M246: =F246*'DA & crime'!$L$35*25 -> 0 | N246: =F246*('DA & crime'!$M$33+'DA & crime'!$M$36)*25 -> 0 | O246: =F246*'DA & crime'!$N$34*25 -> 0
D247: Police call out | E247: n/a | F247: 0 | M247: =$F247*'DA & crime'!$L$44*6 -> 0
D248: Are costs mutually exclusive? | H248: Yes | I248: Yes | J248: Yes | L248: Yes | M248: No | N248: Yes | O248: [Select]
D249: Total benefits (where costs are not mutually exclusive, a range is presented) | H249: =IF(H248="No","(£"&(ROUND(SMALL(H224:H247,COUNTIF(H224:H247,0)+1),0))&" - £"&(ROUND(MAX(H224:H247),0))&")",SUM(H224:H247)) -> 56800 | I249: =IF(I248="No","(£"&(ROUND(SMALL(I224:I247,COUNTIF(I224:I247,0)+1),0))&" - £"&(ROUND(MAX(I224:I247),0))&")",SUM(I224:I247)) -> 20400 | J249: =IF(J248="No","(£"&(ROUND(SMALL(J224:J247,COUNTIF(J224:J247,0)+1),0))&" - £"&(ROUND(MAX(J224:J247),0))&")",SUM(J224:J247)) -> 0 | L249: =IF(L248="No","(£"&(ROUND(SMALL(L224:L247,COUNTIF(L224:L247,0)+1),0))&" - £"&(ROUND(MAX(L224:L247),0))&")",SUM(L224:L247)) -> 200 | M249: 0 | N249: =IF(N248="No","(£"&(ROUND(SMALL(N224:N247,COUNTIF(N224:N247,0)+1),0))&" - £"&(ROUND(MAX(N224:N247),0))&")",SUM(N224:N247)) -> 5900 | O249: =IF(O248="No","(£"&(ROUND(SMALL(O224:O247,COUNTIF(O224:O247,0)+1),0))&" - £"&(ROUND(MAX(O224:O247),0))&")",SUM(O224:O247)) -> 0
H250: =IF(H248="No",SMALL((H224:H247),COUNTIF(H224:H247,0)+1),SUM(H224:H247)) -> 56800 | I250: =IF(I248="No",SMALL((I224:I247),COUNTIF(I224:I247,0)+1),SUM(I224:I247)) -> 20400 | J250: 0 | L250: =IF(L248="No",SMALL((L224:L247),COUNTIF(L224:L247,0)+1),SUM(L224:L247)) -> 200 | M250: 0 | N250: 5900 | O250: 0
H251: =IF(H248="No",MAX(H224:H247),SUM(H224:H247)) -> 56800 | I251: =IF(I248="No",MAX(I224:I247),SUM(I224:I247)) -> 20400 | J251: 0 | L251: =IF(L248="No",MAX(L224:L247),SUM(L224:L247)) -> 200 | M251: 0 | N251: 5900 | O251: 0
C252: COSTS | D252: Alcohol and/or drug treatment | E252: 0 | F252: 0 | G252: NHS and LA Treatment
B253: Treatment for opioid use | D253: n/a | E253: 0 | F253: NHS and LA Treatment | J253: =F253*'NHS & LA treatment'!$L$20 -> 
D254: Treatment for non-opioid drug use | E254: n/a | F254: 0 | G254: NHS and LA Treatment | K254: =F254*'NHS & LA treatment'!$L$21 -> 0
D255: Treatment for alcohol use | E255: n/a | F255: =1+(0.5*1) -> 1.5 | G255: NHS and LA Treatment | K255: =F255*'NHS & LA treatment'!$L$22 -> 1950 | P255: We have assumed the cost of treating the children are half that of treating mother for alcohol dependency and the children can be considered as one 'unit' for costs purposes.
D256: Treatment for young people (alcohol and drugs) | E256: 0 | F256: n/a | G256: NHS and LA Treatment | K256: =E256*'NHS & LA treatment'!$L$23 -> 0
D257: Inpatient detoxfication | E257: n/a | F257: 0 | G257: NHS and LA Treatment | K257: =F257*'NHS & LA treatment'!$L$24 -> 0
D258: Residential rehabilitation | E258: n/a | F258: 0 | G258: NHS and LA Treatment | K258: =F258*'NHS & LA treatment'!$L$25 -> 0
D259: Other treatment cost should be added here | K259: =0 -> 0
D260: Any ongoing treatment or social support cost (for example, early help) | H260: =5*'Social, YP & kinship care'!$L$10 -> 46500 | K260: =0 -> 0 | P260: Child in need plans for the 5 children
D261: Total costs | H261: =SUM(H253:H260) -> 46500 | K261: =SUM(K253:K260) -> 1950
E263: £
D264: Total costs | E264: =SUM(H261:O261) -> 48450
D265: Gross social benefit (LA) | E265: =IF(SUM(H250:K250)=SUM(H251:K251),TEXT(ROUND(SUM(H250:K250),-1),"#,#"),TEXT(ROUND(SUM(H250:K250),-1)," #,# - ")&TEXT(ROUND(SUM(H251:K251),-1),"#,#")) -> 77,200
D266: Net social benefit (LA) | E266: =IF(SUM(H250:K250)=SUM(H251:K251),TEXT(ROUND(SUM(H250:K250)-E264,-1),"#,#"),TEXT(ROUND(SUM(H250:K250)-E264,-1),"#,# - ")&TEXT(ROUND(SUM(H251:K251)-E264,-1),"#,#")) -> 28,750
D267: Social benefit-cost ratio (LA costs) | E267: =IFERROR(IF(SUM(H250:K250)=SUM(H251:K251),TEXT(ROUND(SUM(H250:K250)/E264,2),"#.#0"),TEXT(ROUND(SUM(H250:K250)/E264,2),"#.#0 - ")&TEXT(ROUND(SUM(H251:K251)/E264,2),"#.#0")),0) -> 1.59
D268: Wider net social benefits (gross) | E268: =IF(SUM(H250:O250)=SUM(H251:O251),TEXT(ROUND(SUM(H250:O250),-1),"#,#"),TEXT(ROUND(SUM(H250:O250),-1)," #,# - ")&TEXT(ROUND(SUM(H251:O251),-1),"#,#")) -> 83,300
D269: Wider net social benefits (net) | E269: =IF(SUM(H250:O250)=SUM(H251:O251),TEXT(ROUND(SUM(H250:O250)-E264,-1)," #,#"),TEXT(ROUND(SUM(H250:O250)-E264,-1),"#,# - ")&TEXT(ROUND(SUM(H251:O251)-E264,-1),"#,#")) -> 34,850
D270: Wider social benefit-cost ratio | E270: =IFERROR(IF(SUM(H250:O250)=SUM(H251:O251),TEXT(ROUND(SUM(H250:O250)/E264,2),"#.#0"),TEXT(ROUND(SUM(H250:O250)/E264,2),"#.#0 - ")&TEXT(ROUND(SUM(H251:O251)/E264,2),"#.#0")),0) -> 1.72
C273: Case study 4: Tracey and Darryl
C296: In Tracey and Darryl's case study there are 3 themes in the checklist that we can cost:
D297: 1. Both children were removed from child in need plans
D298: 2. Frequent police call outs would cease as parents' relationship has improved
D299: 3. Detox for Tracey and family therapy for the family
C302: SOCIAL BENEFITS | D302: Cost theme checklist | E302: No. of children | F302: No. of adults | G302: Corresponding tab | H302: Costs avoided in first year after intervention | P302: Notes
H303: Direct costs | N303: Indirect | O303: Intangible
H304: LA | L304: NHS | M304: CJS
H305: Social care | I305: Education | J305: Housing | K305: Treatment
D306: Social care and early help support | G306: Social, YP & kinship care
D307: Looked after - not in high cost placement | E307: 0 | F307: n/a | G307: Social, YP & kinship care | H307: =$E307*'Social, YP & kinship care'!$L$7 -> 0
D308: Child protection plan | E308: 0 | F308: n/a | G308: Social, YP & kinship care | H308: =$E308*'Social, YP & kinship care'!$L$9 -> 0 | P308: This is a conservative estimate. Given the family circumstances, it is probable that the children would have been stepped up tp child looked after status.
D309: Child in need | E309: 2 | F309: n/a | G309: Social, YP & kinship care | H309: =$E309*'Social, YP & kinship care'!$L$10 -> 18600
D310: Early help | E310: 0 | F310: n/a | G310: Social, YP & kinship care | H310: =$E310*'Social, YP & kinship care'!$L$11 -> 0
D311: Troubled Families programme | E311: 0 | F311: n/a | G311: Social, YP & kinship care | H311: =$E311*'Social, YP & kinship care'!$L$12 -> 0
D312: Young person adopting carer role | E312: 0 | F312: n/a | G312: Social, YP & kinship care | N312: =E312*'Social, YP & kinship care'!$K$20 -> 0
D313: Kinship care | E313: n/a | F313: 0 | G313: Social, YP & kinship care | N313: =F313*'Social, YP & kinship care'!$K$21 -> 0
D314: Exclusion from school | E314: 0 | F314: n/a | G314: Education | H314: =$E314*(Education!$L$10) -> 0 | I314: =$E314*(Education!$L$7) -> 0 | L314: =E314*Education!$L$11 -> 0
D315: Truancy | E315: 0 | F315: n/a | G315: Education | H315: =E315*(Education!$L$16) -> 0 | I315: =E315*(Education!$L$13) -> 0 | L315: =E315*(Education!$L$17) -> 0
... 37 more rows

Sheet Sheet4 (hidden)
D3: [Select]
D4: Yes
D5: No

Sheet Part 2 - UC database
D2: Part 2: Unit cost database
D4: Costs themes are presented below, and can be selected by clicking on the appropriate corresponding tab.
D5: Costs are broken down into 3 types: direct, indirect and intangible. Direct costs are estimated costs that directly relate to providing treatment and support. For example, costs to the local authority (LA), NHS or criminal justice system. Economic evaluations typically include wider indirect and intangible costs. Where available, we have also presented these so you can use them to estimate wider social and economic costs. Indirect costs generally relate to productivity losses from people being ill or dying prematurely. Intangible costs represent disease burden and are quantified as quality-adjusted life years (QALYs) and valued at £60,000 per QALY. All costs are in 2020 to 2021 prices (see Annexes for reference) and rounded to emphasise that costs are estimates. The database presents most costs as annual costs. It also presents lifetime costs where these exist, along with methodological explanations such as how many years make up the ‘lifetime’. We have included references for the sources of all costs with links to the publication and an explanation of calculations and limitations.
D7: Contents
D9: Cost theme | E9: Corresponding tab
D10: Social care | E10: Social, YP & kinship care
D11: Young carers | E11: Social, YP & kinship care
D12: Kinship carers | E12: Social, YP & kinship care
D13: Education | E13: =D13 -> Education
D14: Perinatal depression | E14: Disorders
D15: Perinatal anxiety | E15: Disorders
D16: Conduct disorder | E16: Disorders
D17: Foetal alcohol spectrum disorder | E17: Disorders
D18: Homelessness | E18: =D18 -> Homelessness
D19: NHS treatment | E19: NHS and LA Treatment
D20: Alcohol and drug treatment | E20: NHS and LA Treatment
D21: Domestic abuse | E21: DA & crime
D22: Crime (by Home Office crime types) | E22: DA & crime
D25: If you are aware of a unit cost that you think should be included in the database, please contact: Virginia.Wright@phe.gov.uk, Parents, Carers and Families (alcohol and drugs) Programme Manager

Sheet Social, YP & kinship care
C2: Social, YP and kinship care unit costs
C3: Note: you can access the rows containing breakdowns of annual and lifetime costs (if available or applicable), including reference year, by clicking on [+] above rows K and S. Hovering over a cell with a red triangle on the upper right hand corner provides more information.
C4: Cost grouping | D4: Cost name | E4: Average | F4: Annual cost as reported | J4: Publication year costs and currency | K4: Annual costs (2020 to 2021 prices, rounded) | O4: Lifetime costs | S4: Who pays? | U4: Timeframe (for lifetime costs) | V4: Geography | W4: References | Z4: Methodological limitations/ bias/ notes
F5: Total | G5: Direct (LA/ NHS/ CJS) | H5: Indirect | I5: Intangible (QALYs) | K5: =F5 -> Total | L5: Direct (LA/ NHS/ CJS) | M5: Indirect | N5: Intangible (QALYs) | O5: =K5 -> Total | P5: Direct (LA/ NHS/ CJS) | Q5: Indirect | R5: Intangible (QALYs) | W5: Title and author | X5: Year | Y5: Link to source
C6: Social care | D6: Looked after child in high cost placement (4k+ a week) | E6: Per child | F6: 260000 | G6: =F6 -> 260000 | J6: £s, 2017/18 | K6: =ROUND((F6*(_202021/_201718)),-4) -> 290000 | L6: 290000 | S6: LA | U6: n/a | V6: England | W6: Children's commissioner 'Estimating Children’s Services spending on vulnerable children: Vulnerability technical spend report' | X6: 2019 | Y6: https://www.childrenscommissioner.gov.uk/wp-content/uploads/2019/07/cco-vulnerability-2019-spend-report.pdf | Z6: Data from 9 councils only, but with a reasonable geographic distribution. Not possible to know how market forces would vary costs nationally. LAs from North East and West Midlands not included in the study. Possible bias owing to small sample size.
C7: Social care | D7: Looked after child in not high cost placement (<4k a week) | E7: Per child | F7: 53000 | G7: =F7 -> 53000 | J7: £s, 2017/18 | K7: =ROUND((F7*(_202021/_201718)),-4) -> 60000 | L7: =ROUND((G7*(_202021/_201718)),-4) -> 60000 | S7: LA | U7: n/a | V7: England | W7: Children's commissioner 'Estimating Children’s Services spending on vulnerable children: Vulnerability technical spend report' | X7: 2019 | Y7: https://www.childrenscommissioner.gov.uk/wp-content/uploads/2019/07/cco-vulnerability-2019-spend-report.pdf | Z7: Data from 9 councils only, but with a reasonable geographic distribution. Not possible to know how market forces would vary costs nationally. LAs from North East and West Midlands not included in the study. Possible bias owing to small sample size.
C8: Social care | D8: Permanency | E8: Per child | F8: 7000 | G8: 7000 | J8: £s, 2017/18 | K8: =ROUND((F8*(_202021/_201718)),-2) -> 7800 | L8: =K8 -> 7800 | S8: LA | U8: n/a | V8: England | W8: Children's commissioner 'Estimating Children’s Services spending on vulnerable children: Vulnerability technical spend report' | X8: 2019 | Y8: https://www.childrenscommissioner.gov.uk/wp-content/uploads/2019/07/cco-vulnerability-2019-spend-report.pdf | Z8: Data from 9 councils only, but with a reasonable geographic distribution. Not possible to know how market forces would vary costs nationally. LAs from North East and West Midlands not included in the study. Possible bias owing to small sample size.
C9: Social care | D9: Child protection plan | E9: Per child | F9: 9300 | G9: 9300 | J9: £s, 2017/18 | K9: 10400 | L9: =K9 -> 10400 | S9: LA | U9: n/a | V9: England | W9: Children's commissioner 'Estimating Children’s Services spending on vulnerable children: Vulnerability technical spend report' | X9: 2019 | Y9: https://www.childrenscommissioner.gov.uk/wp-content/uploads/2019/07/cco-vulnerability-2019-spend-report.pdf | Z9: Data from 9 councils only, but with a reasonable geographic distribution. Not possible to know how market forces would vary costs nationally. LAs from North East and West Midlands not included in the study. Possible bias owing to small sample size.
C10: Social care | D10: Child in need | E10: Per child | F10: 8300 | G10: 8300 | J10: £s, 2017/18 | K10: 9300 | L10: 9300 | S10: LA | U10: n/a | V10: England | W10: Children's commissioner 'Estimating Children’s Services spending on vulnerable children: Vulnerability technical spend report' | X10: 2019 | Y10: https://www.childrenscommissioner.gov.uk/wp-content/uploads/2019/07/cco-vulnerability-2019-spend-report.pdf | Z10: Data from 9 councils only, but with a reasonable geographic distribution. Not possible to know how market forces would vary costs nationally. LAs from North East and West Midlands not included in the study. Possible bias owing to small sample size.
C11: Social care | D11: Early help | E11: Per child | F11: 3500 | G11: 3500 | J11: £s, 2017/18 | K11: 3900 | L11: 3900 | S11: LA | U11: n/a | V11: England | W11: Children's commissioner 'Estimating Children’s Services spending on vulnerable children: Vulnerability technical spend report' | X11: 2019 | Y11: https://www.childrenscommissioner.gov.uk/wp-content/uploads/2019/07/cco-vulnerability-2019-spend-report.pdf | Z11: Data from 9 councils only, but with a reasonable geographic distribution. Not possible to know how market forces would vary costs nationally. LAs from North East and West Midlands not included in the study. Possible bias owing to small sample size.
C12: Social care | D12: Troubled Families programme | E12: Per child | F12: 1600 | G12: 1600 | J12: £s, 2017/18 | K12: 1800 | L12: 1800 | S12: LA | U12: n/a | V12: England | W12: Children's commissioner 'Estimating Children’s Services spending on vulnerable children: Vulnerability technical spend report' | X12: 2019 | Y12: https://www.childrenscommissioner.gov.uk/wp-content/uploads/2019/07/cco-vulnerability-2019-spend-report.pdf | Z12: Data from 9 councils only, but with a reasonable geographic distribution. Not possible to know how market forces would vary costs nationally. LAs from North East and West Midlands not included in the study. Possible bias owing to small sample size.
C13: Social care | D13: Young offender (convicted) | E13: Per child | F13: 10000 | G13: 10000 | J13: £s, 2017/18 | K13: 11200 | L13: 11200 | S13: LA | U13: n/a | V13: England | W13: Children's commissioner 'Estimating Children’s Services spending on vulnerable children: Vulnerability technical spend report' | X13: 2019 | Y13: https://www.childrenscommissioner.gov.uk/wp-content/uploads/2019/07/cco-vulnerability-2019-spend-report.pdf | Z13: Data from 9 councils only, but with a reasonable geographic distribution. Not possible to know how market forces would vary costs nationally. LAs from North East and West Midlands not included in the study. Possible bias owing to small sample size.
C14: Social care | D14: NEET youth support | E14: Per child | F14: 4900 | G14: 4900 | J14: £s, 2017/18 | K14: 5500 | L14: 5500 | S14: LA | U14: n/a | V14: England | W14: Children's commissioner 'Estimating Children’s Services spending on vulnerable children: Vulnerability technical spend report' | X14: 2019 | Y14: https://www.childrenscommissioner.gov.uk/wp-content/uploads/2019/07/cco-vulnerability-2019-spend-report.pdf | Z14: Data from 9 councils only, but with a reasonable geographic distribution. Not possible to know how market forces would vary costs nationally. LAs from North East and West Midlands not included in the study. Possible bias owing to small sample size.
C15: Social care | D15: Section 31 care order: overall cost | E15: Per child | F15: 25000 | G15: 25000 | J15: £s, 2005/06 | K15: 28000 | L15: 28000 | S15: Multiple | U15: n/a | V15: England and Wales | W15: Taken from the New Economy Manchester Unit cost database. Original report was DCA and DfES 'Review of the Child Care Proceedings System in England and Wales' | X15: 2006 | Y15: http://www.familieslink.co.uk/download/june07/Review%20of%20child%20care.pdf | Z15: Note age of data - process, and related costings, may have changed over this period. Note that a year for the cost data is not specified in the source, but it has been assumed to be 2005 to 2006, as other relevant data are from this year.
C16: Social care | D16: Section 31 care order: Legal aid costs | E16: Per child | F16: 15000 | G16: 15000 | J16: £s, 2005/06 | K16: =ROUND((F16*(_202021/_200506)),-2) -> 21200 | L16: =K16 -> 21200 | S16: Criminal Justice System | U16: n/a | V16: England and Wales | W16: Ditto | X16: 2006 | Y16: http://www.familieslink.co.uk/download/june07/Review%20of%20child%20care.pdf | Z16: Ditto
C17: Social care | D17: Section 31 care order: local authority costs | E17: Per child | F17: 6250 | G17: 6250 | J17: £s, 2005/06 | K17: =ROUND((F17*(_202021/_200506)),-2) -> 8800 | L17: 8800 | S17: Local Authority | U17: n/a | V17: England and Wales | W17: Ditto | X17: 2006 | Y17: http://www.familieslink.co.uk/download/june07/Review%20of%20child%20care.pdf | Z17: Ditto
C18: Social care | D18: Section 31 care order: court costs | E18: Per child | F18: 1250 | G18: 1250 | J18: £s, 2005/06 | K18: =ROUND((F18*(_202021/_200506)),-2) -> 1800 | L18: 1800 | S18: Criminal Justice System | U18: n/a | V18: England and Wales | W18: Ditto | X18: 2006 | Y18: http://www.familieslink.co.uk/download/june07/Review%20of%20child%20care.pdf | Z18: Ditto
C19: Social care | D19: Section 31 care order: Children and Family Court Advisory and Support Service (CAFCASS) costs | E19: Per child | F19: 2500 | G19: 2500 | J19: £s, 2005/06 | K19: =ROUND((F19*(_202021/_200506)),-2) -> 3500 | L19: 3500 | S19: Department for Education | U19: n/a | V19: England and Wales | W19: Ditto | X19: 2006 | Y19: http://www.familieslink.co.uk/download/june07/Review%20of%20child%20care.pdf | Z19: Ditto
C20: Young carer | D20: Unpaid work equivalent | E20: Per carer | F20: =4.55*52*25 -> 5915 | H20: =F20 -> 5915 | J20: £s, 2020/21 | K20: =ROUND(F20,-2) -> 5900 | M20: =K20 -> 5900 | O20: =ROUND(M20*SUM('Perinatal MH QALY calcs'!C6:C17),-2) -> 59000 | Q20: =O20 -> 59000 | S20: n/a | U20: 11 years (from 7 years old) | V20: England | W20: Action for Children | X20: 2020 | Y20: https://www.actionforchildren.org.uk/news-and-blogs/press-releases/2020/february/uks-hidden-child-workforce/ | Z20: Lifetime costs calculated for average 7 year old, lasting until they reach 18 years old. Adapted Action for Children method - using minimum wage instead of hourly rate of £9.78 per part-time carer. Fifty-two weeks of the year inluded as survey found that during holidays, young carers worked more, not less.
C21: Kinship care | D21: Foregone employment | E21: Per carer | F21: 682.476608 | H21: =F21 -> 682.476608 | J21: £s, 2018/19 | K21: =ROUND((F21*(_202021/_201819)),-2) -> 700 | M21: =K21 -> 700 | S21: n/a | U21: n/a | V21: England | W21: Dame Carol Black Review of Drugs - evidence relating to drug use, supply and effects, including current trends and future risks | X21: 2019 | Y21: https://assets.publishing.service.gov.uk/government/uploads/system/uploads/attachment_data/file/882953/Review_of_Drugs_Evidence_Pack.pdf | Z21: Forty-four percent of kinship carers give up work to look after children. An estimated 226 hours estimated to be spent looking after children, which has been mulipltied by the minimum wage.

Sheet Education
C2: Education unit costs
C3: Note: you can access the rows containing breakdowns of annual and lifetime costs (if available or applicable), including reference year, by clicking on [+] above rows K and S. Hovering over a cell with a red triangle on the upper right hand corner provides more information.
C4: Cost grouping | D4: Cost name | E4: Average | F4: Annual cost as reported | J4: Publication year costs and currency | K4: Annual costs (2020 to 2021 prices, rounded) | O4: Lifetime costs | S4: Who pays? | U4: Timeframe (for lifetime costs) | V4: Geography | W4: References | Z4: Methodological limitations/ bias/ notes
F5: Total | G5: Direct (LA/ NHS/ CJS) | H5: Indirect | I5: Intangible (QALYs) | K5: =F5 -> Total | L5: Direct (LA/ NHS/ CJS) | M5: Indirect | N5: Intangible (QALYs) | O5: =K5 -> Total | P5: Direct (LA/ NHS/ CJS) | Q5: Indirect | R5: Intangible (QALYs) | W5: Title and author | X5: Year | Y5: Link to source
C6: School exclusion | D6: Overall cost | E6: Per child | F6: =F7+F10+F11+F8+F9 -> 8907.611111 | G6: =G7+G10+G11+G8+G9 -> 8907.611111 | J6: £s, 2005 | K6: =ROUND(K7+K10+K11+K8+K9,-2) -> 12700 | L6: =ROUND(L7+L10+L11+L8+L9,-2) -> 12700 | O6: =O7+O10+O11+O8+O9 -> 84600 | P6: =P7+P10+P11+P8+P9 -> 47000 | Q6: =Q7+Q10+Q11+Q8+Q9 -> 37600 | S6: Multiple | U6: Multiple | V6: England | W6: Brooks et al. Misspent Youth: The costs of truancy and exclusion. | X6: 2007 | Y6: https://www.thinknpc.org/resource-hub/misspent-youth/ | Z6: 2005 costs mostly uplifted paper old papers. Net cost calculated however, estimates are based on old data so not possible to estimate the accuracy of the estimate.
C7: School exclusion | D7: Alternative educational provision | E7: Per child | F7: 7181 | G7: =F7 -> 7181 | J7: £s, 2005 | K7: =ROUND(F7*_202021/_200506,-2) -> 10200 | L7: =K7 -> 10200 | O7: =ROUND(F7*('A2 Discount'!$E$10*0.5+SUM('A2 Discount'!$E$11:$E$13)),-2) -> 23700 | P7: =O7 -> 23700 | S7: LA | U7: 3.5 years | V7: England | W7: Ditto | X7: 2007 | Y7: https://www.thinknpc.org/resource-hub/misspent-youth/ | Z7: 2005 costs mostly uplifted paper old papers. Net cost calculated however, estimates are based on old data so not possible to estimate the accuracy of the estimate.
C8: School exclusion | D8: Loss of future earnings (lifetime costs only) | E8: Per child | J8: £s, 2005 | O8: =ROUND(21175*_202021/_200506,-2) -> 29900 | Q8: =O8 -> 29900 | S8: n/a | U8: Working age | V8: England | W8: Ditto | X8: 2007 | Y8: https://www.thinknpc.org/resource-hub/misspent-youth/ | Z8: 2005 costs uplifted from paper published in 1999. The Youth Cohort Survey reported that half of excluded children fail to get any A-C grade GCSEs, compared with 22% for the overall population. 23% of all children go on to higher education, compared with 13% of excluded children. To translate levels of qualifications into levels of earnings, the Labour Force Survey (LFS) figures for full-time wages at different ages according to levels of qualifications were used. Both of these were very out of date. The LFS figures for unemployment are for age 21 only. In the absence of other data, the gap in unemployment rates remains throughout the adult working life of the excluded child.
C9: School exclusion | D9: Crime (lifetime cost only) | E9: Per child | J9: £s, 2005 | O9: =ROUND(15527*_202021/_200506,-2) -> 22000 | P9: =O9 -> 22000 | S9: CJS | U9: Lifetime | V9: England | W9: Ditto | X9: 2007 | Y9: https://www.thinknpc.org/resource-hub/misspent-youth/ | Z9: Assumes excluded children who commit crime do so at the same rate up to age 39, after which they are convicted less frequently and their rate decrease at the same rate as the prison population.
C10: School exclusion | D10: Social care (residential and foster) | E10: Per child | F10: =1169+501 -> 1670 | G10: =F10 -> 1670 | J10: £s, 2005 | K10: =ROUND(F10*_202021/_200506,-2) -> 2400 | L10: =K10 -> 2400 | O10: =ROUND((1169*('A2 Discount'!$E$10*0.5)+SUM('A2 Discount'!$E$11:$E$13))+(501*SUM('A2 Discount'!E10:E21))*_202021/_200506,-2) -> 7700 | Q10: =O10 -> 7700 | S10: LA | U10: 3.5 years | V10: England | W10: Ditto | X10: 2007 | Y10: https://www.thinknpc.org/resource-hub/misspent-youth/ | Z10: Assumes most social care costs are incurred from the age of 12½, the average age at which exclusion takes place. Assumes cost of residential and foster care for children occurs between 10-16.
C11: School exclusion | D11: NHS costs | E11: Per child | F11: =1019/18 -> 56.61111111 | G11: =F11 -> 56.61111111 | J11: £s, 2005 | K11: =ROUND((F11*(_202021/_200506)),-2) -> 100 | L11: =ROUND((G11*(_202021/_200506)),-2) -> 100 | O11: =ROUND(K11*SUM('A2 Discount'!E10:E25),-2) -> 1300 | P11: =O11 -> 1300 | S11: NHS | U11: 16 years | V11: England | W11: Ditto | X11: 2007 | Y11: https://www.thinknpc.org/resource-hub/misspent-youth/ | Z11: The most common cause of school exclusion is persistent disruptive behaviour.The method is based on Scott et al (2001) so is out of date. Though this paper is a seminal piece oft cited on costs associated with conduct disorders despite it being set in an inner London with a small sample size.
C12: School truancy | D12: Overall cost | E12: Per child | F12: =SUM(F13:F17) -> 2719.222222 | G12: =SUM(G13:G17) -> 2719.222222 | J12: £s, 2005 | K12: =SUM(K13:K17) -> 3900 | L12: =SUM(L13:L17) -> 3900 | O12: =ROUND(SUM(O13:O17),-3) -> 69000 | P12: =ROUND(SUM(P13:P17),-2) -> 21000 | Q12: =ROUND(SUM(Q13:Q17),-2) -> 47600 | S12: Multiple | U12: Multiple | V12: England | W12: Brooks et al. Misspent Youth: The costs of truancy and exclusion. | X12: 2007 | Y12: https://www.thinknpc.org/resource-hub/misspent-youth/ | Z12: 2005 costs mostly uplifted paper old papers. Net cost calculated however, estimates are based on old data so not possible to estimate the accuracy of the estimate.
C13: School truancy | D13: Cost to educational system | E13: Per child | F13: 706 | G13: =F13 -> 706 | J13: £s, 2005 | K13: =ROUND((F13*(_202021/_200506)),-2) -> 1000 | L13: =ROUND((G13*(_202021/_200506)),-2) -> 1000 | O13: =ROUND(K13*SUM('A2 Discount'!E10:E11),-2) -> 2000 | P13: =O13 -> 2000 | S13: LA | U13: 2 years | V13: England | W13: Ditto | X13: 2007 | Y13: https://www.thinknpc.org/resource-hub/misspent-youth/ | Z13: Assumes that the cost to the education welfare system is only felt over two years when the child is 11 and 12. It is not possible to isolate further costs to the education system, eg, the cost of truancy initiatives.
C14: School truancy | D14: Loss of future earnings | E14: Per child | J14: £s, 2005 | O14: =ROUND(33694*_202021/_200506,-2) -> 47600 | Q14: =O14 -> 47600 | S14: n/a | U14: =U8 -> Working age | V14: England | W14: Ditto | X14: 2007 | Y14: https://www.thinknpc.org/resource-hub/misspent-youth/ | Z14: Method used to estimate costs is the same as those for excluded children. Almost 60% of children who persistently truant fail to get any A-C grade GCSEs. One child in four who truants gets no qualifications at all. Earnings are on average 13% lower for truants.
C15: School truancy | D15: Crime (lifetime cost only) | E15: Per child | J15: £s, 2005 | O15: =ROUND(6776*_202021/_200506,-2) -> 9600 | P15: =O15 -> 9600 | S15: CJS | U15: Lifetime | V15: England | W15: Ditto | X15: 2007 | Y15: https://www.thinknpc.org/resource-hub/misspent-youth/ | Z15: Same as those for excluded children, taking those with conduct problems committing crimes as a proxy for truants committing crimes.
C16: School truancy | D16: Social care (residential and foster) | E16: Per child | F16: =1967 -> 1967 | G16: =F16 -> 1967 | J16: £s, 2005 | K16: =ROUND((F16*(_202021/_200506)),-2) -> 2800 | L16: =ROUND((G16*(_202021/_200506)),-2) -> 2800 | O16: =ROUND(K16*SUM('A2 Discount'!E10:E12),-2) -> 8100 | P16: =O16 -> 8100 | S16: LA | U16: 3 years | V16: England | W16: Ditto | X16: 2007 | Y16: https://www.thinknpc.org/resource-hub/misspent-youth/ | Z16: Same as those for excluded children, taking those with conduct problems receiving social support as a proxy for truants receiving social support.
C17: School truancy | D17: NHS costs | E17: Per child | F17: =832/18 -> 46.22222222 | G17: =F17 -> 46.22222222 | J17: £s, 2005 | K17: =ROUND((F17*(_202021/_200506)),-2) -> 100 | L17: =ROUND((G17*(_202021/_200506)),-2) -> 100 | O17: =ROUND(K17*SUM('A2 Discount'!E10:E25),-2) -> 1300 | P17: =O17 -> 1300 | S17: NHS | U17: 16 years | V17: England | W17: Ditto | X17: 2007 | Y17: https://www.thinknpc.org/resource-hub/misspent-youth/ | Z17: Method used to estimate costs is the same as those for excluded children.

Sheet Disorders
C2: Disorder-related unit costs
C3: Note: you can access the rows containing breakdowns of annual and lifetime costs (if available or applicable), including reference year, by clicking on [+] above rows K and S. Hovering over a cell with a red triangle on the upper right hand corner provides more information.
C4: Cost grouping | D4: Cost name | E4: Average | F4: Annual cost as reported | J4: Publication year costs and currency | K4: Annual costs (2020 to 2021 prices, rounded) | O4: Lifetime costs | S4: Who pays? | U4: Timeframe (for lifetime costs) | V4: Geography | W4: References | Z4: Methodological limitations/ bias/ notes
F5: Total | G5: Direct (LA/ NHS/ CJS) | H5: Indirect | I5: Intangible (QALYs) | K5: =F5 -> Total | L5: Direct (LA/ NHS/ CJS) | M5: Indirect | N5: Intangible (QALYs) | O5: =K5 -> Total | P5: Direct (LA/ NHS/ CJS) | Q5: Indirect | R5: Intangible (QALYs) | W5: Title and author | X5: Year | Y5: Link to source
C6: Perinatal depression | D6: Maternal annual and lifetime cost | E6: Per mother | J6: £s, 2012/13 | K6: =SUM(L6:N6) -> 5780 | L6: =P6/10 -> 190 | M6: 290 | N6: 5300 | O6: =P6+Q6+R6 -> 57800 | P6: 1900 | Q6: 2900 | R6: 53000 | S6: Multiple | U6: 10 years post birth | V6: UK | W6: Annette Bauer et al. The costs of perinatal mental health problems. | X6: 2014 | Y6: https://www.nwcscnsenate.nhs.uk/files/3914/7030/1256/Costs_of_perinatal_mh.pdf | Z6: Lifetime costs presented in paper for average 32 year old women, 10 years following birth. Annual discount of 3.5% removed from annual costs, but included in lifetime costs. QALYs discounted at 1.5% in line with PHE.
C7: Perinatal depression | D7: Child annual and lifetime: overall cost | E7: Per child | J7: £s, 2012/13 | K7: =SUM(L7:N7) -> 5200 | L7: =ROUND(SUM(L8:L13),-2) -> 100 | M7: =ROUND(SUM(M8:M13),-2) -> 0 | N7: =ROUND(SUM(N8:N13),-2) -> 5100 | O7: =ROUND(P7+Q7+R7,-3) -> 287000 | P7: =SUM(P8:P13) -> 9000 | Q7: =SUM(Q8:Q13) -> 7000 | R7: =ROUND(SUM(R8:R13),-2) -> 271000 | S7: Multiple | U7: Multiple | V7: UK | W7: Annette Bauer et al. The costs of perinatal mental health problems. | X7: 2014 | Y7: https://www.nwcscnsenate.nhs.uk/files/3914/7030/1256/Costs_of_perinatal_mh.pdf | Z7: Annual discount of 3.5% removed from annual costs, but included in lifetime costs. QALYs discounted at 1.5% in line with PHE.
C8: Perinatal depression | D8: Pre-term birth | E8: Per child | J8: £s, 2012/13 | K8: =L8+M8+N8 -> 160 | L8: =ROUND(P8/18,-1) -> 60 | N8: =ROUND(R8/18,-2) -> 100 | O8: 2000 | P8: =ROUND((974*_202021/_201213),-3) -> 1000 | R8: 1000 | S8: Multiple | U8: Childhood | V8: UK | W8: Annette Bauer et al. The costs of perinatal mental health problems. | X8: 2014 | Y8: https://www.nwcscnsenate.nhs.uk/files/3914/7030/1256/Costs_of_perinatal_mh.pdf | Z8: Assumes 'other' as reported in source is an indirect rather than direct cost. Annual discount of 3.5% removed from annual costs, but included in lifetime costs. QALYs discounted at 1.5% in line with PHE.
C9: Perinatal depression | D9: Infant death | E9: Per child | J9: £s, 2012/13 | K9: =L9+M9+N9 -> 5000 | N9: =ROUND(R9/18,-3) -> 5000 | O9: =P9+Q9+R9 -> 90000 | R9: 90000 | S9: Individual | U9: Childhood | V9: UK | W9: Annette Bauer et al. The costs of perinatal mental health problems. | X9: 2014 | Y9: https://www.nwcscnsenate.nhs.uk/files/3914/7030/1256/Costs_of_perinatal_mh.pdf | Z9: Annual discount of 3.5% used in lifetime costs not removed from annual costs, for simplicity. QALYs discounted at 1.5% in line with PHE.
C10: Perinatal depression | D10: Emotional problems | E10: Per child | J10: £s, 2012/13 | O10: =ROUND(P10+Q10+R10,4) -> 104000 | P10: =ROUND(1020*_202021/_201213,-3) -> 1000 | Q10: =ROUND(2169*_202021/_201213,-3) -> 3000 | R10: 100000 | S10: Multiple | U10: Lifetime | V10: UK | W10: Annette Bauer et al. The costs of perinatal mental health problems. | X10: 2014 | Y10: https://www.nwcscnsenate.nhs.uk/files/3914/7030/1256/Costs_of_perinatal_mh.pdf | Z10: Annual discount of 3.5% used in lifetime costs not removed from annual costs, for simplicity. QALYs discounted at 1.5% in line with PHE.
C11: Perinatal depression | D11: Conduct disorder | E11: Per child | J11: £s, 2012/13 | O11: =P11+Q11+R11 -> 85000 | P11: =ROUND(837+1974*_202021/_201213,-3) -> 3000 | Q11: =ROUND(1797*_202021/_201213,-3) -> 2000 | R11: 80000 | S11: Multiple | U11: Lifetime | V11: UK | W11: Annette Bauer et al. The costs of perinatal mental health problems. | X11: 2014 | Y11: https://www.nwcscnsenate.nhs.uk/files/3914/7030/1256/Costs_of_perinatal_mh.pdf | Z11: Annual discount of 3.5% used in lifetime costs not removed from annual costs, for simplicity. QALYs discounted at 1.5% in line with PHE.
C12: Perinatal depression | D12: Special educational needs | E12: Per child | J12: £s, 2012/13 | O12: =P12+Q12+R12 -> 4000 | P12: =ROUND(3166*_202021/_201213,-3) -> 4000 | S12: LA | U12: Childhood | V12: UK | W12: Annette Bauer et al. The costs of perinatal mental health problems. | X12: 2014 | Y12: https://www.nwcscnsenate.nhs.uk/files/3914/7030/1256/Costs_of_perinatal_mh.pdf | Z12: Annual discount of 3.5% used in lifetime costs not removed from annual costs, for simplicity. QALYs discounted at 1.5% in line with PHE.
C13: Perinatal depression | D13: Leaving school without qualifications | E13: Per child | J13: £s, 2012/13 | O13: 2000 | Q13: =ROUND(1463*_202021/_201213,-3) -> 2000 | S13: Multiple | U13: Lifetime | V13: UK | W13: Annette Bauer et al. The costs of perinatal mental health problems. | X13: 2014 | Y13: https://www.nwcscnsenate.nhs.uk/files/3914/7030/1256/Costs_of_perinatal_mh.pdf | Z13: Annual discount of 3.5% used in lifetime costs not removed from annual costs, for simplicity. QALYs discounted at 1.5% in line with PHE.
C14: Perinatal anxiety | D14: Maternal annual and lifetime cost | E14: Per mother | J14: £s, 2012/13 | K14: =O14/10 -> 4390 | L14: =P14/10 -> 520 | M14: =Q14/10 -> 670 | N14: =R14/10 -> 3200 | O14: 43900 | P14: =ROUND(4320*_202021/_201213,-2) -> 5200 | Q14: =ROUND(5499*_202021/_201213,-2) -> 6700 | R14: 32000 | S14: Multiple | U14: 10 years post birth | V14: UK | W14: Annette Bauer et al. The costs of perinatal mental health problems. | X14: 2014 | Y14: https://www.nwcscnsenate.nhs.uk/files/3914/7030/1256/Costs_of_perinatal_mh.pdf | Z14: Lifetime costs presented in paper for average 32 year old women, 10 years following birth. Annual discount of 3.5% removed from annual costs, but included in lifetime costs. QALYs discounted at 1.5% in line with PHE.
C15: Perinatal anxiety | D15: Child annual and lifetime: overall cost | E15: Per child | J15: =J14 -> £s, 2012/13 | K15: =SUM(L15:N15) -> 600 | L15: =ROUND(SUM(L16:L19),-2) -> 300 | M15: =ROUND(SUM(M16:M19),-2) -> 100 | N15: =ROUND(SUM(N16:N19),-2) -> 200 | O15: =SUM(P15:R15) -> 64600 | P15: =ROUND(SUM(P16:P19),-2) -> 6500 | Q15: =ROUND(SUM(Q16:Q19),-2) -> 2100 | R15: =ROUND(SUM(R16:R19),-2) -> 56000 | S15: Multiple | U15: Multiple | V15: UK | W15: Annette Bauer et al. The costs of perinatal mental health problems. | X15: 2014 | Y15: https://www.nwcscnsenate.nhs.uk/files/3914/7030/1256/Costs_of_perinatal_mh.pdf | Z15: Annual discount of 3.5% used in lifetime costs not removed from annual costs, for simplicity. QALYs discounted at 1.5% in line with PHE.
C16: Perinatal anxiety | D16: Pre-term birth | E16: Per child | J16: =J15 -> £s, 2012/13 | K16: =L16+M16+N16 -> 400 | L16: =ROUND(P16/18,-2) -> 200 | M16: =ROUND(Q16/18,-1) -> 0 | N16: =ROUND(R16/18,-2) -> 200 | O16: =P16+Q16+R16 -> 6070 | P16: =ROUND((2435+13)*_202021/_201213,-3) -> 3000 | Q16: =ROUND(54*_202021/_201213,-1) -> 70 | R16: 3000 | S16: Multiple | U16: Childhood | V16: UK | W16: Ditto | X16: 2014 | Y16: https://www.nwcscnsenate.nhs.uk/files/3914/7030/1256/Costs_of_perinatal_mh.pdf | Z16: Annual discount of 3.5% used in lifetime costs not removed from annual costs, for simplicity. QALYs discounted at 1.5% in line with PHE.
C17: Perinatal anxiety | D17: Emotional problems | E17: Per child | J17: =J16 -> £s, 2012/13 | O17: =P17+Q17+R17 -> 12000 | P17: =ROUND((273+176)*_202021/_201213,-2) -> 500 | Q17: =ROUND(440*_202021/_201213,-2) -> 500 | R17: 11000 | S17: Multiple | U17: Childhood | V17: UK | W17: Ditto | X17: 2014 | Y17: https://www.nwcscnsenate.nhs.uk/files/3914/7030/1256/Costs_of_perinatal_mh.pdf | Z17: Annual discount of 3.5% used in lifetime costs not removed from annual costs, for simplicity. QALYs discounted at 1.5% in line with PHE.
C18: Perinatal anxiety | D18: Conduct disorder | E18: Per child | J18: =J17 -> £s, 2012/13 | O18: =P18+Q18+R18 -> 43600 | P18: =ROUND((236+558)*_202021/_201213,-2) -> 1000 | Q18: =ROUND(508*_202021/_201213,-2) -> 600 | R18: 42000 | S18: Multiple | U18: Lifetime | V18: UK | W18: Ditto | X18: 2014 | Y18: https://www.nwcscnsenate.nhs.uk/files/3914/7030/1256/Costs_of_perinatal_mh.pdf | Z18: Annual discount of 3.5% used in lifetime costs not removed from annual costs, for simplicity. QALYs discounted at 1.5% in line with PHE.
C19: Perinatal anxiety | D19: Chronic abdominal pain | E19: Per child | J19: =J17 -> £s, 2012/13 | K19: =L19+M19+N19 -> 150 | L19: =ROUND(P19/18,-2) -> 100 | M19: =ROUND(Q19/18,-1) -> 50 | O19: =P19+Q19+R19 -> 2900 | P19: =ROUND((1531+140)*_202021/_201213,-3) -> 2000 | Q19: =ROUND(736*_202021/_201213,-2) -> 900 | S19: NHS | U19: Ages 5-16 | V19: UK | W19: Ditto | X19: 2014 | Y19: https://www.nwcscnsenate.nhs.uk/files/3914/7030/1256/Costs_of_perinatal_mh.pdf | Z19: Annual discount of 3.5% used in lifetime costs not removed from annual costs, for simplicity. QALYs discounted at 1.5% in line with PHE.
C20: Conduct disorder | D20: Overall cost | E20: Per child | F20: 5500 | G20: =F20 -> 5500 | J20: £s, 2017/18 | K20: =K21+K22+K23 -> 6100 | L20: =K20 -> 6100 | S20: Multiple | U20: Childhood | V20: GB | W20: Gutman et al. Children of the millennium. Understanding the course of conduct problems during childhood. | X20: 2018 | Y20: https://www.centreformentalhealth.org.uk/sites/default/files/2018-11/Children%20of%20the%20Millennium.pdf | Z20: Three British studies provide estimates of the costs of conduct disorder in childhood (Knapp et al., 1999; Romeo et al., 2006; and Snell et al., 2013). All of these give figures for the costs to public services (mainly health, social services and education). To compare, costs in all 3 studies were converted to a common price base, with costs in earlier years assumed to rise in line with inflation.
C21: Conduct disorder | D21: Education | E21: Per child | F21: =F20*60% -> 3300 | G21: =F21 -> 3300 | J21: £s, 2017/18 | K21: =ROUND((F21*(_202021/_201718)),-2) -> 3700 | L21: =K21 -> 3700 | S21: LA | U21: Childhood | V21: GB | W21: Gutman et al. Children of the millennium. Understanding the course of conduct problems during childhood. | X21: 2018 | Y21: https://www.centreformentalhealth.org.uk/sites/default/files/2018-11/Children%20of%20the%20Millennium.pdf | Z21: Ditto
C22: Conduct disorder | D22: NHS | E22: Per child | F22: =F20*28% -> 1540 | G22: =F22 -> 1540 | J22: £s, 2017/18 | K22: =ROUND((F22*(_202021/_201718)),-2) -> 1700 | L22: =K22 -> 1700 | S22: NHS | U22: Childhood | V22: GB | W22: Gutman et al. Children of the millennium. Understanding the course of conduct problems during childhood. | X22: 2018 | Y22: https://www.centreformentalhealth.org.uk/sites/default/files/2018-11/Children%20of%20the%20Millennium.pdf | Z22: =Z21 -> Ditto
C23: Conduct disorder | D23: Social services | E23: Per child | F23: =F20*12% -> 660 | G23: =F23 -> 660 | J23: £s, 2017/18 | K23: =ROUND((F23*(_202021/_201718)),-2) -> 700 | L23: =K23 -> 700 | S23: LA | U23: Childhood | V23: GB | W23: Gutman et al. Children of the millennium. Understanding the course of conduct problems during childhood. | X23: 2018 | Y23: https://www.centreformentalhealth.org.uk/sites/default/files/2018-11/Children%20of%20the%20Millennium.pdf | Z23: =Z22 -> Ditto
C24: FASD | D24: Overall cost: | E24: Per child | F24: =G24 -> $ 2978 | G24: $ 2978 | J24: 2017, USD | K24: =ROUND(SUM(L24:N24),-2) -> 18100 | L24: =SUM(L25:L28) -> 17200 | M24: =SUM(M25:M28) -> 900 | S24: Multiple | U24: Annual | V24: OECD | W24: Greenmyer at al. A Multicountry Updated Assessment of the Economic Impact of Fetal Alcohol Spectrum Disorder | X24: 2018 | Y24: https://pubmed.ncbi.nlm.nih.gov/30383615/ | Z24: Based on reviews of US, Canada, Sweden and New Zealand. Costs were economic costs associated with FASD, not costs associated with risk of FASD. They were presented in the paper as 2017 US dollars and were converted into 2017 Stirling using a mid-year exchange rate of 0.7731 taken from: https://www.poundsterlinglive.com/best-exchange-rates/best-us-dollar-to-british-pound-history-2017
C25: FASD | D25: Health care | E25: Per child | F25: =G25 -> $ 2978 | G25: $ 2978 | J25: 2017, USD | K25: =SUM(L25:N25) -> 2400 | L25: 2400 | S25: NHS | U25: Annual | V25: OECD | W25: Ditto | X25: 2018 | Y25: https://pubmed.ncbi.nlm.nih.gov/30383615/ | Z25: Ditto
C26: FASD | D26: Residential care | E26: Per child | F26: =G26 -> $13573 | G26: $13573 | J26: 2017, USD | K26: =SUM(L26:N26) -> 11100 | L26: 11100 | S26: LA | U26: Annual | V26: OECD | W26: Ditto | X26: 2018 | Y26: https://pubmed.ncbi.nlm.nih.gov/30383615/ | Z26: Ditto
C27: FASD | D27: Productivity losses | E27: Per child | F27: =H27 -> $1055 | H27: $1055 | J27: 2017, USD | K27: 900 | M27: 900 | S27: Individual | U27: Annual | V27: OECD | W27: Ditto | X27: 2018 | Y27: https://pubmed.ncbi.nlm.nih.gov/30383615/ | Z27: Ditto
C28: FASD | D28: Special education | E28: Per child | F28: =G28 -> $4549 | G28: $4549 | J28: 2017, USD | K28: 3700 | L28: 3700 | S28: LA | U28: Annual | V28: OECD | W28: Ditto | X28: 2018 | Y28: https://pubmed.ncbi.nlm.nih.gov/30383615/ | Z28: Ditto

Sheet Homelessness
C2: Homelessness unit costs
C3: Note: you can access the rows containing breakdowns of annual and lifetime costs (if available or applicable), including reference year, by clicking on [+] above rows L and T. Hovering over a cell with a red triangle on the upper right hand corner provides more information.
C4: Cost grouping | D4: Cost name | E4: Average | F4: Annual cost as reported | J4: Publication year costs and currency | K4: Annual costs (2020 to 2021 prices, rounded) | O4: Lifetime costs | S4: Who pays? | U4: Timeframe (for lifetime costs) | V4: Geography | W4: References | Z4: Methodological limitations/ bias/ notes
F5: Total | G5: Direct (LA/ NHS/ CJS) | H5: Indirect | I5: Intangible (QALYs) | K5: =F5 -> Total | L5: Direct (LA/ NHS/ CJS) | M5: Indirect | N5: Intangible (QALYs) | O5: =K5 -> Total | P5: Direct (LA/ NHS/ CJS) | Q5: Indirect | R5: Intangible (QALYs) | W5: Title and author | X5: Year | Y5: Link to source
C6: Homelessness | D6: Cost of housing homeless people | E6: Per family | F6: 15063 | G6: =F6 -> 15063 | J6: £s, 2017/18 | K6: =ROUND((F6*(_202021/_201718)),-2) -> 16900 | L6: =ROUND((G6*(_202021/_201718)),-2) -> 16900 | S6: LA | U6: One year | V6: GB | W6: Crisis: Assessing the costs and benefits of Crisis’ plan to end homelessness. | X6: 2018 | Y6: https://www.crisis.org.uk/media/238957/assessing_the_costs_and_benefits_of_crisis-_plan_to_end_homelessness_2018.pdf | Z6: Specific unit costs are available for accomodation such as hostels and temporary accommodation. Weighted average is used here. Assuming cost of single homeless person equal to cost of family to be conservative.
C7: Homelessness | D7: Overall cost | E7: Per adult | F7: =SUM(F8:F10) -> 11295 | G7: =SUM(G8:G10) -> 2951 | I7: =SUM(I8:I10) -> 8344 | J7: £s, 2017/18 | K7: =ROUND(L7+N7,-2) -> 12600 | L7: =SUM(L8:L10) -> 3300 | N7: =SUM(N8:N10) -> 9300 | S7: Multiple | U7: One year | V7: GB | W7: Crisis: Assessing the costs and benefits of Crisis’ plan to end homelessness. | X7: 2018 | Y7: https://www.crisis.org.uk/media/238957/assessing_the_costs_and_benefits_of_crisis-_plan_to_end_homelessness_2018.pdf | Z7: Benefit from less expensive drug and alcohol treatment and NHS spend removed as based on single homeless people who are likely to be more complex cases. Also, drug and alcohol treatment will be offered to all the people in the case studies for which this database was designed. Welfare payments count as transfer payments in economic analysis, unless taking the perspective of the Exchequer, and so have been excluded. Also excluded are crime costs associated with child. being homeless to be conservative.
C8: Homelessness | D8: Mental health | E8: Per adult | F8: 512 | G8: =F8 -> 512 | J8: £s, 2017/18 | K8: =ROUND((F8*(_202021/_201718)),-2) -> 600 | L8: =ROUND((G8*(_202021/_201718)),-2) -> 600 | S8: NHS | U8: One year | V8: GB | W8: Ditto | X8: 2018 | Y8: https://www.crisis.org.uk/media/238957/assessing_the_costs_and_benefits_of_crisis-_plan_to_end_homelessness_2018.pdf | Z8: Average cost for contact with mental health services per person per year based on Pleace and Culhane (2016).
C9: Homelessness | D9: Crime | E9: Per adult | F9: 2439 | G9: =F9 -> 2439 | J9: £s, 2017/18 | K9: =ROUND((F9*(_202021/_201718)),-2) -> 2700 | L9: =ROUND((G9*(_202021/_201718)),-2) -> 2700 | S9: CJS | U9: One year | V9: GB | W9: Ditto | X9: 2018 | Y9: https://www.crisis.org.uk/media/238957/assessing_the_costs_and_benefits_of_crisis-_plan_to_end_homelessness_2018.pdf | Z9: Average cost of contact with CJS based on Pleace and Culhane (2016).
C10: Homelessness | D10: Wellbeing | E10: Per adult | F10: =F15 -> 8344 | I10: =I15 -> 8344 | J10: £s, 2017/18 | K10: =ROUND((F10*(_202021/_201718)),-2) -> 9300 | N10: =ROUND((I10*(_202021/_201718)),-2) -> 9300 | S10: Individual | U10: Lifetime | V10: GB | W10: Ditto | X10: 2018 | Y10: https://www.crisis.org.uk/media/238957/assessing_the_costs_and_benefits_of_crisis-_plan_to_end_homelessness_2018.pdf | Z10: CAN WE USE? COMPATIBLE WITH QALYS?
C11: Homelessness | D11: Overall cost | E11: Per child | F11: =F12+F13+F14+F15 -> 30019 | G11: =G12+G13+G14+G15 -> 572 | H11: =H12+H13+H14+H15 -> 21103 | I11: =I12+I13+I14+I15 -> 8344 | J11: £s, 2017/18 | K11: =ROUND(K12+K13+K14+K15,-2) -> 33500 | L11: =L12+L13+L14+L15 -> 600 | M11: =M12+M13+M14+M15 -> 23600 | N11: =N12+N13+N14+N15 -> 9300 | S11: Multiple | U11: Lifetime | V11: GB | W11: Crisis: Assessing the costs and benefits of Crisis’ plan to end homelessness. | X11: 2018 | Y11: https://www.crisis.org.uk/media/238957/assessing_the_costs_and_benefits_of_crisis-_plan_to_end_homelessness_2018.pdf | Z11: Benefit from less expensive drug and alcohol treatment and NHS spend removed as based on single homeless people who are likely to be more complex cases. Also, drug and alcohol treatment will be offered to all the people in the case studies for which this database was designed. Welfare payments count as transfer payments in economic analysis , unless taking the perspective of the Exchequer, and so have been excluded. Also excluded are crime costs associated with child being homeless to be conservative.
C12: Homelessness | D12: Lifetime employment | E12: Per child | F12: 21103 | H12: =F12 -> 21103 | J12: £s, 2017/18 | K12: =ROUND((F12*(_202021/_201718)),-2) -> 23600 | M12: =ROUND((H12*(_202021/_201718)),-2) -> 23600 | S12: n/a | U12: Lifetime | V12: GB | W12: Ditto | X12: 2018 | Y12: https://www.crisis.org.uk/media/238957/assessing_the_costs_and_benefits_of_crisis-_plan_to_end_homelessness_2018.pdf | Z12: The number of children living in poor quality housing (reflects homelessness, overcrowding and poor conditions) gaining no GCSEs to the number of children who do not gain GCSE but are not living in bad housing (25% compared to 10%) are used to generate an expected lifetime earnings based on the lifetime return to achieving 1-2 GCSEs as calculated by the Department of Education.
C13: Homelessness | D13: Physical health | E13: Per child | F13: 223 | G13: =F13 -> 223 | J13: £s, 2017/18 | K13: =ROUND((F13*(_202021/_201718)),-2) -> 200 | L13: 200 | S13: NHS | U13: 0-19 years old | V13: GB | W13: Ditto | X13: 2018 | Y13: https://www.crisis.org.uk/media/238957/assessing_the_costs_and_benefits_of_crisis-_plan_to_end_homelessness_2018.pdf | Z13: Data on the average cost of NHS for a child in different age bands between 0-19 is weighted based on age distribution of homeless children. Evidence suggests that a child who is homeless represented by children living in bad housing (e.g. unsuitable temporary accommodation) is 25% more likely to have health related issues.
C14: Homelessness | D14: Mental health | E14: Per child | F14: 349 | G14: =F14 -> 349 | J14: £s, 2017/18 | K14: 400 | L14: 400 | S14: NHS | U14: =U13 -> 0-19 years old | V14: GB | W14: Ditto | X14: 2018 | Y14: https://www.crisis.org.uk/media/238957/assessing_the_costs_and_benefits_of_crisis-_plan_to_end_homelessness_2018.pdf | Z14: Same method as for health mentioned above.
C15: Homelessness | D15: Wellbeing | E15: Per child | F15: 8344 | I15: =F15 -> 8344 | J15: £s, 2017/18 | K15: =ROUND((F15*(_202021/_201718)),-2) -> 9300 | N15: =ROUND((I15*(_202021/_201718)),-2) -> 9300 | S15: Individual | U15: Lifetime | V15: GB | W15: Ditto | X15: 2018 | Y15: https://www.crisis.org.uk/media/238957/assessing_the_costs_and_benefits_of_crisis-_plan_to_end_homelessness_2018.pdf | Z15: Based on Fujiwara and Vine's 2016 paper for HACT on valuing wellbing for moving from temporary accommodation to secure housing.

Sheet NHS & LA treatment
C2: NHS and LA treatment unit costs
C3: Note: you can access the rows containing breakdowns of annual and lifetime costs (if available or applicable), including reference year, by clicking on [+] above rows K and S. Hovering over a cell with a red triangle on the upper right hand corner provides more information.
C4: Cost grouping | D4: Cost name | E4: Average | F4: Annual cost as reported | J4: Publication year costs and currency | K4: Annual costs (2020 to 2021 prices, rounded) | O4: Lifetime costs | S4: Who pays? | U4: Timeframe (for lifetime costs) | V4: Geography | W4: References | Z4: Methodological limitations/ bias/ notes
F5: Total | G5: Direct (LA/ NHS/ CJS) | H5: Indirect | I5: Intangible (QALYs) | K5: =F5 -> Total | L5: Direct (LA/ NHS/ CJS) | M5: Indirect | N5: Intangible (QALYs) | O5: =K5 -> Total | P5: Direct (LA/ NHS/ CJS) | Q5: Indirect | R5: Intangible (QALYs) | W5: Title and author | X5: Year | Y5: Link to source
C6: Physiotherapy | D6: Group session | E6: Per child contact | F6: 81 | G6: =F6 -> 81 | J6: £s, 2018/19 | K6: =ROUND((F6*(_202021/_201819)),-2) -> 100 | L6: =K6 -> 100 | S6: NHS | U6: n/a | V6: England | W6: PSSRU. Unit cost of health and social care | X6: 2019 | Y6: https://www.pssru.ac.uk/pub/uc/uc2019/services.pdf | Z6: n/a
C7: Physiotherapy | D7: 1:1 session | E7: Per child contact | F7: 100 | G7: 100 | J7: £s, 2018/19 | K7: 100 | L7: 100 | S7: NHS | U7: n/a | V7: England | W7: PSSRU. Unit cost of health and social care | X7: 2019 | Y7: https://www.pssru.ac.uk/pub/uc/uc2019/services.pdf | Z7: n/a
C8: Paediatrics | D8: Elective inpatient | E8: Per child contact | F8: 2978 | G8: 2978 | J8: £s, 2018/19 | K8: 3300 | L8: 3300 | S8: NHS | U8: n/a | V8: England | W8: PSSRU. Unit cost of health and social care | X8: 2019 | Y8: https://www.pssru.ac.uk/pub/uc/uc2019/services.pdf | Z8: n/a
C9: Paediatrics | D9: Outpatient | E9: Per child contact | F9: 198 | G9: 198 | J9: £s, 2018/19 | K9: 200 | L9: 200 | S9: NHS | U9: n/a | V9: England | W9: PSSRU. Unit cost of health and social care | X9: 2019 | Y9: https://www.pssru.ac.uk/pub/uc/uc2019/services.pdf | Z9: n/a
C10: Paediatrics | D10: Critical care | E10: Per child contact | F10: 1421 | G10: 1421 | J10: £s, 2018/19 | K10: 1600 | L10: 1600 | S10: NHS | U10: n/a | V10: England | W10: PSSRU. Unit cost of health and social care | X10: 2019 | Y10: https://www.pssru.ac.uk/pub/uc/uc2019/services.pdf | Z10: n/a
C11: Paediatrics | D11: Critical care transportation | E11: Per child contact | F11: 3390 | G11: 3390 | J11: £s, 2018/19 | K11: 3700 | L11: 3700 | S11: NHS | U11: n/a | V11: England | W11: PSSRU. Unit cost of health and social care | X11: 2019 | Y11: https://www.pssru.ac.uk/pub/uc/uc2019/services.pdf | Z11: n/a
C12: C&YP mental health | D12: Day care facilities – regular attendance | E12: Per child contact | F12: 277 | G12: =F12 -> 277 | J12: £s, 2018/19 | K12: =ROUND((F12*(_202021/_201819)),-2) -> 300 | L12: =K12 -> 300 | S12: NHS | U12: n/a | V12: England | W12: PSSRU. Unit cost of health and social care | X12: 2019 | Y12: https://www.pssru.ac.uk/pub/uc/uc2019/services.pdf | Z12: n/a
C13: C&YP mental health | D13: Admitted patients | E13: Per child contact | F13: 733 | G13: 733 | J13: =J12 -> £s, 2018/19 | K13: 800 | L13: 800 | S13: NHS | U13: n/a | V13: England | W13: PSSRU. Unit cost of health and social care | X13: 2019 | Y13: https://www.pssru.ac.uk/pub/uc/uc2019/services.pdf | Z13: n/a
C14: C&YP mental health | D14: Admitted patients – psychiatric intensive care | E14: Per child contact | F14: 1358 | G14: 1358 | J14: £s, 2018/19 | K14: 1500 | L14: 1500 | S14: NHS | U14: n/a | V14: England | W14: PSSRU. Unit cost of health and social care | X14: 2019 | Y14: https://www.pssru.ac.uk/pub/uc/uc2019/services.pdf | Z14: n/a
C15: C&YP mental health | D15: Community contact | E15: Per child contact | F15: 234 | G15: 234 | J15: £s, 2018/19 | K15: 300 | L15: 300 | S15: NHS | U15: n/a | V15: England | W15: PSSRU. Unit cost of health and social care | X15: 2019 | Y15: https://www.pssru.ac.uk/pub/uc/uc2019/services.pdf | Z15: n/a
C16: C&YP mental health | D16: Community contact, crisis resolution | E16: Per child contact | F16: 192 | G16: 192 | J16: £s, 2018/19 | K16: 200 | L16: 200 | S16: NHS | U16: n/a | V16: England | W16: PSSRU. Unit cost of health and social care | X16: 2019 | Y16: https://www.pssru.ac.uk/pub/uc/uc2019/services.pdf | Z16: n/a
C17: C&YP mental health | D17: Outpatient attendance | E17: Per child contact | F17: 307 | G17: 307 | J17: £s, 2018/19 | K17: 300 | L17: 300 | S17: NHS | U17: n/a | V17: England | W17: PSSRU. Unit cost of health and social care | X17: 2019 | Y17: https://www.pssru.ac.uk/pub/uc/uc2019/services.pdf | Z17: n/a
C18: C&YP mental health | D18: Cognitive behavioural therapy (CBT) for adolescents | E18: Per intervention | F18: 229 | G18: 229 | J18: £s, 2018/19 | K18: =ROUND((F18*(_202021/_201819)),-2) -> 300 | L18: =K18 -> 300 | S18: NHS | U18: One year | V18: England | W18: PSSRU. Unit cost of health and social care | X18: 2019 | Y18: https://www.pssru.ac.uk/pub/uc/uc2019/services.pdf | Z18: n/a
C19: C&YP mental health | D19: Counselling for children with mental or emotional difficulties | E19: Per intervention | F19: 1126 | G19: 1126 | J19: £s, 2018/19 | K19: =ROUND((F19*(_202021/_201819)),-2) -> 1200 | L19: =K19 -> 1200 | S19: NHS | U19: One year | V19: England | W19: PSSRU. Unit cost of health and social care | X19: 2019 | Y19: https://www.pssru.ac.uk/pub/uc/uc2019/services.pdf | Z19: The costs estimated represent a ‘typical’ service. There is significant variability between service models dependent on client and commissioner needs. Biased towards activity of one service.
C20: Alcohol and drug treatment | D20: Treatment for opioid use | E20: Per adult | K20: =L20 -> 2800 | L20: 2800 | S20: LA | U20: One year | V20: England | W20: PHE internal calculations.
C21: Alcohol and drug treatment | D21: Treatment for non-opioid drug use | E21: Per adult | K21: =L21 -> 1100 | L21: 1100 | S21: LA | U21: One year | V21: England | W21: PHE internal calculations.
C22: Alcohol and drug treatment | D22: Treatment for alcohol use | E22: Per adult | K22: 1300 | L22: 1300 | S22: LA | U22: One year | V22: England | W22: PHE internal calculations.
C23: Alcohol and drug treatment | D23: Treatment for young people (alcohol and drugs) | E23: Per young person | K23: 2100 | L23: 2100 | S23: LA | U23: One year | V23: England | W23: PHE internal calculations.
C24: Alcohol and drug treatment | D24: Inpatient detoxfication | E24: Per adult | K24: 2400 | L24: 2400 | S24: LA | U24: One year | V24: England | W24: PHE internal calculations.
C25: Alcohol and drug treatment | D25: Residential rehabilitation | E25: Per adult | K25: 9800 | L25: 9800 | S25: LA | U25: One year | V25: England | W25: PHE internal calculations.
C26: Adult mental health | U26: One year
C27: Adult mental health | U27: One year
C28: Adult mental health | U28: One year
C29: Hospital | D29: Ambulance call-out | E29: Per event | S29: NHS | U29: One year
C30: Hospital | D30: A&E attendance | E30: Per event | S30: NHS | U30: One year
C31: Hospital | D31: Inpatient | E31: Per event | S31: NHS | U31: One year
C32: Hospital | D32: Outpatient | E32: Per event | S32: NHS | U32: One year
C33: Hospital | D33: Day case | E33: Per event | S33: NHS | U33: One year
C34: GP | D34: GP visit | E34: Per event | S34: NHS | U34: One year
C35: Pharmacy | D35: Prescription | E35: Per prescription | S35: NHS | U35: One year
U36: One year
U37: One year
D38: NHS COSTS - FROM LTP? | U38: One year
D39: TX COSTS FROM VFM | U39: One year
D40: COSTS PREVENTED FROM RECOVERY | U40: One year

Sheet DA & crime
C2: Domestic abuse and crime unit costs
C3: Note: you can access the rows containing breakdowns of annual and lifetime costs (if available or applicable), including reference year, by clicking on [+] above rows K and S. Hovering over a cell with a red triangle on the upper right hand corner provides more information.
C4: Cost grouping | D4: Cost name | E4: Average | F4: Annual cost as reported | J4: Publication year costs and currency | K4: Annual costs (2020 to 2021 prices, rounded) | O4: Lifetime costs | S4: Who pays? | U4: Timeframe (for lifetime costs) | V4: Geography | W4: References | Z4: Methodological limitations/ bias/ notes
F5: Total | G5: Direct (LA/ NHS/ CJS) | H5: Indirect | I5: Intangible (QALYs) | K5: =F5 -> Total | L5: Direct (LA/ NHS/ CJS) | M5: Indirect | N5: Intangible (QALYs) | O5: =K5 -> Total | P5: Direct (LA/ NHS/ CJS) | Q5: Indirect | R5: Intangible (QALYs) | W5: Title and author | X5: Year | Y5: Link to source
C6: Domestic abuse | D6: Overall cost | E6: Per adult survivor | F6: =SUM(G6:I6) -> 31156.17647 | G6: 2470 | H6: 7245 | I6: =24300*60/68 -> 21441.17647 | J6: £s, 2016/17 | K6: =SUM(L6:N6) -> 32500 | L6: =ROUND((G6*(_202021/_201617)),-2) -> 2800 | M6: =ROUND((H6*(_202021/_201617)),-2) -> 8300 | N6: =ROUND(I6,-2) -> 21400 | S6: Multiple | U6: One year | V6: England and Wales | W6: Oliver at al. The economic and social costs of domestic abuse | X6: 2019 | Y6: https://assets.publishing.service.gov.uk/government/uploads/system/uploads/attachment_data/file/772180/horr107.pdf | Z6: Home Office estimate of unit cost based on crime survey for England and Wales (CSEW) and recorded crime data. Small sample size. Does not contain data on repeat incidents. Victims aged 16-59 only. The impact on children and associated social services costs have not been included. QALYs amended so 1 QALY = £60k in line with PHE recommendations.
C7: Domestic abuse | D7: NHS costs | E7: Per adult survivor | F7: 1200 | G7: =F7 -> 1200 | J7: £s, 2016/17 | K7: 1400 | L7: =ROUND((G7*(_202021/_201617)),-2) -> 1400 | S7: NHS | U7: One year | V7: England and Wales | W7: Ibid. | X7: 2019 | Y7: https://assets.publishing.service.gov.uk/government/uploads/system/uploads/attachment_data/file/772180/horr107.pdf | Z7: Home Office estimate of unit cost based on crime survey for England and Wales (CSEW) and recorded crime data. Small sample size. Does not contain data on repeat incidents. Victims aged 16-59 only. The impact on children and associated social services costs have not been included.
C8: Domestic abuse | D8: Lost output | E8: Per adult survivor | F8: =H8 -> 7245 | H8: =H6 -> 7245 | J8: £s, 2016/17 | K8: 8300 | M8: 8300 | S8: n/a | U8: One year | V8: England and Wales | W8: Ibid. | X8: 2019 | Y8: https://assets.publishing.service.gov.uk/government/uploads/system/uploads/attachment_data/file/772180/horr107.pdf | Z8: Ditto
C9: Domestic abuse | D9: Quality-adjusted life years (QALYs) lost | E9: Per adult survivor | F9: =I6 -> 21441.17647 | I9: =I6 -> 21441.17647 | J9: £s, 2016/17 | K9: 21400 | N9: =ROUND(I9,-2) -> 21400 | S9: Individual | U9: One year | V9: England and Wales | W9: Ibid. | X9: 2019 | Y9: https://assets.publishing.service.gov.uk/government/uploads/system/uploads/attachment_data/file/772180/horr107.pdf | Z9: QALYs amended so 1 QALY = £60k in line with PHE recommendations.
C10: Domestic abuse | D10: Police/ criminal justice | E10: Per adult survivor | F10: =645+170+70+5 -> 890 | G10: =F10 -> 890 | J10: £s, 2016/17 | K10: 1000 | L10: =ROUND((G10*(_202021/_201617)),-2) -> 1000 | S10: Criminal justice system | U10: One year | V10: England and Wales | W10: Ibid. | X10: 2019 | Y10: https://assets.publishing.service.gov.uk/government/uploads/system/uploads/attachment_data/file/772180/horr107.pdf | Z10: Home Office estimate of unit cost based on crime survey for England and Wales (CSEW) and recorded crime data. Small sample size. Does not contain data on repeat incidents. Victims aged 16-59 only. The impact on children and associated social services costs have not been included.
C11: Domestic abuse | D11: Other costs | E11: Per adult survivor | F11: =F6-SUM(F7:F10) -> 380 | H11: =F11 -> 380 | J11: £s, 2016/17 | K11: =SUM(M11:N11) -> 400 | M11: =ROUND((H11*(_202021/_201617)),-2) -> 400 | S11: Multiple | U11: One year | V11: England and Wales | W11: Ibid. | X11: 2019 | Y11: https://assets.publishing.service.gov.uk/government/uploads/system/uploads/attachment_data/file/772180/horr107.pdf | Z11: Ditto
C12: Violence with injury | D12: Overall cost | E12: Per incident | F12: =SUM(G12:I12) -> 13090.58824 | G12: ='Crime cost calcs'!I37 -> 3420 | H12: ='Crime cost calcs'!G37 -> 2400 | I12: ='Crime cost calcs'!H37 -> 7270.588235 | J12: £s, 2015/16 | K12: 14100 | L12: =ROUND((G12*(_202021/_201516)),-2) -> 4000 | M12: =ROUND((H12*(_202021/_201516)),-2) -> 2800 | N12: =ROUND(I12,-2) -> 7300 | S12: Multiple | U12: One year | V12: England and Wales | W12: Heeks et al. The economic and social costs of crime. Second edition | X12: 2018 | Y12: https://assets.publishing.service.gov.uk/government/uploads/system/uploads/attachment_data/file/732110/the-economic-and-social-costs-of-crime-horr99.pdf | Z12: QALYs amended so 1 QALY = £60k in line with PHE recommendations.
C13: Violence with injury | D13: NHS | E13: Per incident | F13: 920 | G13: 920 | J13: £s, 2015/16 | K13: 1100 | L13: 1100 | S13: NHS | U13: One year | V13: England and Wales | W13: Ibid. | X13: 2018 | Y13: https://assets.publishing.service.gov.uk/government/uploads/system/uploads/attachment_data/file/732110/the-economic-and-social-costs-of-crime-horr99.pdf
C14: Violence with injury | D14: Lost output | E14: Per incident | F14: 2060 | H14: 2060 | J14: £s, 2015/16 | K14: 2400 | M14: =ROUND((H14*(_202021/_201516)),-2) -> 2400 | S14: n/a | U14: One year | V14: England and Wales | W14: Ibid. | X14: 2018 | Y14: https://assets.publishing.service.gov.uk/government/uploads/system/uploads/attachment_data/file/732110/the-economic-and-social-costs-of-crime-horr99.pdf
C15: Violence with injury | D15: Quality-adjusted life years (QALYs) lost | E15: Per incident | F15: 7270.588235 | I15: 7270.588235 | J15: £s, 2015/16 | K15: 7300 | N15: =ROUND(I15,-2) -> 7300 | S15: Individual | U15: One year | V15: England and Wales | W15: Ibid. | X15: 2018 | Y15: https://assets.publishing.service.gov.uk/government/uploads/system/uploads/attachment_data/file/732110/the-economic-and-social-costs-of-crime-horr99.pdf | Z15: QALYs amended so 1 QALY = £60k in line with PHE recommendations.
C16: Violence with injury | D16: Cost in response to crime | E16: Per incident | F16: 2500 | G16: 2500 | J16: £s, 2015/16 | K16: 2900 | L16: =ROUND((G16*(_202021/_201516)),-2) -> 2900 | S16: Criminal justice system | U16: One year | V16: England and Wales | W16: Ibid. | X16: 2018 | Y16: https://assets.publishing.service.gov.uk/government/uploads/system/uploads/attachment_data/file/732110/the-economic-and-social-costs-of-crime-horr99.pdf
C17: Violence with injury | D17: Cost in anticpiation of crime | E17: Per incident | F17: =SUM(G17:I17) -> 340 | H17: 340 | J17: £s, 2015/16 | K17: 400 | M17: =ROUND((H17*(_202021/_201516)),-2) -> 400 | S17: Multiple | U17: One year | V17: England and Wales | W17: Ibid. | X17: 2018 | Y17: https://assets.publishing.service.gov.uk/government/uploads/system/uploads/attachment_data/file/732110/the-economic-and-social-costs-of-crime-horr99.pdf
C18: Violence without injury | D18: Overall cost | E18: Per incident | F18: =SUM(G18:I18) -> 5609.411765 | G18: ='Crime cost calcs'!I38 -> 2340 | H18: ='Crime cost calcs'!G38 -> 790 | I18: ='Crime cost calcs'!H38 -> 2479.411765 | J18: £s, 2015/16 | K18: =SUM(L18:N18) -> 6100 | L18: =ROUND((G18*(_202021/_201516)),-2) -> 2700 | M18: 900 | N18: =ROUND(I18,-2) -> 2500 | S18: Multiple | U18: One year | V18: England and Wales | W18: Heeks et al. The economic and social costs of crime. Second edition | X18: 2018 | Y18: https://assets.publishing.service.gov.uk/government/uploads/system/uploads/attachment_data/file/732110/the-economic-and-social-costs-of-crime-horr99.pdf | Z18: QALYs amended so 1 QALY = £60k in line with PHE recommendations.
C19: Violence without injury | D19: NHS | E19: Per incident | F19: 270 | G19: ='Crime cost calcs'!L8 -> 270 | J19: £s, 2015/16 | K19: 300 | L19: 300 | S19: NHS | U19: One year | V19: England and Wales | W19: Ibid. | X19: 2018 | Y19: https://assets.publishing.service.gov.uk/government/uploads/system/uploads/attachment_data/file/732110/the-economic-and-social-costs-of-crime-horr99.pdf
C20: Violence without injury | D20: Lost output | E20: Per incident | F20: 670 | H20: ='Crime cost calcs'!K8 -> 670 | J20: £s, 2015/16 | K20: 800 | M20: =ROUND((H20*(_202021/_201516)),-2) -> 800 | S20: n/a | U20: One year | V20: England and Wales | W20: Ibid. | X20: 2018 | Y20: https://assets.publishing.service.gov.uk/government/uploads/system/uploads/attachment_data/file/732110/the-economic-and-social-costs-of-crime-horr99.pdf
C21: Violence without injury | D21: Quality-adjusted life years (QALYs) lost | E21: Per incident | F21: 2479.411765 | I21: ='Crime cost calcs'!H38 -> 2479.411765 | J21: £s, 2015/16 | K21: 2500 | N21: =ROUND(I21,-2) -> 2500 | S21: Individual | U21: One year | V21: England and Wales | W21: Ibid. | X21: 2018 | Y21: https://assets.publishing.service.gov.uk/government/uploads/system/uploads/attachment_data/file/732110/the-economic-and-social-costs-of-crime-horr99.pdf | Z21: QALYs amended so 1 QALY = £60k in line with PHE recommendations.
C22: Violence without injury | D22: Cost in response to crime | E22: Per incident | F22: 2070 | G22: ='Crime cost calcs'!N8+'Crime cost calcs'!O8+'Crime cost calcs'!P8 -> 2070 | J22: £s, 2015/16 | K22: 2400 | L22: =ROUND((G22*(_202021/_201516)),-2) -> 2400 | S22: Criminal justice system | U22: One year | V22: England and Wales | W22: Ibid. | X22: 2018 | Y22: https://assets.publishing.service.gov.uk/government/uploads/system/uploads/attachment_data/file/732110/the-economic-and-social-costs-of-crime-horr99.pdf
C23: Violence without injury | D23: Cost in anticpiation of crime | E23: Per incident | F23: =SUM(G23:I23) -> 120 | H23: =H18-H19-H20-H21-H22 -> 120 | J23: £s, 2015/16 | K23: 100 | M23: =ROUND((H23*(_202021/_201516)),-2) -> 100 | S23: Multiple | U23: One year | V23: England and Wales | W23: Ibid. | X23: 2018 | Y23: https://assets.publishing.service.gov.uk/government/uploads/system/uploads/attachment_data/file/732110/the-economic-and-social-costs-of-crime-horr99.pdf
C24: Shoplifting | D24: Shoplifting | E24: Per incident | F24: 130 | G24: 130 | J24: £s, 2015/16 | K24: =ROUND((F24*(_202021/_201516)),-1) -> 150 | L24: =K24 -> 150 | S24: Multiple | U24: One year | V24: England and Wales | W24: Fell et al. Understanding organised crime 2015/16 Estimating the scale and the social and economic costs. Second edition. | X24: 2019 | Y24: https://assets.publishing.service.gov.uk/government/uploads/system/uploads/attachment_data/file/782656/understanding-organised-crime-mar16-horr103-2nd.pdf | Z24: Shoplifting is not directly comparable to what is available in the latest unit costs of crime published by the Home Office (HO). Instead, the unit costs presented in the 2015/16 HO drug-related crime estimates have been uprated, which were originally sourced from a 2013 estimate.
C25: Robbery | D25: Overall cost | E25: Per incident | F25: =SUM(G25:I25) -> 9867.647059 | G25: ='Crime cost calcs'!I41 -> 5450 | H25: ='Crime cost calcs'!G41 -> 1250 | I25: ='Crime cost calcs'!H41 -> 3167.647059 | J25: £s, 2015/16 | K25: =SUM(L25:N25) -> 11100 | L25: =ROUND((G25*(_202021/_201516)),-2) -> 6400 | M25: 1500 | N25: =ROUND(I25,-2) -> 3200 | S25: Multiple | U25: One year | V25: England and Wales | W25: Heeks et al. The economic and social costs of crime. Second edition | X25: 2018 | Y25: https://assets.publishing.service.gov.uk/government/uploads/system/uploads/attachment_data/file/732110/the-economic-and-social-costs-of-crime-horr99.pdf | Z25: QALYs amended so 1 QALY = £60k in line with PHE recommendations.
C26: Robbery | D26: NHS | E26: Per incident | F26: 760 | G26: 760 | J26: £s, 2015/16 | K26: 900 | L26: 900 | S26: NHS | U26: One year | V26: England and Wales | W26: Ibid. | X26: 2018 | Y26: https://assets.publishing.service.gov.uk/government/uploads/system/uploads/attachment_data/file/732110/the-economic-and-social-costs-of-crime-horr99.pdf
C27: Robbery | D27: Lost output | E27: Per incident | F27: 920 | H27: 920 | J27: £s, 2015/16 | K27: 1100 | M27: 1100 | S27: n/a | U27: One year | V27: England and Wales | W27: Ibid. | X27: 2018 | Y27: https://assets.publishing.service.gov.uk/government/uploads/system/uploads/attachment_data/file/732110/the-economic-and-social-costs-of-crime-horr99.pdf
C28: Robbery | D28: Quality-adjusted life years (QALYs) lost | E28: Per incident | F28: 3167.647059 | I28: 3167.647059 | J28: £s, 2015/16 | K28: 3200 | N28: =ROUND(I28,-2) -> 3200 | S28: Individual | U28: One year | V28: England and Wales | W28: Ibid. | X28: 2018 | Y28: https://assets.publishing.service.gov.uk/government/uploads/system/uploads/attachment_data/file/732110/the-economic-and-social-costs-of-crime-horr99.pdf | Z28: QALYs amended so 1 QALY = £60k in line with PHE recommendations.
C29: Robbery | D29: Cost in response to crime | E29: Per incident | F29: 4690 | G29: 4690 | J29: £s, 2015/16 | K29: 5500 | L29: 5500 | S29: Criminal justice system | U29: One year | V29: England and Wales | W29: Ibid. | X29: 2018 | Y29: https://assets.publishing.service.gov.uk/government/uploads/system/uploads/attachment_data/file/732110/the-economic-and-social-costs-of-crime-horr99.pdf
C30: Robbery | D30: Cost in anticpiation of crime | E30: Per incident | F30: 330 | H30: 330 | J30: £s, 2015/16 | K30: 400 | M30: 400 | S30: Multiple | U30: One year | V30: England and Wales | W30: Ibid. | X30: 2018 | Y30: https://assets.publishing.service.gov.uk/government/uploads/system/uploads/attachment_data/file/732110/the-economic-and-social-costs-of-crime-horr99.pdf
C31: House burglary | D31: Overall cost | E31: Per incident | F31: 4380 | G31: ='Crime cost calcs'!I42 -> 2180 | H31: ='Crime cost calcs'!G42 -> 1150 | I31: ='Crime cost calcs'!H42 -> 1050 | J31: £s, 2015/16 | K31: 4900 | L31: =ROUND((G31*(_202021/_201516)),-2) -> 2500 | M31: =ROUND((H31*(_202021/_201516)),-2) -> 1300 | N31: =ROUND(I31,-2) -> 1100 | S31: Multiple | U31: One year | V31: England and Wales | W31: Heeks et al. The economic and social costs of crime. Second edition | X31: 2018 | Y31: https://assets.publishing.service.gov.uk/government/uploads/system/uploads/attachment_data/file/732110/the-economic-and-social-costs-of-crime-horr99.pdf | Z31: QALYs amended so 1 QALY = £60k in line with PHE recommendations.
C32: House burglary | D32: NHS | E32: Per incident | F32: 380 | G32: 380 | J32: £s, 2015/16 | K32: 400 | L32: =ROUND((G32*(_202021/_201516)),-2) -> 400 | S32: NHS | U32: One year | V32: England and Wales | W32: Ibid. | X32: 2018 | Y32: https://assets.publishing.service.gov.uk/government/uploads/system/uploads/attachment_data/file/732110/the-economic-and-social-costs-of-crime-horr99.pdf
C33: House burglary | D33: Lost output | E33: Per incident | F33: 440 | H33: 440 | J33: £s, 2015/16 | K33: 500 | M33: 500 | S33: n/a | U33: One year | V33: England and Wales | W33: Ibid. | X33: 2018 | Y33: https://assets.publishing.service.gov.uk/government/uploads/system/uploads/attachment_data/file/732110/the-economic-and-social-costs-of-crime-horr99.pdf
C34: House burglary | D34: Quality-adjusted life years (QALYs) lost | E34: Per incident | F34: 1050 | I34: 1050 | J34: £s, 2015/16 | K34: 1100 | N34: =ROUND(I34,-2) -> 1100 | S34: Individual | U34: One year | V34: England and Wales | W34: Ibid. | X34: 2018 | Y34: https://assets.publishing.service.gov.uk/government/uploads/system/uploads/attachment_data/file/732110/the-economic-and-social-costs-of-crime-horr99.pdf | Z34: QALYs amended so 1 QALY = £60k in line with PHE recommendations.
C35: House burglary | D35: Cost in response to crime | E35: Per incident | F35: 1800 | G35: 1800 | J35: £s, 2015/16 | K35: 2100 | L35: =ROUND((G35*(_202021/_201516)),-2) -> 2100 | S35: Criminal justice system | U35: One year | V35: England and Wales | W35: Ibid. | X35: 2018 | Y35: https://assets.publishing.service.gov.uk/government/uploads/system/uploads/attachment_data/file/732110/the-economic-and-social-costs-of-crime-horr99.pdf
C36: House burglary | D36: Cost in anticpiation of crime | E36: Per incident | F36: 710 | H36: 710 | J36: £s, 2015/16 | K36: 800 | M36: =M31-M32-M33-M34-M35 -> 800 | S36: Multiple | U36: One year | V36: England and Wales | W36: Ibid. | X36: 2018 | Y36: https://assets.publishing.service.gov.uk/government/uploads/system/uploads/attachment_data/file/732110/the-economic-and-social-costs-of-crime-horr99.pdf
C37: Criminal damage | D37: =C37 -> Criminal damage | E37: Per incident | F37: 1098.235294 | G37: ='Crime cost calcs'!I46 -> 720 | H37: ='Crime cost calcs'!G46 -> 140 | I37: ='Crime cost calcs'!H46 -> 238.2352941 | J37: £s, 2015/16 | K37: 1200 | L37: =ROUND((G37*(_202021/_201516)),-2) -> 800 | M37: =ROUND((H37*(_202021/_201516)),-2) -> 200 | N37: =ROUND(I37,-2) -> 200 | S37: Multiple | U37: One year | V37: England and Wales | W37: Dame Carol Black Review of Drugs - evidence relating to drug use, supply and effects, including current trends and future risks | X37: 2019 | Y37: https://assets.publishing.service.gov.uk/government/uploads/system/uploads/attachment_data/file/882953/Review_of_Drugs_Evidence_Pack.pdf
C38: Vehicle theft | D38: Overall cost | E38: Per incident | F38: 6118.235294 | G38: ='Crime cost calcs'!I43 -> 4000 | H38: ='Crime cost calcs'!G43 -> 1880 | I38: ='Crime cost calcs'!H43 -> 238.2352941 | J38: £s, 2015/16 | K38: =SUM(L38:N38) -> 7100 | L38: =ROUND((G38*(_202021/_201516)),-2) -> 4700 | M38: =ROUND((H38*(_202021/_201516)),-2) -> 2200 | N38: =ROUND(I38,-2) -> 200 | S38: Multiple | U38: One year | V38: England and Wales | W38: Heeks et al. The economic and social costs of crime. Second edition | X38: 2018 | Y38: https://assets.publishing.service.gov.uk/government/uploads/system/uploads/attachment_data/file/732110/the-economic-and-social-costs-of-crime-horr99.pdf | Z38: QALYs amended so 1 QALY = £60k in line with PHE recommendations.
C39: Vehicle theft | D39: NHS | E39: Per incident | F39: 100 | G39: 100 | J39: £s, 2015/16 | K39: =SUM(L39:N39) -> 100 | L39: =ROUND((G39*(_202021/_201516)),-2) -> 100 | S39: NHS | U39: One year | V39: England and Wales | W39: Ibid. | X39: 2018 | Y39: https://assets.publishing.service.gov.uk/government/uploads/system/uploads/attachment_data/file/732110/the-economic-and-social-costs-of-crime-horr99.pdf
C40: Vehicle theft | D40: Lost output | E40: Per incident | F40: =SUM(G40:I40) -> 150 | H40: 150 | J40: £s, 2015/16 | K40: =SUM(L40:N40) -> 200 | M40: =ROUND((H40*(_202021/_201516)),-2) -> 200 | S40: n/a | U40: One year | V40: England and Wales | W40: Ibid. | X40: 2018 | Y40: https://assets.publishing.service.gov.uk/government/uploads/system/uploads/attachment_data/file/732110/the-economic-and-social-costs-of-crime-horr99.pdf
C41: Vehicle theft | D41: Quality-adjusted life years (QALYs) lost | E41: Per incident | F41: 238.2352941 | I41: 238.2352941 | J41: £s, 2015/16 | K41: =SUM(L41:N41) -> 200 | N41: =ROUND(I41,-2) -> 200 | S41: Individual | U41: One year | V41: England and Wales | W41: Ibid. | X41: 2018 | Y41: https://assets.publishing.service.gov.uk/government/uploads/system/uploads/attachment_data/file/732110/the-economic-and-social-costs-of-crime-horr99.pdf | Z41: QALYs amended so 1 QALY = £60k in line with PHE recommendations.
C42: Vehicle theft | D42: Cost in response to crime | E42: Per incident | F42: 3900 | G42: 3900 | J42: £s, 2015/16 | K42: 4600 | L42: =ROUND((G42*(_202021/_201516)),-2) -> 4600 | S42: Criminal justice system | U42: One year | V42: England and Wales | W42: Ibid. | X42: 2018 | Y42: https://assets.publishing.service.gov.uk/government/uploads/system/uploads/attachment_data/file/732110/the-economic-and-social-costs-of-crime-horr99.pdf
C43: Vehicle theft | D43: Cost in anticpiation of crime | E43: Per incident | F43: =SUM(G43:I43) -> 1730 | H43: 1730 | J43: £s, 2015/16 | K43: =SUM(L43:N43) -> 2000 | M43: =M38-M39-M40-M41-M42 -> 2000 | S43: Multiple | U43: One year | V43: England and Wales | W43: Ibid. | X43: 2018 | Y43: https://assets.publishing.service.gov.uk/government/uploads/system/uploads/attachment_data/file/732110/the-economic-and-social-costs-of-crime-horr99.pdf
C44: Police call out | D44: Police call out | E44: Per incident | F44: 500 | G44: 500 | J44: £s, 2015/16 | K44: 500 | L44: 500 | S44: =S42 -> Criminal justice system | U44: n/a | V44: England and Wales | W44: Provided by Department of Work and Pensions Economists | X44: 2020

Sheet Part 3 - Annexes
D2: Part 3: Annexes
D5: Contents
D7: Annex | E7: Corresponding tab | F7: Notes
D8: A1 - HM Treasury's GDP deflator | E8: A1 GDP deflator | F8: Used to inflate costs to 2019 to 2020 prices in the database
D9: A2 - HM Treasury's discount factors | E9: A2 Discount | F9: Used to discount future costs in line with Treasury guidance in the database
D10: A3 - Market forces | E10: A3 Market forces | F10: LAs can use these multipliers to change national unit costs to local ones. The market forces factor adjusts for differences in staff and building costs across the country.

Sheet A1 GDP deflator
C2: A1: HM Treasury GDP deflators at market prices and money GDP
C4: The information below has been used to inflate prices to 2020 to 2021 prices.
C6: Outturn data are as at the First Quarterly Estimate of GDP from the ONS - last updated 3 March 2021.
D9: GDP deflator at market prices | F9: Money GDP | J9: GDP deflator at market prices | L9: Money GDP
C10: Financial year | D10: 2019 to 2020 = 100 | E10: percent change on previous year | F10: Cash £ million non-seasonally adjusted | G10: Cash £ million seasonally adjusted | I10: Calendar year | J10: 2020 = 100 | K10: percent change on previous year | L10: Cash £ million Non-Seasonally Adjusted
C11: 1955 to 1956 | D11: 4.0209 | E11: 0 | F11: 19565 | G11: 19579 | I11: 1955 | J11: 3.7649 | K11: 0 | L11: 19160
C12: 1956 to 1957 | D12: 4.273225 | E12: 6.275336367 | F12: 21149 | G12: 21125 | I12: 1956 | J12: 4.0259 | K12: 6.932455045 | L12: 20832
C13: 1957 to 1958 | D13: 4.4702 | E13: 4.609516232 | F13: 22499 | G13: 22514 | I13: 1957 | J13: 4.1871 | K13: 4.004073623 | L13: 22093
C14: 1958 to 1959 | D14: 4.5775 | E14: 2.40034003 | F14: 23325 | G14: 23296 | I14: 1958 | J14: 4.3404 | K14: 3.661245253 | L14: 23210
C15: 1959 to 1960 | D15: 4.6005 | E15: 0.5024576734 | F15: 24862 | G15: 24916 | I15: 1959 | J15: 4.372 | K15: 0.7280434983 | L15: 24378
C16: 1960 to 1961 | D16: 4.694 | E16: 2.032387784 | F16: 26628 | G16: 26646 | I16: 1960 | J16: 4.4173 | K16: 1.036139067 | L16: 26189
C17: 1961 to 1962 | D17: 4.86575 | E17: 3.658926289 | F17: 28128 | G17: 28157 | I17: 1961 | J17: 4.5845 | K17: 3.785117606 | L17: 27905
C18: 1962 to 1963 | D18: 5.0186 | E18: 3.141345116 | F18: 29440 | G18: 29457 | I18: 1962 | J18: 4.7498 | K18: 3.605627658 | L18: 29224
C19: 1963 to 1964 | D19: 5.101875 | E19: 1.659327302 | F19: 31915 | G19: 31871 | I19: 1963 | J19: 4.8193 | K19: 1.463219504 | L19: 31091
C20: 1964 to 1965 | D20: 5.343125 | E20: 4.728653681 | F20: 34850 | G20: 34918 | I20: 1964 | J20: 4.9922 | K20: 3.587657959 | L20: 34043
C21: 1965 to 1966 | D21: 5.631575 | E21: 5.398526143 | F21: 37459 | G21: 37414 | I21: 1965 | J21: 5.2894 | K21: 5.953287128 | L21: 36826
C22: 1966 to 1967 | D22: 5.919025 | E22: 5.104255914 | F22: 39952 | G22: 39948 | I22: 1966 | J22: 5.5722 | K22: 5.346542141 | L22: 39394
C23: 1967 to 1968 | D23: 6.08155 | E23: 2.745806953 | F23: 42517 | G23: 42625 | I23: 1967 | J23: 5.7373 | K23: 2.962923082 | L23: 41684
C24: 1968 to 1969 | D24: 6.40035 | E24: 5.242084666 | F24: 46778 | G24: 46800 | I24: 1968 | J24: 5.9787 | K24: 4.207554076 | L24: 45809
C25: 1969 to 1970 | D25: 6.842875 | E25: 6.914075012 | F25: 50866 | G25: 50921 | I25: 1969 | J25: 6.3755 | K25: 6.636894308 | L25: 49785
C26: 1970 to 1971 | D26: 7.518175 | E26: 9.868659007 | F26: 57738 | G26: 57821 | I26: 1970 | J26: 6.9886 | K26: 9.616500667 | L26: 56057
C27: 1971 to 1972 | D27: 8.086175 | E27: 7.555024989 | F27: 64582 | G27: 64489 | I27: 1971 | J27: 7.5677 | K27: 8.286352059 | L27: 62885
C28: 1972 to 1973 | D28: 8.7731 | E28: 8.495054831 | F28: 73895 | G28: 73997 | I28: 1972 | J28: 8.1393 | K28: 7.553153534 | L28: 70553
C29: 1973 to 1974 | D29: 9.5455 | E29: 8.804185522 | F29: 82801 | G29: 82825 | I29: 1973 | J29: 8.8609 | K29: 8.865627265 | L29: 81746
C30: 1974 to 1975 | D30: 11.4831 | E30: 20.29857001 | F30: 98121 | G30: 98292 | I30: 1974 | J30: 10.2935 | K30: 16.16765791 | L30: 92612
C31: 1975 to 1976 | D31: 14.29415 | E31: 24.47988784 | F31: 120774 | G31: 120658 | I31: 1975 | J31: 12.9837 | K31: 26.13493952 | L31: 115027
C32: 1976 to 1977 | D32: 16.28395 | E32: 13.92038002 | F32: 141965 | G32: 142478 | I32: 1976 | J32: 14.9913 | K32: 15.46246447 | L32: 136901
C33: 1977 to 1978 | D33: 18.52345 | E33: 13.75280568 | F33: 165933 | G33: 165716 | I33: 1977 | J33: 17.0689 | K33: 13.85870472 | L33: 159631
C34: 1978 to 1979 | D34: 20.60885 | E34: 11.25816195 | F34: 192151 | G34: 192270 | I34: 1978 | J34: 19.0842 | K34: 11.8068534 | L34: 185960
C35: 1979 to 1980 | D35: 24.08225 | E35: 16.85392441 | F35: 232309 | G35: 232344 | I35: 1979 | J35: 21.8394 | K35: 14.4370736 | L35: 220721
C36: 1980 to 1981 | D36: 28.68665 | E36: 19.11947596 | F36: 267219 | G36: 267501 | I36: 1980 | J36: 26.2527 | K36: 20.20797275 | L36: 259663
C37: 1981 to 1982 | D37: 31.708275 | E37: 10.5332097 | F37: 297912 | G37: 297358 | I37: 1981 | J37: 29.489 | K37: 12.32749393 | L37: 289840
C38: 1982 to 1983 | D38: 34.04215 | E38: 7.360460321 | F38: 327113 | G38: 327373 | I38: 1982 | J38: 31.8502 | K38: 8.007053478 | L38: 319212
C39: 1983 to 1984 | D39: 35.6685 | E39: 4.777459708 | F39: 357776 | G39: 357033 | I39: 1983 | J39: 33.6158 | K39: 5.543450277 | L39: 351051
C40: 1984 to 1985 | D40: 37.69655 | E40: 5.685829233 | F40: 385702 | G40: 384904 | I40: 1984 | J40: 35.3703 | K40: 5.21927189 | L40: 377644
C41: 1985 to 1986 | D41: 39.795 | E41: 5.56668979 | F41: 423588 | G41: 424157 | I41: 1985 | J41: 37.2748 | K41: 5.384460974 | L41: 414428
C42: 1986 to 1987 | D42: 41.44495 | E42: 4.146123885 | F42: 455402 | G42: 456104 | I42: 1986 | J42: 38.9465 | K42: 4.484799382 | L42: 446635
C43: 1987 to 1988 | D43: 43.7639 | E43: 5.595253463 | F43: 510969 | G43: 511263 | I43: 1987 | J43: 41.0422 | K43: 5.380971332 | L43: 496140
C44: 1988 to 1989 | D44: 46.6228 | E44: 6.532553086 | F44: 570134 | G44: 571066 | I44: 1988 | J44: 43.4725 | K44: 5.921466198 | L44: 555607
C45: 1989 to 1990 | D45: 50.23675 | E45: 7.751464948 | F45: 628400 | G45: 628141 | I45: 1989 | J45: 46.8831 | K45: 7.845419518 | L45: 614524
C46: 1990 to 1991 | D46: 54.367025 | E46: 8.221620626 | F46: 678521 | G46: 680052 | I46: 1990 | J46: 50.67 | K46: 8.077324238 | L46: 668931
C47: 1991 to 1992 | D47: 57.52535 | E47: 5.809265819 | F47: 714840 | G47: 713503 | I47: 1991 | J47: 54.0289 | K47: 6.628971778 | L47: 705464
C48: 1992 to 1993 | D48: 59.022625 | E48: 2.602809022 | F48: 737126 | G48: 738927 | I48: 1992 | J48: 55.7274 | K48: 3.143687915 | L48: 730578
C49: 1993 to 1994 | D49: 60.475175 | E49: 2.46100542 | F49: 780790 | G49: 778283 | I49: 1993 | J49: 57.2431 | K49: 2.719846969 | L49: 769159
C50: 1994 to 1995 | D50: 61.257725 | E50: 1.294002043 | F50: 819023 | G50: 818955 | I50: 1994 | J50: 58.0132 | K50: 1.345314981 | L50: 809486
C51: 1995 to 1996 | D51: 63.07975 | E51: 2.97435956 | F51: 863523 | G51: 862117 | I51: 1995 | J51: 59.4244 | K51: 2.432549833 | L51: 850181
C52: 1996 to 1997 | D52: 65.32115 | E52: 3.553279777 | F52: 920418 | G52: 921031 | I52: 1996 | J52: 61.8701 | K52: 4.115649464 | L52: 907265
C53: 1997 to 1998 | D53: 65.105675 | E53: -0.3298701875 | F53: 962452 | G53: 961038 | I53: 1997 | J53: 61.8335 | K53: -0.05915619984 | L53: 951750
C54: 1998 to 1999 | D54: 66.177275 | E54: 1.645939467 | F54: 1009908 | G54: 1011945 | I54: 1998 | J54: 62.4671 | K54: 1.024687265 | L54: 997247
C55: 1999 to 2000 | D55: 66.472425 | E55: 0.4459990231 | F55: 1053356 | G55: 1052515 | I55: 1999 | J55: 63.0598 | K55: 0.9488194586 | L55: 1039752
C56: 2000 to 2001 | D56: 67.68435 | E56: 1.82319962 | F56: 1107366 | G56: 1104074 | I56: 2000 | J56: 64.211 | K56: 1.825568746 | L56: 1095900
C57: 2001 to 2002 | D57: 68.6738 | E57: 1.461859352 | F57: 1147125 | G57: 1150867 | I57: 2001 | J57: 64.9258 | K57: 1.113204903 | L57: 1138375
C58: 2002 to 2003 | D58: 70.20605 | E58: 2.231200254 | F58: 1206906 | G58: 1203341 | I58: 2002 | J58: 66.2915 | K58: 2.103478124 | L58: 1187671
C59: 2003 to 2004 | D59: 71.71435 | E59: 2.148390345 | F59: 1270825 | G59: 1272015 | I59: 2003 | J59: 67.8601 | K59: 2.36621588 | L59: 1256188
C60: 2004 to 2005 | D60: 73.762725 | E60: 2.85629724 | F60: 1334628 | G60: 1332488 | I60: 2004 | J60: 69.5825 | K60: 2.538163074 | L60: 1317459
C61: 2005 to 2006 | D61: 75.7088 | E61: 2.638290546 | F61: 1417614 | G61: 1416731 | I61: 2005 | J61: 71.4571 | K61: 2.694068192 | L61: 1393038
C62: 2006 to 2007 | D62: 77.858175 | E62: 2.839002864 | F62: 1487940 | G62: 1487724 | I62: 2006 | J62: 73.4684 | K62: 2.81469581 | L62: 1470719
C63: 2007 to 2008 | D63: 80.052825 | E63: 2.818779146 | F63: 1566500 | G63: 1568149 | I63: 2007 | J63: 75.4494 | K63: 2.696397363 | L63: 1546085
C64: 2008 to 2009 | D64: 82.221875 | E64: 2.709523368 | F64: 1572822 | G64: 1573012 | I64: 2008 | J64: 77.7888 | K64: 3.100621078 | L64: 1589259
C65: 2009 to 2010 | D65: 83.536 | E65: 1.598266885 | F65: 1559454 | G65: 1558950 | I65: 2009 | J65: 79.0351 | K65: 1.602158666 | L65: 1548513
C66: 2010 to 2011 | D66: 85.065825 | E66: 1.83133619 | F66: 1624581 | G66: 1625391 | I66: 2010 | J66: 80.3034 | K66: 1.60473005 | L66: 1606027
C67: 2011 to 2012 | D67: 86.355575 | E67: 1.516178794 | F67: 1670141 | G67: 1667346 | I67: 2011 | J67: 81.9647 | K67: 2.068779155 | L67: 1660141
C68: 2012 to 2013 | D68: 88.1212 | E68: 2.044598742 | F68: 1724150 | G68: 1726358 | I68: 2012 | J68: 83.3195 | K68: 1.652906678 | L68: 1711770
C69: 2013 to 2014 | D69: 89.710575 | E69: 1.803623873 | F69: 1805768 | G69: 1803892 | I69: 2013 | J69: 84.8003 | K69: 1.777255024 | L69: 1780336
C70: 2014 to 2015 | D70: 90.9476 | E70: 1.378906556 | F70: 1873833 | G70: 1877255 | I70: 2014 | J70: 86.2728 | K70: 1.736432536 | L70: 1863008
C71: 2015 to 2016 | D71: 91.689725 | E71: 0.8159918459 | F71: 1936795 | G71: 1935573 | I71: 2015 | J71: 86.8445 | K71: 0.6626654056 | L71: 1919641
C72: 2016 to 2017 | D72: 93.958875 | E72: 2.474813835 | F72: 2016681 | G72: 2017027 | I72: 2016 | J72: 88.7096 | K72: 2.147631687 | L72: 1994712
C73: 2017 to 2018 | D73: 95.6133 | E73: 1.760796944 | F73: 2082483 | G73: 2084541 | I73: 2017 | J73: 90.4303 | K73: 1.939699875 | L73: 2068757
C74: 2018 to 2019 | D74: 97.835625 | E74: 2.324284383 | F74: 2163750 | G74: 2162725 | I74: 2018 | J74: 92.4643 | K74: 2.249246104 | L74: 2141792
C75: 2019 to 2020 | D75: 100 | E75: 2.212256527 | F75: 2224077 | G75: 2220063 | I75: 2019 | J75: 94.42 | K75: 2.115086579 | L75: 2217787
C76: 2020 to 2021 | D76: =(D75*(E76/100))+D75 -> 107.0620774 | E76: 7.06207745 | F76: 2096667 | G76: 2101287 | I76: 2020 | J76: 100 | K76: 5.90976488 | L76: 2113045
C77: 2021 to 2022 | D77: - | E77: -1.613179402 | F77: 2264458 | G77: 2264721 | I77: 2021 | J77: - | K77: 1.071424746 | L77: 2223861
C78: 2022 to 2023 | D78: - | E78: -0.1400071536 | F78: 2374916 | G78: 2374606 | I78: 2022 | J78: - | K78: -1.401610378 | L78: 2353633
C79: 2023 to 2024 | D79: - | E79: 2.025301055 | F79: 2459209 | G79: 2459163 | I79: 2023 | J79: - | K79: 1.749437505 | L79: 2436377
C80: 2024 to 2025 | D80: - | E80: 2.087467897 | F80: 2551731 | G80: 2551725 | I80: 2024 | J80: - | K80: 2.145514854 | L80: 2527724

Sheet A2 Discount
C2: A2: HM Treasury discount factors
C4: The information below is taken from the Green Book supplementary guidance
C5: Discounting is the process by which future costs and benefits are recalculated to present-day values. It is a technique used to compare costs and benefits occurring in different time periods based on the economic principle that society prefers to receive benefits sooner and defer costs to future generations (‘social time preference’). All future costs and benefits are discounted in standard economic evaluations. The standard real discount rate, recommended by the Treasury, is 3.5%. For intangible costs, such as QALYs, we use 1.5% rate as recommended by DH and the Treasury.
C8: Year | D8: Standard discount factors | F8: Health discount factors (for QALYs)
D9: Discount Rate | E9: Discount Factor | F9: Discount Rate | G9: Discount Factor
C10: 0 | E10: 1 | G10: 1
C11: 1 | D11: 0.035 | E11: 0.9661835749 | F11: 0.015 | G11: 0.9852216749
C12: 2 | D12: 0.035 | E12: 0.9335107004 | F12: 0.015 | G12: 0.9706617486
C13: 3 | D13: 0.035 | E13: 0.9019427057 | F13: 0.015 | G13: 0.9563169937
C14: 4 | D14: 0.035 | E14: 0.8714422277 | F14: 0.015 | G14: 0.9421842303
C15: 5 | D15: 0.035 | E15: 0.8419731669 | F15: 0.015 | G15: 0.9282603254
C16: 6 | D16: 0.035 | E16: 0.8135006443 | F16: 0.015 | G16: 0.9145421925
C17: 7 | D17: 0.035 | E17: 0.7859909607 | F17: 0.015 | G17: 0.9010267907
C18: 8 | D18: 0.035 | E18: 0.7594115562 | F18: 0.015 | G18: 0.8877111238
C19: 9 | D19: 0.035 | E19: 0.7337309722 | F19: 0.015 | G19: 0.8745922402
C20: 10 | D20: 0.035 | E20: 0.7089188137 | F20: 0.015 | G20: 0.8616672317
C21: 11 | D21: 0.035 | E21: 0.6849457137 | F21: 0.015 | G21: 0.8489332332
C22: 12 | D22: 0.035 | E22: 0.6617832983 | F22: 0.015 | G22: 0.8363874219
C23: 13 | D23: 0.035 | E23: 0.6394041529 | F23: 0.015 | G23: 0.8240270166
C24: 14 | D24: 0.035 | E24: 0.6177817903 | F24: 0.015 | G24: 0.8118492775
C25: 15 | D25: 0.035 | E25: 0.5968906186 | F25: 0.015 | G25: 0.7998515049
C26: 16 | D26: 0.035 | E26: 0.5767059117 | F26: 0.015 | G26: 0.7880310393
C27: 17 | D27: 0.035 | E27: 0.5572037794 | F27: 0.015 | G27: 0.7763852604
C28: 18 | D28: 0.035 | E28: 0.5383611396 | F28: 0.015 | G28: 0.7649115866
C29: 19 | D29: 0.035 | E29: 0.5201556904 | F29: 0.015 | G29: 0.7536074745
C30: 20 | D30: 0.035 | E30: 0.5025658844 | F30: 0.015 | G30: 0.7424704182
C31: 21 | D31: 0.035 | E31: 0.4855709028 | F31: 0.015 | G31: 0.731497949
C32: 22 | D32: 0.035 | E32: 0.4691506308 | F32: 0.015 | G32: 0.7206876345
C33: 23 | D33: 0.035 | E33: 0.4532856336 | F33: 0.015 | G33: 0.7100370783
C34: 24 | D34: 0.035 | E34: 0.4379571339 | F34: 0.015 | G34: 0.6995439195
C35: 25 | D35: 0.035 | E35: 0.4231469893 | F35: 0.015 | G35: 0.689205832
C36: 26 | D36: 0.035 | E36: 0.4088376708 | F36: 0.015 | G36: 0.6790205242
C37: 27 | D37: 0.035 | E37: 0.3950122423 | F37: 0.015 | G37: 0.6689857381
C38: 28 | D38: 0.035 | E38: 0.3816543404 | F38: 0.015 | G38: 0.6590992494
C39: 29 | D39: 0.035 | E39: 0.368748155 | F39: 0.015 | G39: 0.6493588664
C40: 30 | D40: 0.035 | E40: 0.3562784106 | F40: 0.015 | G40: 0.6397624299
C41: 31 | D41: 0.03 | E41: 0.3459013695 | F41: 0.01285714286 | G41: 0.6316413271
C42: 32 | D42: 0.03 | E42: 0.3358265723 | F42: 0.01285714286 | G42: 0.6236233131
C43: 33 | D43: 0.03 | E43: 0.3260452159 | F43: 0.01285714286 | G43: 0.6157070792
C44: 34 | D44: 0.03 | E44: 0.3165487533 | F44: 0.01285714286 | G44: 0.6078913335
C45: 35 | D45: 0.03 | E45: 0.3073288867 | F45: 0.01285714286 | G45: 0.6001748004
C46: 36 | D46: 0.03 | E46: 0.2983775599 | F46: 0.01285714286 | G46: 0.5925562204
C47: 37 | D47: 0.03 | E47: 0.2896869513 | F47: 0.01285714286 | G47: 0.5850343502
C48: 38 | D48: 0.03 | E48: 0.2812494673 | F48: 0.01285714286 | G48: 0.5776079621
C49: 39 | D49: 0.03 | E49: 0.2730577353 | F49: 0.01285714286 | G49: 0.5702758441
C50: 40 | D50: 0.03 | E50: 0.2651045973 | F50: 0.01285714286 | G50: 0.5630367995
C51: 41 | D51: 0.03 | E51: 0.2573831042 | F51: 0.01285714286 | G51: 0.5558896469
C52: 42 | D52: 0.03 | E52: 0.2498865089 | F52: 0.01285714286 | G52: 0.5488332198
C53: 43 | D53: 0.03 | E53: 0.2426082611 | F53: 0.01285714286 | G53: 0.5418663665
C54: 44 | D54: 0.03 | E54: 0.2355420011 | F54: 0.01285714286 | G54: 0.53498795
C55: 45 | D55: 0.03 | E55: 0.2286815544 | F55: 0.01285714286 | G55: 0.5281968477
C56: 46 | D56: 0.03 | E56: 0.2220209266 | F56: 0.01285714286 | G56: 0.5214919512
C57: 47 | D57: 0.03 | E57: 0.2155542977 | F57: 0.01285714286 | G57: 0.5148721662
C58: 48 | D58: 0.03 | E58: 0.2092760172 | F58: 0.01285714286 | G58: 0.5083364123
C59: 49 | D59: 0.03 | E59: 0.2031805992 | F59: 0.01285714286 | G59: 0.5018836229
C60: 50 | D60: 0.03 | E60: 0.1972627177 | F60: 0.01285714286 | G60: 0.4955127447
C61: 51 | D61: 0.03 | E61: 0.1915172016 | F61: 0.01285714286 | G61: 0.4892227381
C62: 52 | D62: 0.03 | E62: 0.1859390307 | F62: 0.01285714286 | G62: 0.4830125764
C63: 53 | D63: 0.03 | E63: 0.1805233308 | F63: 0.01285714286 | G63: 0.4768812461
C64: 54 | D64: 0.03 | E64: 0.1752653697 | F64: 0.01285714286 | G64: 0.4708277465
C65: 55 | D65: 0.03 | E65: 0.1701605531 | F65: 0.01285714286 | G65: 0.4648510896
C66: 56 | D66: 0.03 | E66: 0.1652044205 | F66: 0.01285714286 | G66: 0.4589503001
C67: 57 | D67: 0.03 | E67: 0.1603926413 | F67: 0.01285714286 | G67: 0.4531244147
C68: 58 | D68: 0.03 | E68: 0.1557210109 | F68: 0.01285714286 | G68: 0.4473724828
C69: 59 | D69: 0.03 | E69: 0.1511854475 | F69: 0.01285714286 | G69: 0.4416935655
C70: 60 | D70: 0.03 | E70: 0.1467819879 | F70: 0.01285714286 | G70: 0.4360867361
C71: 61 | D71: 0.03 | E71: 0.1425067843 | F71: 0.01285714286 | G71: 0.4305510793
C72: 62 | D72: 0.03 | E72: 0.1383561013 | F72: 0.01285714286 | G72: 0.4250856919
C73: 63 | D73: 0.03 | E73: 0.1343263119 | F73: 0.01285714286 | G73: 0.4196896817
C74: 64 | D74: 0.03 | E74: 0.1304138951 | F74: 0.01285714286 | G74: 0.4143621681
C75: 65 | D75: 0.03 | E75: 0.1266154321 | F75: 0.01285714286 | G75: 0.4091022816
C76: 66 | D76: 0.03 | E76: 0.122927604 | F76: 0.01285714286 | G76: 0.4039091638
C77: 67 | D77: 0.03 | E77: 0.1193471884 | F77: 0.01285714286 | G77: 0.3987819671
C78: 68 | D78: 0.03 | E78: 0.1158710567 | F78: 0.01285714286 | G78: 0.3937198547
C79: 69 | D79: 0.03 | E79: 0.1124961715 | F79: 0.01285714286 | G79: 0.3887220004
C80: 70 | D80: 0.03 | E80: 0.109219584 | F80: 0.01285714286 | G80: 0.3837875885
C81: 71 | D81: 0.03 | E81: 0.1060384311 | F81: 0.01285714286 | G81: 0.3789158138
C82: 72 | D82: 0.03 | E82: 0.1029499331 | F82: 0.01285714286 | G82: 0.374105881
C83: 73 | D83: 0.03 | E83: 0.09995139133 | F83: 0.01285714286 | G83: 0.3693570052
C84: 74 | D84: 0.03 | E84: 0.09704018575 | F84: 0.01285714286 | G84: 0.3646684114
C85: 75 | D85: 0.03 | E85: 0.09421377258 | F85: 0.01285714286 | G85: 0.3600393342
C86: 76 | D86: 0.025 | E86: 0.09191587568 | F86: 0.01071428571 | G86: 0.3562226628
C87: 77 | D87: 0.025 | E87: 0.08967402506 | F87: 0.01071428571 | G87: 0.3524464508
C88: 78 | D88: 0.025 | E88: 0.08748685372 | F88: 0.01071428571 | G88: 0.3487102694
C89: 79 | D89: 0.025 | E89: 0.08535302801 | F89: 0.01071428571 | G89: 0.3450136941
C90: 80 | D90: 0.025 | E90: 0.08327124684 | F90: 0.01071428571 | G90: 0.3413563051
C91: 81 | D91: 0.025 | E91: 0.08124024082 | F91: 0.01071428571 | G91: 0.337737687
C92: 82 | D92: 0.025 | E92: 0.07925877153 | F92: 0.01071428571 | G92: 0.3341574289
C93: 83 | D93: 0.025 | E93: 0.07732563077 | F93: 0.01071428571 | G93: 0.330615124
C94: 84 | D94: 0.025 | E94: 0.07543963977 | F94: 0.01071428571 | G94: 0.32711037
C95: 85 | D95: 0.025 | E95: 0.07359964856 | F95: 0.01071428571 | G95: 0.3236427689
C96: 86 | D96: 0.025 | E96: 0.07180453518 | F96: 0.01071428571 | G96: 0.3202119268
C97: 87 | D97: 0.025 | E97: 0.07005320505 | F97: 0.01071428571 | G97: 0.3168174541
C98: 88 | D98: 0.025 | E98: 0.06834459029 | F98: 0.01071428571 | G98: 0.3134589652
C99: 89 | D99: 0.025 | E99: 0.06667764907 | F99: 0.01071428571 | G99: 0.3101360786
C100: 90 | D100: 0.025 | E100: 0.06505136494 | F100: 0.01071428571 | G100: 0.306848417
C101: 91 | D101: 0.025 | E101: 0.06346474629 | F101: 0.01071428571 | G101: 0.303595607
C102: 92 | D102: 0.025 | E102: 0.06191682565 | F102: 0.01071428571 | G102: 0.300377279
C103: 93 | D103: 0.025 | E103: 0.06040665917 | F103: 0.01071428571 | G103: 0.2971930675
C104: 94 | D104: 0.025 | E104: 0.05893332602 | F104: 0.01071428571 | G104: 0.294042611
C105: 95 | D105: 0.025 | E105: 0.05749592782 | F105: 0.01071428571 | G105: 0.2909255515
C106: 96 | D106: 0.025 | E106: 0.05609358812 | F106: 0.01071428571 | G106: 0.2878415351
C107: 97 | D107: 0.025 | E107: 0.05472545182 | F107: 0.01071428571 | G107: 0.2847902114
C108: 98 | D108: 0.025 | E108: 0.0533906847 | F108: 0.01071428571 | G108: 0.2817712339
C109: 99 | D109: 0.025 | E109: 0.05208847288 | F109: 0.01071428571 | G109: 0.2787842597
C110: 100 | D110: 0.025 | E110: 0.05081802232 | F110: 0.01071428571 | G110: 0.2758289495
C111: 101 | D111: 0.025 | E111: 0.04957855837 | F111: 0.01071428571 | G111: 0.2729049677
C112: 102 | D112: 0.025 | E112: 0.04836932523 | F112: 0.01071428571 | G112: 0.2700119822
C113: 103 | D113: 0.025 | E113: 0.04718958559 | F113: 0.01071428571 | G113: 0.2671496643
C114: 104 | D114: 0.025 | E114: 0.04603862009 | F114: 0.01071428571 | G114: 0.2643176891
C115: 105 | D115: 0.025 | E115: 0.04491572692 | F115: 0.01071428571 | G115: 0.2615157348
C116: 106 | D116: 0.025 | E116: 0.04382022138 | F116: 0.01071428571 | G116: 0.2587434832
C117: 107 | D117: 0.025 | E117: 0.0427514355 | F117: 0.01071428571 | G117: 0.2560006194
C118: 108 | D118: 0.025 | E118: 0.04170871756 | F118: 0.01071428571 | G118: 0.2532868319
C119: 109 | D119: 0.025 | E119: 0.04069143176 | F119: 0.01071428571 | G119: 0.2506018125
C120: 110 | D120: 0.025 | E120: 0.03969895782 | F120: 0.01071428571 | G120: 0.2479452562
C121: 111 | D121: 0.025 | E121: 0.03873069055 | F121: 0.01071428571 | G121: 0.2453168612
C122: 112 | D122: 0.025 | E122: 0.03778603957 | F122: 0.01071428571 | G122: 0.2427163291
C123: 113 | D123: 0.025 | E123: 0.03686442884 | F123: 0.01071428571 | G123: 0.2401433645
C124: 114 | D124: 0.025 | E124: 0.03596529643 | F124: 0.01071428571 | G124: 0.2375976751
C125: 115 | D125: 0.025 | E125: 0.03508809408 | F125: 0.01071428571 | G125: 0.2350789719
C126: 116 | D126: 0.025 | E126: 0.03423228691 | F126: 0.01071428571 | G126: 0.2325869686
C127: 117 | D127: 0.025 | E127: 0.03339735308 | F127: 0.01071428571 | G127: 0.2301213824
C128: 118 | D128: 0.025 | E128: 0.03258278349 | F128: 0.01071428571 | G128: 0.2276819331
C129: 119 | D129: 0.025 | E129: 0.03178808146 | F129: 0.01071428571 | G129: 0.2252683437
C130: 120 | D130: 0.025 | E130: 0.0310127624 | F130: 0.01071428571 | G130: 0.2228803401
C131: 121 | D131: 0.025 | E131: 0.03025635356 | F131: 0.01071428571 | G131: 0.220517651
C132: 122 | D132: 0.025 | E132: 0.02951839372 | F132: 0.01071428571 | G132: 0.218180008
C133: 123 | D133: 0.025 | E133: 0.02879843289 | F133: 0.01071428571 | G133: 0.2158671457
C134: 124 | D134: 0.025 | E134: 0.02809603209 | F134: 0.01071428571 | G134: 0.2135788014
C135: 125 | D135: 0.025 | E135: 0.02741076302 | F135: 0.01071428571 | G135: 0.2113147152

Sheet A3 Market forces
C2: A3: Market forces factor (MFF)
C3: The MFF estimates the unavoidable cost differences across the country of providing healthcare.
C4: It can be applied to national cost averages to be more locally relevant.
C5: Source: PHE's value for money team (alcohol, drugs, tobacco and justice division).
C7: UTLA code | D7: UTLA Name | E7: MFF Index
C8: E06000002 | D8: Middlesbrough | E8: 0.9460289634
C9: E06000003 | D9: Redcar and Cleveland | E9: 0.9460289634
C10: E06000005 | D10: Darlington | E10: 0.9450195157
C11: E06000006 | D11: Halton | E11: 0.9613731352
C12: E06000007 | D12: Warrington | E12: 0.9642797771
C13: E06000009 | D13: Blackpool | E13: 0.9446322057
C14: E06000010 | D14: Kingston upon Hull, City of | E14: 0.9337565554
C15: E06000012 | D15: North East Lincolnshire | E15: 0.9419939935
C16: E06000013 | D16: North Lincolnshire | E16: 0.9418835485
C17: E06000015 | D17: Derby | E17: 0.9553714943
C18: E06000016 | D18: Leicester | E18: 0.9597306585
C19: E06000017 | D19: Rutland | E19: 0.9612804083
C20: E06000018 | D20: Nottingham | E20: 0.9555863711
C21: E06000019 | D21: Herefordshire, County of | E21: 0.9441896809
C22: E06000020 | D22: Telford and Wrekin | E22: 0.9441952163
C23: E06000022 | D23: Bath and North East Somerset | E23: 0.9937673279
C24: E06000026 | D24: Plymouth | E24: 0.9376365171
C25: E06000027 | D25: Torbay | E25: 0.9328278638
C26: E06000030 | D26: Swindon | E26: 1.006405836
C27: E06000031 | D27: Peterborough | E27: 0.9870034554
C28: E06000032 | D28: Luton | E28: 1.033597576
C29: E06000033 | D29: Southend-on-Sea | E29: 0.9972069122
C30: E06000034 | D30: Thurrock | E30: 1.037869319
C31: E06000035 | D31: Medway | E31: 1.020550291
C32: E06000042 | D32: Milton Keynes | E32: 1.017303673
C33: E06000043 | D33: Brighton and Hove | E33: 0.992457281
C34: E06000044 | D34: Portsmouth | E34: 1.001486215
C35: E06000045 | D35: Southampton | E35: 1.000392097
C36: E06000047 | D36: County Durham | E36: 0.944849414
C37: E06000049 | D37: Cheshire East | E37: 0.9621724243
C38: E06000050 | D38: Cheshire West and Chester | E38: 0.9581239229
C39: E06000051 | D39: Shropshire | E39: 0.9451987383
C40: E06000052 | D40: Cornwall | E40: 0.9255409176
C41: E06000053 | D41: Isles of Scilly | E41: 0.9255409176
C42: E06000054 | D42: Wiltshire | E42: 0.9937852705
C43: E06000055 | D43: Bedford | E43: 1.017538808
C44: E06000056 | D44: Central Bedfordshire | E44: 1.017538808
C45: E06000057 | D45: Northumberland | E45: 0.9479796613
C46: E06000058 | D46: Bournemouth, Christchurch and Poole | E46: 0.9760061748
C47: E06000059 | D47: Dorset | E47: 0.9760061748
C48: E06000060 | D48: Buckinghamshire | E48: 1.017303673
C49: E08000001 | D49: Bolton | E49: 0.963604908
C50: E08000002 | D50: Bury | E50: 0.9650322831
C51: E08000003 | D51: Manchester | E51: 0.9702472063
C52: E08000004 | D52: Oldham | E52: 0.9648268266
C53: E08000005 | D53: Rochdale | E53: 0.9644123128
C54: E08000006 | D54: Salford | E54: 0.969496146
C55: E08000007 | D55: Stockport | E55: 0.9716062302
C56: E08000008 | D56: Tameside | E56: 0.9678244782
C57: E08000009 | D57: Trafford | E57: 0.9720838615
C58: E08000010 | D58: Wigan | E58: 0.9590442077
C59: E08000011 | D59: Knowsley | E59: 0.9573207257
C60: E08000012 | D60: Liverpool | E60: 0.9571389394
C61: E08000013 | D61: St. Helens | E61: 0.9588282632
C62: E08000014 | D62: Sefton | E62: 0.954215295
C63: E08000015 | D63: Wirral | E63: 0.955006442
C64: E08000016 | D64: Barnsley | E64: 0.9485712617
C65: E08000017 | D65: Doncaster | E65: 0.9516855392
C66: E08000018 | D66: Rotherham | E66: 0.9450196611
C67: E08000019 | D67: Sheffield | E67: 0.9465790213
C68: E08000021 | D68: Newcastle upon Tyne | E68: 0.9494694958
C69: E08000022 | D69: North Tyneside | E69: 0.9486916706
C70: E08000023 | D70: South Tyneside | E70: 0.946140001
C71: E08000024 | D71: Sunderland | E71: 0.9439436472
C72: E08000025 | D72: Birmingham | E72: 0.9570176015
C73: E08000026 | D73: Coventry | E73: 0.9730102441
C74: E08000027 | D74: Dudley | E74: 0.952544661
C75: E08000028 | D75: Sandwell | E75: 0.9570176015
C76: E08000030 | D76: Walsall | E76: 0.9518597268
C77: E08000031 | D77: Wolverhampton | E77: 0.951198415
C78: E08000032 | D78: Bradford | E78: 0.9501027027
C79: E08000033 | D79: Calderdale | E79: 0.95506848
C80: E08000034 | D80: Kirklees | E80: 0.9557508774
C81: E08000036 | D81: Wakefield | E81: 0.9562351143
C82: E08000037 | D82: Gateshead | E82: 0.9494694958
C83: E09000001 | D83: City of London | E83: 1.116500351
C84: E09000002 | D84: Barking and Dagenham | E84: 1.087786562
C85: E09000003 | D85: Barnet | E85: 1.124475529
C86: E09000004 | D86: Bexley | E86: 1.101989239
C87: E09000005 | D87: Brent | E87: 1.11556874
C88: E09000006 | D88: Bromley | E88: 1.116108745
C89: E09000007 | D89: Camden | E89: 1.150303118
C90: E09000008 | D90: Croydon | E90: 1.109189452
C91: E09000009 | D91: Ealing | E91: 1.116136641
C92: E09000010 | D92: Enfield | E92: 1.115203299
C93: E09000011 | D93: Greenwich | E93: 1.112877078
C94: E09000012 | D94: Hackney | E94: 1.116500351
C95: E09000013 | D95: Hammersmith and Fulham | E95: 1.13987462
C96: E09000014 | D96: Haringey | E96: 1.117829094
C97: E09000015 | D97: Harrow | E97: 1.105300459
C98: E09000016 | D98: Havering | E98: 1.08102454
C99: E09000017 | D99: Hillingdon | E99: 1.094937861
C100: E09000018 | D100: Hounslow | E100: 1.134800414
C101: E09000019 | D101: Islington | E101: 1.144884983
C102: E09000020 | D102: Kensington and Chelsea | E102: 1.14135654
C103: E09000021 | D103: Kingston upon Thames | E103: 1.109329931
C104: E09000022 | D104: Lambeth | E104: 1.139011344
C105: E09000023 | D105: Lewisham | E105: 1.1182827
C106: E09000024 | D106: Merton | E106: 1.110102252
C107: E09000025 | D107: Newham | E107: 1.114844126
C108: E09000026 | D108: Redbridge | E108: 1.096401167
C109: E09000027 | D109: Richmond upon Thames | E109: 1.12317261
C110: E09000028 | D110: Southwark | E110: 1.141790927
C111: E09000029 | D111: Sutton | E111: 1.099133209
C112: E09000030 | D112: Tower Hamlets | E112: 1.116836415
C113: E09000031 | D113: Waltham Forest | E113: 1.114284067
C114: E09000032 | D114: Wandsworth | E114: 1.12226899
C115: E09000033 | D115: Westminster | E115: 1.144958239
C116: E10000003 | D116: Cambridgeshire | E116: 0.9870034554
C117: E10000006 | D117: Cumbria | E117: 0.9472253622
C118: E10000007 | D118: Derbyshire | E118: 0.9551541789
C119: E10000008 | D119: Devon | E119: 0.9352321905
C120: E10000011 | D120: East Sussex | E120: 0.9796187215
C121: E10000012 | D121: Essex | E121: 1.015592287
C122: E10000013 | D122: Gloucestershire | E122: 0.9738789365
C123: E10000014 | D123: Hampshire | E123: 1.021840243
C124: E10000015 | D124: Hertfordshire | E124: 1.041719495
C125: E10000016 | D125: Kent | E125: 0.9978868407
C126: E10000017 | D126: Lancashire | E126: 0.9510295424
C127: E10000018 | D127: Leicestershire | E127: 0.9605458939
C128: E10000019 | D128: Lincolnshire | E128: 0.9436522215
C129: E10000020 | D129: Norfolk | E129: 0.938761401
C130: E10000021 | D130: Northamptonshire | E130: 0.9774198219
C131: E10000023 | D131: North Yorkshire | E131: 0.9494716239
C132: E10000024 | D132: Nottinghamshire | E132: 0.9528392214
C133: E10000025 | D133: Oxfordshire | E133: 1.01048544
C134: E10000027 | D134: Somerset | E134: 0.9555802563
C135: E10000028 | D135: Staffordshire | E135: 0.9508352976
C136: E10000029 | D136: Suffolk | E136: 0.955885995
C137: E10000030 | D137: Surrey | E137: 1.075560062
C138: E10000031 | D138: Warwickshire | E138: 0.970388484
C139: E10000032 | D139: West Sussex | E139: 1.020566422
C140: E10000034 | D140: Worcestershire | E140: 0.9550183153

Sheet Kinship carers calcs (hidden)
A1: Kinship Carers
A2: https://www.frg.org.uk/images/e-publications/Kinship_carers_survey_analysis.pdf
B4: Number of children raised by kinship carer's (UK) | C4: 180000
B5: The survey was completed by 845 kinship carers who are raising at least 1252 kinship children.
B6: UK kids: carers | C6: =845/1252 -> 0.6749201278
B7: 740 (88%) kinship carers live in England
B8: England kids: carers | C8: =C6*0.88 -> 0.5939297125
B9: Number of kinship carers | C9: 1
B10: Gave up work to be fulltime kinship carer, % | C10: 0.44 | D10: Table 15
B11: Gave up work to be fulltime kinship carer, n | C11: =C9*C10 -> 0.44
B12: Reason kinship child cannot live with parent: Parental misuse, % | C12: 0.46 | D12: Table 20
B13: Reason kinship child cannot live with parent: Parental misuse, n | C13: =C11*C12 -> 0.2024
B15: Duration of care, annually (hours) | C15: 226 | D15: Same approach as Copello et al for lost carer employment opportunities / reduction in productivity. Duration is an estimate of the number of hours spent (the opportunity cost) of caring.
B16: Minimum wage | C16: 14.92
B18: Total 'Indirect' Cost | C18: =C13*C15*C16 -> 682.476608
B19: Total 'Indirect' Cost (Rounded) | C19: =ROUND(C18,-6) -> 0
A29: https://www.theguardian.com/society/2019/sep/23/kinship-carers-left-with-debt-and-ill-health-for-doing-the-right-thing

Sheet Perinatal MH QALY calcs (hidden)
B2: Discount default 0-30 years | C2: 0.035 | D2: 0.015 | N2: Perinatal depression | V2: Perinatal anxiety
B3: Discount default 31-50 years | C3: =3% -> 0.03 | D3: 0.01 | I3: Perinatal lifetime depression (10 years - 1 QALY = £25k) | K3: Perinatal lifetime anxiety (10 years - 1 QALY = £25k) | N3: Pre birth costs (aged 5-18; 13 years) | P3: Infant death costs (0-18) | R3: Emotional problems costs (0-76) | T3: Conduct disorder costs (0-76) | V3: Pre birth costs (aged 5-18; 13 years) | X3: Emotional problems costs (0-76) | Z3: Conduct disorder costs (0-76)
G4: Direct | H4: Indirect | I4: Intangible | K4: Intangible | N4: Intangible | P4: Intangible | R4: Intangible | T4: Intangible | V4: Intangible | X4: Intangible | Z4: Intangible
B5: Year | C5: Multiplier | D5: QALY multiplier | G5: 0.035 | H5: 0.035 | I5: 0.035 | J5: 0.015 | K5: 0.035 | L5: 0.015 | N5: 0.035 | O5: 0.015 | P5: 0.035 | Q5: 0.015 | R5: 0.035 | S5: 0.015 | T5: 0.035 | U5: 0.015 | V5: 0.035 | W5: 0.015 | X5: 0.035 | Y5: 0.015 | Z5: 0.035 | AA5: 0.015
B6: 0 | C6: ='A2 Discount'!E10 -> 1 | D6: ='A2 Discount'!G10 -> 1 | G6: =C6/C7*G7 -> 2381.090708 | H6: =C6/C7*H7 -> 3546.245284 | I6: =C6/C7*I7 -> 25613.6523 | J6: =I6 -> 25613.6523 | K6: =C6/C7*K7 -> 15481.3214 | L6: =K6 -> 15481.3214 | N6: =C6/C7*N7 -> 653.7336332 | O6: =D6/D7*O7 -> 1568.96072 | P6: =$C6/$C7*P7 -> 41156.38811 | Q6: =$D6/$D7*Q7 -> 98775.33145 | R6: =C6/C7*R7 -> 50143.6772 | S6: =$D6/$D7*S7 -> 120344.8253 | T6: =C6/C7*T7 -> 36946.82746 | U6: =$D6/$D7*U7 -> 88672.38591 | V6: =$C6/$C7*V7 -> 1632.770127 | W6: =$D6/$D7*W7 -> 3918.648305 | X6: =$C6/$C7*X7 -> 5820.539662 | Y6: =$D6/$D7*Y7 -> 13969.29519 | Z6: =C6/C7*Z7 -> 22901.37568 | AA6: =$D6/$D7*AA7 -> 54963.30163
B7: 1 | C7: ='A2 Discount'!E11 -> 0.9661835749 | D7: ='A2 Discount'!G11 -> 0.9852216749 | G7: =C7/C8*G8 -> 2300.570732 | H7: 3426.323946 | I7: 24747.49014 | J7: =$J$6*D7 -> 25235.12541 | K7: =C7/C8*K8 -> 14957.79845 | L7: =$J$6*D7 -> 25235.12541 | N7: =C7/C8*N8 -> 631.6266988 | O7: 1545.774108 | P7: =C7/C8*P8 -> 39764.62619 | Q7: =D7/D8*Q8 -> 97315.59749 | R7: =C7/C8*R8 -> 48447.9973 | S7: =D7/D8*S8 -> 118566.3303 | T7: 35697.41784 | U7: =D7/D8*U8 -> 87361.95656 | V7: =$C7/$C8*V8 -> 1577.555678 | W7: =$D7/$D8*W8 -> 3860.737246 | X7: =$C7/$C8*X8 -> 5623.709818 | Y7: 13762.8524 | Z7: =C7/C8*Z8 -> 22126.93302 | AA7: 54151.03609
B8: 2 | C8: ='A2 Discount'!E12 -> 0.9335107004 | D8: ='A2 Discount'!G12 -> 0.9706617486 | G8: 2222.773654 | H8: 3310.457919 | I8: 23910.61849 | J8: 24862.19253 | K8: 14451.97918 | L8: 24862.19253 | N8: =C8/C9*N9 -> 610.2673418 | O8: 1522.930156 | P8: 38419.92868 | Q8: 95877.43595 | R8: 46809.65922 | S8: 116814.1185 | T8: 34490.25878 | U8: 86070.89316 | V8: 1524.208385 | W8: 3803.682016 | X8: 5433.536056 | Y8: 13559.4605 | Z8: 21378.67925 | AA8: 53350.77447
B9: 3 | C9: ='A2 Discount'!E13 -> 0.9019427057 | D9: ='A2 Discount'!G13 -> 0.9563169937 | G9: 2147.607396 | H9: 3198.510067 | I9: 23102.04685 | J9: 24494.77096 | K9: 13963.26491 | L9: 24494.77096 | N9: 589.6302819 | O9: 1500.423799 | P9: 37120.70404 | Q9: 94460.52803 | R9: 45226.72389 | S9: 115087.8015 | T9: 33323.92153 | U9: 84798.90952 | V9: 1472.665106 | W9: 3747.469966 | X9: 5249.793291 | Y9: 13359.07438 | Z9: 20655.72874 | AA9: 52562.33938
B10: 4 | C10: ='A2 Discount'!E14 -> 0.8714422277 | D10: ='A2 Discount'!G14 -> 0.9421842303 | G10: 2074.982991 | H10: 3090.34789 | I10: 22320.81822 | J10: 24132.77927 | K10: 13491.07721 | L10: 24132.77927 | N10: 569.6910937 | O10: 1478.250048 | P10: 35865.41453 | Q10: 93064.55964 | R10: 43697.31777 | S10: 113386.9966 | T10: 32197.02563 | U10: 83545.72367 | V10: 1422.864837 | W10: 3692.088637 | X10: 5072.26405 | Y10: 13161.64964 | Z10: 19957.22584 | AA10: 51785.55604
B11: 5 | C11: ='A2 Discount'!E15 -> 0.8419731669 | D11: ='A2 Discount'!G15 -> 0.9282603254 | G11: 2004.814484 | H11: 2985.843372 | I11: 21566.00794 | J11: 23776.13721 | K11: 13034.8572 | L11: 23776.13721 | N11: =C11/C12*N12 -> 550.4261775 | O11: 1456.403988 | P11: 34652.57443 | Q11: 91689.22132 | R11: 42219.63069 | S11: 111711.3267 | T11: 31108.23732 | U11: 82311.0578 | V11: 1374.748635 | W11: 3637.525751 | X11: 4900.738212 | Y11: 12967.1425 | Z11: 19282.34381 | AA11: 51020.25226
B12: 6 | C12: ='A2 Discount'!E16 -> 0.8135006443 | D12: ='A2 Discount'!G16 -> 0.9145421925 | G12: 1937.018825 | H12: 2884.872824 | I12: 20836.72265 | J12: 23424.76573 | K12: 12594.06493 | L12: 23424.76573 | N12: 531.8127318 | O12: 1434.880777 | P12: 33480.74824 | Q12: 90334.20819 | R12: 40791.91371 | S12: 110060.4204 | T12: 30056.26795 | U12: 81094.63823 | V12: 1328.25955 | W12: 3583.769212 | X12: 4735.012765 | Y12: 12775.50985 | Z12: 18630.28387 | AA12: 50266.25838
B13: 7 | C13: ='A2 Discount'!E17 -> 0.7859909607 | D13: ='A2 Discount'!G17 -> 0.9010267907 | G13: 1871.515773 | H13: 2787.316738 | I13: 20132.09917 | J13: 23078.58692 | K13: 12168.17868 | L13: 23078.58692 | N13: 513.8287264 | O13: 1413.675642 | P13: 32348.54902 | Q13: 88999.21989 | R13: 39412.47702 | S13: 108433.9117 | T13: 29039.87241 | U13: 79896.1953 | V13: 1283.342561 | W13: 3530.807106 | X13: 4574.891561 | Y13: 12586.70921 | Z13: 18000.27427 | AA13: 49523.40727
B14: 8 | C14: ='A2 Discount'!E18 -> 0.7594115562 | D14: ='A2 Discount'!G18 -> 0.8877111238 | G14: 1808.2278 | H14: 2693.05965 | I14: 19451.30355 | J14: 22737.52406 | K14: 11756.69437 | L14: 22737.52406 | N14: 496.4528758 | O14: 1392.783884 | P14: 31254.63674 | Q14: 87683.96049 | R14: 38079.68794 | S14: 106831.4401 | T14: 28057.84774 | U14: 78715.46335 | V14: 1239.944503 | W14: 3478.62769 | X14: 4420.185083 | Y14: 12400.69873 | Z14: 17391.56934 | AA14: 48791.53426
B15: 9 | C15: ='A2 Discount'!E19 -> 0.7337309722 | D15: ='A2 Discount'!G19 -> 0.8745922402 | G15: =C15/C16*G16 -> 1747.08 | H15: =C15/C16*H16 -> 2601.99 | I15: 18793.53 | J15: 22401.50154 | K15: 11359.125 | L15: 22401.50154 | N15: 479.6646143 | O15: 1372.200871 | P15: 30197.71666 | Q15: 86388.13841 | R15: 36791.96902 | S15: 105252.6503 | T15: 27109.03163 | U15: 77552.18064 | V15: 1198.014013 | W15: 3427.219399 | X15: 4270.710225 | Y15: 12217.43717 | Z15: 16803.44864 | AA15: 48070.4771
B16: 10 | C16: ='A2 Discount'!E20 -> 0.7089188137 | D16: ='A2 Discount'!G20 -> 0.8616672317 | G16: =1688 -> 1688 | H16: =2514 -> 2514 | I16: =18158 -> 18158 | J16: 22070.44487 | K16: 10975 | L16: =$L$6*D16 -> 13339.74735 | N16: 463.4440717 | O16: 1351.92204 | P16: 29176.53783 | Q16: 85111.46641 | R16: 35547.79616 | S16: 103697.1925 | T16: 26192.3011 | U16: 76406.0893 | V16: 1157.501461 | W16: 3376.570837 | X16: 4126.290072 | Y16: 12036.88391 | Z16: 16235.21608 | AA16: 47360.07596
B17: 11 | C17: ='A2 Discount'!E21 -> 0.6849457137 | D17: ='A2 Discount'!G21 -> 0.8489332332 | N17: 447.77205 | O17: 1331.942897 | P17: 28189.89163 | Q17: 83853.66149 | R17: 34345.69677 | S17: 102164.7216 | T17: 25306.57111 | U17: 75276.93527 | V17: 1118.3589 | W17: 3326.670775 | X17: 3986.753693 | Y17: 11858.99893 | Z17: 15686.19911 | AA17: 46660.17336
B18: 12 | C18: ='A2 Discount'!E22 -> 0.6617832983 | D18: ='A2 Discount'!G22 -> 0.8363874219 | G18: 2020/21 | N18: =C18/C19*N19 -> 432.63 | O18: 1312.259011 | P18: 27236.61027 | Q18: 82614.44482 | R18: =C18/C19*R19 -> 33184.24809 | S18: 100654.8982 | T18: 24450.79334 | U18: 74164.46824 | V18: 1080.54 | W18: 3277.508153 | X18: 3851.935935 | Y18: 11683.74279 | Z18: 15155.74793 | AA18: 45970.61415
B19: 13 | C19: ='A2 Discount'!E23 -> 0.6394041529 | D19: ='A2 Discount'!G23 -> 0.8240270166 | N19: 418 | O19: =N6*$D19*60/25 -> 1292.866021 | P19: 26315.56547 | Q19: 81393.54169 | R19: 32062.07545 | S19: 99167.38735 | T19: 23623.95492 | U19: 73068.44162 | V19: 1044 | W19: =V6*$D19*60/25 -> 3229.072072 | X19: 3721.677232 | Y19: 11511.07664 | Z19: 14643.23472 | AA19: 45291.24547
B20: 14 | C20: ='A2 Discount'!E24 -> 0.6177817903 | D20: ='A2 Discount'!G24 -> 0.8118492775 | G20: =G16*(_202021/_201213) -> 2050.820764 | H20: 3054.362205 | I20: =I16*60/25 -> 43579.2 | J20: 52969.06768 | K20: =K16*60/25 -> 26340 | L20: =L16*60/25 -> 32015.39365 | P20: 25425.66712 | Q20: 80190.68147 | R20: 30977.85067 | S20: 97701.85945 | T20: 22825.07721 | U20: 71988.61243 | X20: 3595.823413 | Y20: 11340.96221 | Z20: 14148.05287 | AA20: 44621.91672
B21: 15 | C21: ='A2 Discount'!E25 -> 0.5968906186 | D21: ='A2 Discount'!G25 -> 0.7998515049 | P21: 24565.86196 | Q21: 79005.59751 | R21: 29930.2905 | S21: 96257.98961 | T21: 22053.2147 | U21: 70924.74131 | X21: 3474.22552 | Y21: 11173.36178 | Z21: 13669.6163 | AA21: 43962.47952
B22: 16 | C22: ='A2 Discount'!E26 -> 0.5767059117 | D22: ='A2 Discount'!G26 -> 0.7880310393 | G22: https://www.nwcscnsenate.nhs.uk/files/3914/7030/1256/Costs_of_perinatal_mh.pdf | P22: 23735.13232 | Q22: 77838.0271 | R22: 28918.15508 | S22: 94835.45774 | T22: 21307.45382 | U22: 69876.59243 | X22: 3356.739633 | Y22: 11008.23821 | Z22: 13207.35874 | AA22: 43312.78771
B23: 17 | C23: ='A2 Discount'!E27 -> 0.5572037794 | D23: ='A2 Discount'!G27 -> 0.7763852604 | P23: 22932.495 | Q23: 76687.71143 | R23: 27940.24645 | S23: =D23/D24*S24 -> 93433.94852 | T23: 20586.9119 | U23: =D23/D24*U24 -> 68843.93343 | X23: 3243.226698 | Y23: 10845.55488 | Z23: 12760.73308 | AA23: 42672.69725
B24: 18 | C24: ='A2 Discount'!E28 -> 0.5383611396 | D24: ='A2 Discount'!G28 -> 0.7649115866 | P24: 22157 | Q24: =P6*$D24*60/25 -> 75554.3955 | R24: 26995.4072 | S24: =R6*D24*60/25 -> 92053.15125 | T24: 19890.73614 | U24: =T6*D24*60/25 -> 67826.5354 | X24: 3133.552365 | Y24: =X6*$D24*60/25 -> 10685.27575 | Z24: 12329.21071 | AA24: =Z6*D24*60/25 -> 42042.06626
B25: 19 | C25: ='A2 Discount'!E29 -> 0.5201556904 | D25: ='A2 Discount'!G29 -> 0.7536074745 | R25: 26082.51903 | T25: 19218.10255 | X25: 3027.586826 | Z25: 11912.28088
B26: 20 | C26: ='A2 Discount'!E30 -> 0.5025658844 | D26: ='A2 Discount'!G30 -> 0.7424704182 | R26: 25200.50148 | T26: 18568.21502 | X26: 2925.204663 | Z26: 11509.45012
B27: 21 | C27: ='A2 Discount'!E31 -> 0.4855709028 | D27: ='A2 Discount'!G31 -> 0.731497949 | R27: 24348.31061 | T27: 17940.30437 | X27: 2826.284699 | Z27: 11120.24166
B28: 22 | C28: ='A2 Discount'!E32 -> 0.4691506308 | D28: ='A2 Discount'!G32 -> 0.7206876345 | R28: 23524.93779 | T28: 17333.62741 | X28: 2730.709854 | Z28: 10744.19485
B29: 23 | C29: ='A2 Discount'!E33 -> 0.4532856336 | D29: ='A2 Discount'!G33 -> 0.7100370783 | R29: 22729.40849 | T29: 16747.4661 | X29: 2638.367009 | Z29: 10380.86458
B30: 24 | C30: ='A2 Discount'!E34 -> 0.4379571339 | D30: ='A2 Discount'!G34 -> 0.6995439195 | R30: 21960.78115 | T30: 16181.12666 | X30: 2549.146868 | Z30: 10029.82086
B31: 25 | C31: ='A2 Discount'!E35 -> 0.4231469893 | D31: ='A2 Discount'!G35 -> 0.689205832 | R31: 21218.14604 | T31: 15633.9388 | X31: 2462.943834 | Z31: 9690.648169
B32: 26 | C32: ='A2 Discount'!E36 -> 0.4088376708 | D32: ='A2 Discount'!G36 -> 0.6790205242 | R32: 20500.62419 | T32: 15105.25488 | X32: 2379.655878 | Z32: 9362.945091
B33: 27 | C33: ='A2 Discount'!E37 -> 0.3950122423 | D33: ='A2 Discount'!G37 -> 0.6689857381 | R33: 19807.36637 | T33: 14594.44916 | X33: 2299.184423 | Z33: 9046.323759
B34: 28 | C34: ='A2 Discount'!E38 -> 0.3816543404 | D34: ='A2 Discount'!G38 -> 0.6590992494 | R34: 19137.55205 | T34: 14100.91707 | X34: 2221.434226 | Z34: 8740.409429
B35: 29 | C35: ='A2 Discount'!E39 -> 0.368748155 | D35: ='A2 Discount'!G39 -> 0.6493588664 | R35: 18490.38845 | T35: 13624.07446 | X35: 2146.313261 | Z35: 8444.840028
B36: 30 | C36: ='A2 Discount'!E40 -> 0.3562784106 | D36: ='A2 Discount'!G40 -> 0.6397624299 | R36: 17865.10962 | T36: 13163.35697 | X36: 2073.73262 | Z36: 8159.265728
B37: 31 | C37: ='A2 Discount'!E41 -> 0.3459013695 | D37: ='A2 Discount'!G41 -> 0.6316413271 | R37: 17344.76662 | T37: 12779.95822 | X37: 2013.33264 | Z37: 7921.617211
B38: 32 | C38: ='A2 Discount'!E42 -> 0.3358265723 | D38: ='A2 Discount'!G42 -> 0.6236233131 | R38: 16839.57924 | T38: 12407.72643 | X38: 1954.691884 | Z38: 7690.890497
B39: 33 | C39: ='A2 Discount'!E43 -> 0.3260452159 | D39: ='A2 Discount'!G43 -> 0.6157070792 | R39: 16349.10606 | T39: 12046.33634 | X39: 1897.759111 | Z39: 7466.883977
B40: 34 | C40: ='A2 Discount'!E44 -> 0.3165487533 | D40: ='A2 Discount'!G44 -> 0.6078913335 | R40: 15872.9185 | T40: 11695.47217 | X40: 1842.484573 | Z40: 7249.40192
B41: 35 | C41: ='A2 Discount'!E45 -> 0.3073288867 | D41: ='A2 Discount'!G45 -> 0.6001748004 | R41: 15410.60049 | T41: 11354.82735 | X41: 1788.819974 | Z41: 7038.254291
B42: 36 | C42: ='A2 Discount'!E46 -> 0.2983775599 | D42: ='A2 Discount'!G46 -> 0.5925562204 | R42: 14961.74805 | T42: 11024.10422 | X42: 1736.718422 | Z42: 6833.256593
B43: 37 | C43: ='A2 Discount'!E47 -> 0.2896869513 | D43: ='A2 Discount'!G47 -> 0.5850343502 | R43: 14525.96898 | T43: 10703.01381 | X43: 1686.13439 | Z43: 6634.229702
B44: 38 | C44: ='A2 Discount'!E48 -> 0.2812494673 | D44: ='A2 Discount'!G48 -> 0.5776079621 | R44: 14102.8825 | T44: 10391.27554 | X44: 1637.023679 | Z44: 6440.999711
B45: 39 | C45: ='A2 Discount'!E49 -> 0.2730577353 | D45: ='A2 Discount'!G49 -> 0.5702758441 | R45: 13692.11893 | T45: 10088.61703 | X45: 1589.343378 | Z45: 6253.397777
B46: 40 | C46: ='A2 Discount'!E50 -> 0.2651045973 | D46: ='A2 Discount'!G50 -> 0.5630367995 | R46: 13293.31935 | T46: 9794.773817 | X46: 1543.051823 | Z46: 6071.259978
B47: 41 | C47: ='A2 Discount'!E51 -> 0.2573831042 | D47: ='A2 Discount'!G51 -> 0.5558896469 | R47: 12906.13529 | T47: 9509.489143 | X47: 1498.108566 | Z47: 5894.427163
B48: 42 | C48: ='A2 Discount'!E52 -> 0.2498865089 | D48: ='A2 Discount'!G52 -> 0.5488332198 | R48: 12530.22844 | T48: 9232.513731 | X48: 1454.474336 | Z48: 5722.744819
B49: 43 | C49: ='A2 Discount'!E53 -> 0.2426082611 | D49: ='A2 Discount'!G53 -> 0.5418663665 | R49: 12165.27033 | T49: 8963.605564 | X49: 1412.111006 | Z49: 5556.062931
B50: 44 | C50: ='A2 Discount'!E54 -> 0.2355420011 | D50: ='A2 Discount'!G54 -> 0.53498795 | R50: 11810.94207 | T50: 8702.529674 | X50: 1370.981559 | Z50: 5394.235855
B51: 45 | C51: ='A2 Discount'!E55 -> 0.2286815544 | D51: ='A2 Discount'!G55 -> 0.5281968477 | R51: 11466.93405 | T51: 8449.057936 | X51: 1331.050058 | Z51: 5237.122189
B52: 46 | C52: ='A2 Discount'!E56 -> 0.2220209266 | D52: ='A2 Discount'!G56 -> 0.5214919512 | R52: 11132.94568 | T52: 8202.96887 | X52: 1292.281609 | Z52: 5084.58465
B53: 47 | C53: ='A2 Discount'!E57 -> 0.2155542977 | D53: ='A2 Discount'!G57 -> 0.5148721662 | R53: 10808.68512 | T53: 7964.047446 | X53: 1254.642339 | Z53: 4936.489951
B54: 48 | C54: ='A2 Discount'!E58 -> 0.2092760172 | D54: ='A2 Discount'!G58 -> 0.5083364123 | R54: 10493.86905 | T54: 7732.084899 | X54: 1218.099358 | Z54: 4792.708691
B55: 49 | C55: ='A2 Discount'!E59 -> 0.2031805992 | D55: ='A2 Discount'!G59 -> 0.5018836229 | R55: =C55/C56*R56 -> 10188.22238 | T55: 7506.878543 | X55: 1182.620736 | Z55: 4653.115234
B56: 50 | C56: ='A2 Discount'!E60 -> 0.1972627177 | D56: ='A2 Discount'!G60 -> 0.4955127447 | R56: 9891.47804 | T56: 7288.231595 | X56: 1148.175472 | Z56: 4517.587605
B57: 51 | C57: ='A2 Discount'!E61 -> 0.1915172016 | D57: ='A2 Discount'!G61 -> 0.4892227381 | R57: 9603.376738 | T57: 7075.953005 | X57: 1114.733468 | Z57: 4386.007384
B58: 52 | C58: ='A2 Discount'!E62 -> 0.1859390307 | D58: ='A2 Discount'!G62 -> 0.4830125764 | R58: 9323.666736 | T58: 6869.857287 | X58: 1082.265503 | Z58: 4258.259596
B59: 53 | C59: ='A2 Discount'!E63 -> 0.1805233308 | D59: ='A2 Discount'!G63 -> 0.4768812461 | R59: 9052.103627 | T59: 6669.764356 | X59: 1050.743207 | Z59: 4134.232618
B60: 54 | C60: ='A2 Discount'!E64 -> 0.1752653697 | D60: ='A2 Discount'!G64 -> 0.4708277465 | R60: 8788.450123 | T60: 6475.499375 | X60: 1020.139036 | Z60: 4013.818075
B61: 55 | C61: ='A2 Discount'!E65 -> 0.1701605531 | D61: ='A2 Discount'!G65 -> 0.4648510896 | R61: 8532.475848 | T61: 6286.892597 | X61: 990.4262483 | Z61: 3896.910753
B62: 56 | C62: ='A2 Discount'!E66 -> 0.1652044205 | D62: ='A2 Discount'!G66 -> 0.4589503001 | R62: 8283.957134 | T62: 6103.77922 | X62: 961.5788819 | Z62: 3783.408498
B63: 57 | C63: ='A2 Discount'!E67 -> 0.1603926413 | D63: ='A2 Discount'!G67 -> 0.4531244147 | R63: 8042.676829 | T63: 5925.999243 | X63: 933.57173 | Z63: 3673.212134
B64: 58 | C64: ='A2 Discount'!E68 -> 0.1557210109 | D64: ='A2 Discount'!G68 -> 0.4473724828 | R64: 7808.424106 | T64: 5753.397323 | X64: 906.3803203 | Z64: 3566.225373
B65: 59 | C65: ='A2 Discount'!E69 -> 0.1511854475 | D65: ='A2 Discount'!G69 -> 0.4416935655 | R65: 7580.994277 | T65: 5585.822644 | X65: 879.9808935 | Z65: 3462.354731
B66: 60 | C66: ='A2 Discount'!E70 -> 0.1467819879 | D66: ='A2 Discount'!G70 -> 0.4360867361 | R66: 7360.188619 | T66: 5423.12878 | X66: 854.3503821 | Z66: 3361.509447
B67: 61 | C67: ='A2 Discount'!E71 -> 0.1425067843 | D67: ='A2 Discount'!G71 -> 0.4305510793 | R67: 7145.814193 | T67: 5265.173573 | X67: 829.4663904 | Z67: 3263.601405
B68: 62 | C68: ='A2 Discount'!E72 -> 0.1383561013 | D68: ='A2 Discount'!G72 -> 0.4250856919 | R68: 6937.683682 | T68: 5111.819003 | X68: 805.3071751 | Z68: 3168.545053
B69: 63 | C69: ='A2 Discount'!E73 -> 0.1343263119 | D69: ='A2 Discount'!G73 -> 0.4196896817 | R69: 6735.615226 | T69: 4962.931071 | X69: 781.8516263 | Z69: 3076.257333
B70: 64 | C70: ='A2 Discount'!E74 -> 0.1304138951 | D70: ='A2 Discount'!G74 -> 0.4143621681 | R70: =C70/C71*R71 -> 6539.432258 | T70: =C70/C71*T71 -> 4818.379681 | X70: 759.0792489 | Z70: 2986.657605
B71: 65 | C71: ='A2 Discount'!E75 -> 0.1266154321 | D71: ='A2 Discount'!G75 -> 0.4091022816 | R71: 6348.963357 | T71: 4678.038525 | X71: =$C71/$C72*X72 -> 736.9701445 | Z71: =C71/C72*Z72 -> 2899.667578
B72: 66 | C72: ='A2 Discount'!E76 -> 0.122927604 | D72: ='A2 Discount'!G76 -> 0.4039091638 | R72: 6164.042094 | T72: 4541.784976 | X72: 715.5049947 | Z72: 2815.211241
B73: 67 | C73: ='A2 Discount'!E77 -> 0.1193471884 | D73: ='A2 Discount'!G77 -> 0.3987819671 | R73: 5984.506888 | T73: 4409.499976 | X73: 694.6650434 | Z73: 2733.214797
B74: 68 | C74: ='A2 Discount'!E78 -> 0.1158710567 | D74: ='A2 Discount'!G78 -> 0.3937198547 | R74: 5810.200862 | T74: 4281.067938 | X74: 674.432081 | Z74: 2653.606599
B75: 69 | C75: ='A2 Discount'!E79 -> 0.1124961715 | D75: ='A2 Discount'!G79 -> 0.3887220004 | R75: 5640.971711 | T75: 4156.376639 | X75: 654.7884281 | Z75: 2576.317086
B76: 70 | C76: ='A2 Discount'!E80 -> 0.109219584 | D76: ='A2 Discount'!G80 -> 0.3837875885 | R76: 5476.671564 | T76: 4035.317125 | X76: 635.7169205 | Z76: 2501.278725
B77: 71 | C77: ='A2 Discount'!E81 -> 0.1060384311 | D77: ='A2 Discount'!G81 -> 0.3789158138 | R77: 5317.156858 | T77: 3917.783617 | X77: 617.2008937 | Z77: 2428.425946
B78: 72 | C78: ='A2 Discount'!E82 -> 0.1029499331 | D78: ='A2 Discount'!G82 -> 0.374105881 | R78: 5162.288212 | T78: 3803.673414 | X78: 599.2241686 | Z78: 2357.695093
B79: 73 | C79: ='A2 Discount'!E83 -> 0.09995139133 | D79: ='A2 Discount'!G83 -> 0.3693570052 | R79: 5011.930302 | T79: 3692.88681 | X79: 581.7710375 | Z79: 2289.024363
B80: 74 | C80: ='A2 Discount'!E84 -> 0.09704018575 | D80: ='A2 Discount'!G84 -> 0.3646684114 | R80: 4865.95175 | T80: 3585.327 | X80: 564.82625 | Z80: 2222.35375
B81: 75 | C81: ='A2 Discount'!E85 -> 0.09421377258 | D81: ='A2 Discount'!G85 -> 0.3600393342 | R81: =C81/C82*R82 -> 4724.225 | T81: =C81/C82*T82 -> 3480.9 | X81: 548.375 | Z81: 2157.625
B82: 76 | C82: ='A2 Discount'!E86 -> 0.09191587568 | D82: ='A2 Discount'!G86 -> 0.3562226628 | R82: 4609 | T82: 3396 | X82: 535 | Z82: 2105
B83: 77 | C83: ='A2 Discount'!E87 -> 0.08967402506 | D83: ='A2 Discount'!G87 -> 0.3524464508
B84: 78 | C84: ='A2 Discount'!E88 -> 0.08748685372 | D84: ='A2 Discount'!G88 -> 0.3487102694
B85: 79 | C85: ='A2 Discount'!E89 -> 0.08535302801 | D85: ='A2 Discount'!G89 -> 0.3450136941
B86: 80 | C86: ='A2 Discount'!E90 -> 0.08327124684 | D86: ='A2 Discount'!G90 -> 0.3413563051

Sheet FASD calcs (hidden)
C2: DOI: 10.1097/ADM.0000000000000438
C34: 2017 USD | D34: Mid Exchange Rate: 0.7731 on 05/07/2017 | H34: https://www.poundsterlinglive.com/best-exchange-rates/best-us-dollar-to-british-pound-history-2017
C35: Exchange rate | D35: 0.7731
C37: Health | D37: =2978*D35 -> 2302.2918
C38: Residential care | D38: =13573*D35 -> 10493.2863
C39: Productivity losses | D39: =1055*D35 -> 815.6205
C40: Special education | D40: =4549*D35 -> 3516.8319

Sheet Crime cost calcs (hidden)
E2: Crimes | F2: Costs in anticipation of crime | I2: Costs as a consequence of crime | O2: Cost in response to crime | Q2: Total (1)
F4: Defensive expenditure | G4: Insurance administration | I4: Value of property stolen/damaged | J4: Physical and emotional harm | K4: Lost output | L4: Health services | N4: Victim services | O4: Police costs | P4: Other CJS Costs
E5: Individual
E6: Homicide | F6: 61060 | G6: 10 | I6: - | J6: 2082430 | K6: 254710 | L6: 1110 | N6: 5480 | O6: 11960 | P6: 800980 | Q6: 3217740 | R6: =SUM(N6:P6,J6:L6,F6:G6) -> 3217740
E7: Violence with Injury | F7: 330 | G7: 10 | I7: - | J7: 8240 | K7: 2060 | L7: 920 | N7: 0 | O7: 1130 | P7: 1370 | Q7: 14050
E8: Violence without Injury | F8: 110 | G8: 10 | I8: - | J8: 2810 | K8: 670 | L8: 270 | N8: 10 | O8: 810 | P8: 1250 | Q8: 5930
E9: Rape | F9: 970 | G9: 10 | I9: - | J9: 24390 | K9: 5900 | L9: 1110 | N9: 40 | O9: 6360 | P9: 580 | Q9: 39360
E10: Other sexual offences | F10: 150 | G10: 10 | I10: - | J10: 3700 | K10: 1120 | L10: 390 | N10: 10 | O10: 570 | P10: 580 | Q10: 6520
E11: Robbery | F11: 190 | G11: 140 | I11: 1030 | J11: 3590 | K11: 920 | L11: 760 | N11: 10 | O11: 1010 | P11: 3670 | Q11: 11320
E12: Domestic burglary | F12: 320 | G12: 390 | I12: 1400 | J12: 1190 | K12: 440 | L12: 380 | N12: 0 | O12: 530 | P12: 1270 | Q12: 5930
E13: Theft of Vehicle | F13: 1010 | G13: 720 | I13: 4140 | J13: 270 | K13: 150 | L13: 100 | N13: 0 | O13: 2030 | P13: 1870 | Q13: 10290
E14: Theft from Vehicle | F14: 110 | G14: 0 | I14: 350 | J14: 140 | K14: 60 | L14: 40 | N14: 0 | O14: 80 | P14: 100 | Q14: 870
E15: Theft from Person | F15: 20 | G15: 0 | I15: 180 | J15: 410 | K15: 120 | L15: 210 | N15: 0 | O15: 40 | P15: 390 | Q15: 1380
E16: Criminal damage – arson | F16: 110 | G16: 220 | I16: 1600 | J16: 980 | K16: 340 | L16: 180 | N16: 10 | O16: 1080 | P16: 3900 | Q16: 8420
E17: Criminal damage – other | F17: 20 | G17: 40 | I17: 330 | J17: 270 | K17: 80 | L17: 90 | N17: 0 | O17: 150 | P17: 350 | Q17: 1350
E18: Fraud | F18: 170 | G18: 50 | I18: 500 | J18: 200 | K18: 60 | L18: 70 | N18: 0 | O18: 60 | P18: 170 | Q18: 1290
E19: Cybercrime | F19: 290 | G19: 0 | I19: 10 | J19: 150 | K19: 50 | L19: 50 | N19: - | O19: - | P19: 0 | Q19: 550
E21: Crimes | F21: Costs in anticipation of crime | I21: Costs as a consequence of crime | O21: Cost in response to crime | Q21: Total (1)
F23: Defensive expenditure | G23: Insurance administration | I23: Value of property stolen/damaged | J23: Physical and emotional harm | K23: Lost output | L23: Health services | N23: Victim services | O23: Police costs | P23: Other CJS Costs
E24: Commercial (7 sectors only)
E25: Commercial robbery | F25: 2060 | G25: 240 | I25: 980 | J25: 4170 | K25: 2250 | L25: 600 | N25: 20 | O25: 1010 | P25: 3670 | Q25: 15000
E26: Commercial burglary | F26: 7170 | G26: 860 | I26: 3600 | J26: 510 | K26: 380 | L26: 160 | N26: 0 | O26: 530 | P26: 2240 | Q26: 15460
E27: Commercial theft | F27: 210 | G27: 10 | I27: 510 | J27: 0 | K27: 0 | L27: 0 | N27: 0 | O27: 40 | P27: 200 | Q27: 970
E28: Theft of Commercial Vehicle | F28: 4040 | G28: 1880 | I28: 24800 | J28: 360 | K28: 190 | L28: 10 | N28: 0 | O28: 2030 | P28: 1870 | Q28: 35180
E29: Theft from Commercial Vehicle | F29: 220 | G29: 20 | I29: 1280 | J29: 100 | K29: 80 | L29: 0 | N29: 0 | O29: 80 | P29: 100 | Q29: 1870
E30: Commercial criminal damage – arson | F30: 1300 | G30: 530 | I30: 2230 | J30: 1010 | K30: 510 | L30: 340 | N30: 10 | O30: 1080 | P30: 3900 | Q30: 10930
E31: Commercial criminal damage – other | F31: 210 | G31: 110 | I31: 460 | J31: 60 | K31: 30 | L31: 40 | N31: 0 | O31: 150 | P31: 350 | Q31: 1420
G34: UNIT COSTS 2015/16
B35: Alex QA - 07.01.2021 | G35: Indirect | H35: Intangible | I35: Direct | J35: Total public value
B36: Intangible | C36: Total
F37: Violence with injury | G37: 2400 | H37: 7270.588235 | I37: =N7+O7+P7+L7 -> 3420 | J37: =G37+H37+I37 -> 13090.58824
F38: Violence without injury | G38: 790 | H38: 2479.411765 | I38: =N8+O8+P8+L8 -> 2340 | J38: =G38+H38+I38 -> 5609.411765
F39: Rape | G39: 6880 | H39: 21520.58824 | I39: 8090 | J39: 36490.58824
F40: Other sexual offences | G40: 1280 | H40: 3264.705882 | I40: 1550 | J40: 6094.705882
F41: Robbery | G41: 1250 | H41: 3167.647059 | I41: 5450 | J41: 9867.647059
F42: Domestic burglary | G42: 1150 | H42: 1050 | I42: 2180 | J42: 4380
F43: Theft of vehicle | G43: 1880 | H43: 238.2352941 | I43: 4000 | J43: 6118.235294
F44: Theft from vehicle | G44: 170 | H44: 123.5294118 | I44: =N14+O14+P14+L14 -> 220 | J44: 513.5294118
F45: Theft from person | G45: 140 | H45: 361.7647059 | I45: =N15+O15+P15+L15 -> 640 | J45: =G45+H45+I45 -> 1141.764706
B46: Error spotted - reference to Criminal damagae (arson). Changed to criminal damage (other) | C46: Total cost updated based on change to intangible unit costs | F46: Criminal damage | G46: 140 | H46: 238.2352941 | I46: =AVERAGE(L16:P17) -> 720 | J46: =G46+H46+I46 -> 1098.235294
B47: Error spotted - reference to Criminal damage (other). Changed to Fraud. | C47: Total cost updated based on change to intangible unit costs | F47: Fraud | G47: 280 | H47: 176.4705882 | I47: =N18+O18+P18+L18 -> 300 | J47: 756.4705882
B48: Error spotted - reference to Fraud. Changed to Commercial robbery. | C48: Total cost updated based on change to intangible unit costs | F48: Commercial robbery | G48: 4550 | H48: 3679.411765 | I48: =N25+O25+P25+L25 -> 5300 | J48: 13529.41176
B49: Error spotted - reference to Cybercrime. Changed to Commercial burglary. | C49: Total cost updated based on change to intangible unit costs | F49: Commercial burglary | G49: 8410 | H49: 450 | I49: =N26+O26+P26+L26 -> 2930 | J49: =G49+H49+I49 -> 11790
F51: Shoplifting | G51: 0 | I51: 130 | J51: 130 | L51: 0 | M51: 0 | N51: 135.5522189 | O51: 135.5522189
F52: Other theft | G52: 221.7942584 | H52: 73.2761047 | I52: 974.9296369 | J52: 1270 | L52: 231.2669528 | M52: 73.2761047 | N52: 1016.568273 | O52: 1324.240908
